Workbook

Sheet ACTUAL
B2: CUADRO 12. MODELACIÓN PARA OPTIMIZACIÓN DE LA RED DE BOMBEO AGUAS RESIDUALES -CASO ACTUAL
B4: DATOS BOMBEO | F4: DATOS POZO EYECTOR | M4: DATOS COSTOS | R4: ELEMENTO | S4: VALOR
F5: TIEMPO LLENADO | G5: 3 | H5: MIN | M5: VOL CONCRETO | N5: =+G11*$S$21 -> 0.7959154888 | O5: m3 | R5: PLACA | S5: =152000/0.257 -> 591439.6887
B6: Q DISEÑO | C6: 18 | D6: L/S | F6: VOL EYECTOR | G6: =+C6*$G$5*60/1000 -> 3.24 | H6: m3 | M6: COSTO CONCRETO | N6: =+S8 -> 631723.2296 | O6: $/m3 | R6: VIGAS | S6: 723730
B7: Q DISEÑO | C7: =+C6/1000 -> 0.018 | D7: M3/S | F7: AREA | G7: =+G6/G11 -> 2.314285714 | H7: m2 | M7: COSTO TOTAL POZO | N7: =+N5*N6 -> 502798.303 | O7: $ | R7: MURO | S7: 580000
B8: FRACCIONAMIENTO | C8: 1 | F8: ALTURA (m) | G8: 0.2 | H8: PARADO BOMBAS | M8: TIEMPO AMORTIZACIÓN | N8: 365 | O8: dias | R8: PROMEDIO | S8: =+AVERAGE(S5:S7) -> 631723.2296
B9: Q BOMBEO | C9: =$C$8*C6 -> 18 | D9: L/S | G9: =+G8+0.4 -> 0.6 | H9: ENCENDIDO BOMBA 1 | M9: TIEMPO AMORTIZACIÓN | N9: =+N8*16 -> 5840 | O9: HORAS
B10: Q BOMBEO | C10: =C8*C7 -> 0.018 | D10: L/S | G10: =+G9+0.4 -> 1 | H10: ENCENDIDO BOMBA 2 | M10: COSTO POZO | N10: =N5*N6/N9 -> 86.09559983 | O10: $/Hora | R10: COSTO $/KW | S10: =+(208.12+123.65)/2 -> 165.885
B11: Q BOMBEO | C11: =+C10*60 -> 1.08 | D11: M3/S | G11: =+G10+0.4 -> 1.4 | H11: NIVEL ALARMA | R11: Kw CONSUMIDOS PROM. | S11: 5.6
M12: COSTO TOTAL | N12: =N10+O79 -> 53965.5436 | O12: $
B15: 1 | C15: 2 | D15: 3 | E15: 4 | F15: 5 | G15: 6 | H15: 7 | L15: 8 | M15: 9 | N15: 10 | O15: 11
B17: TIEMPO T (MIN) | C17: Qentrada M3/MIN | D17: VOLUMEN ENTRADA (m3) | E17: VOL SALIDA 1 (m3) | F17: VOL SALIDA 2 (m3) | G17: VOLUMEN ACUMULADO (m3) | H17: ALTURA (m) | I17: OBS | J17: OBS | K17: OBS | L17: OBS | M17: COSTO KW ($) ENCENDIDO BOMBA 1 | N17: COSTO KW ($) ENCENDIDO BOMBA 2 | O17: COSTO KW ($) ENCENDIDO BOMBAS 1 Y 2
B18: 0 | E18: 0 | F18: 0 | M18: =IF(E19>0,$S$10*$S$11,0) -> 0 | N18: =+$S$10*F19 -> 0 | O18: =SUM(M18:N18) -> 0 | R18: LADO EXT POZO | S18: =SQRT(G7) -> 1.521277659
B19: 1 | C19: =+$C$7*60 -> 1.08 | D19: =+C19*1 -> 1.08 | E19: =IF(E18=0,IF(H18<$G$9,0,$C$11),IF(H18<$G$8,0,E18)) -> 0 | F19: =IF(F18=0,IF(H18<$G$9,0,IF(H18<$G$10,0,$C$11)),IF(H18<$G$8,0,F18)) -> 0 | G19: =+D19-E19-F19 -> 1.08 | H19: =+G19/$G$7 -> 0.4666666667 | I19: =+IF(E18=0,IF(E19>0,"ENCENDIDO BOMBA 1",IF(F18=0,IF(F19>0,"ENCENDIDO BOMBA 2","")))) ->  | J19: =+IF(F18=0,IF(F19>0,"ENCENDIDO BOMBA 2",""),"") ->  | K19: =+IF(F18>0,IF(F19=0,"APAGADO BOMBAS",""),"") ->  | L19: =+CONCATENATE(I19,J19,K19) ->  | M19: 0 | N19: =IF(F20>0,$S$10*$S$11,0) -> 0 | O19: =SUM(M19:N19) -> 0 | R19: LADO INT POZO | S19: =+S18-0.2 -> 1.321277659
B20: 2 | C20: =+$C$7*60 -> 1.08 | D20: =+C20*1 -> 1.08 | E20: 0 | F20: 0 | G20: =+G19+D20-E20-F20 -> 2.16 | H20: 0.9333333333 | I20: =+IF(E19=0,IF(E20>0,"ENCENDIDO BOMBA 1",IF(F19=0,IF(F20>0,"ENCENDIDO BOMBA 2","")))) ->  | J20: =+IF(F19=0,IF(F20>0,"ENCENDIDO BOMBA 2",""),"") ->  | K20: =+IF(F19>0,IF(F20=0,"APAGADO BOMBAS",""),"") ->  | L20: =+CONCATENATE(I20,J20,K20) ->  | M20: 928.956 | N20: 0 | O20: 928.956 | R20: AREA INTERIOR | S20: =+S19*S19 -> 1.745774651
B21: 3 | C21: 1.08 | D21: 1.08 | E21: 1.08 | F21: 0 | G21: 2.16 | H21: 0.9333333333 | I21: ENCENDIDO BOMBA 1 | L21: ENCENDIDO BOMBA 1 | M21: 928.956 | N21: 0 | O21: 928.956 | R21: D AREA | S21: =+G7-S20 -> 0.5685110634
B22: 4 | C22: 1.08 | D22: 1.08 | E22: 1.08 | F22: 0 | G22: 2.16 | H22: 0.9333333333 | I22: =+IF(E21=0,IF(E22>0,"ENCENDIDO BOMBA 1",""),"") ->  | M22: 928.956 | N22: 0 | O22: 928.956
B23: 5 | C23: 1.08 | D23: 1.08 | E23: 1.08 | F23: 0 | G23: 2.16 | H23: 0.9333333333 | I23: =+IF(E22=0,IF(E23>0,"ENCENDIDO BOMBA 1",""),"") ->  | M23: 928.956 | N23: 0 | O23: 928.956
B24: 6 | C24: 1.08 | D24: 1.08 | E24: 1.08 | F24: 0 | G24: 2.16 | H24: 0.9333333333 | M24: 928.956 | N24: 0 | O24: 928.956
B25: 7 | C25: 1.08 | D25: 1.08 | E25: 1.08 | F25: 0 | G25: 2.16 | H25: 0.9333333333 | M25: 928.956 | N25: 0 | O25: 928.956 | R25: DATOS BOMBEO EXISTENTE
B26: 8 | C26: 1.08 | D26: 1.08 | E26: 1.08 | F26: 0 | G26: 2.16 | H26: 0.9333333333 | J26: =+IF(F25=0,IF(F26>0,"ENCENDIDO BOMBA 2",""),"") ->  | M26: 928.956 | N26: 0 | O26: 928.956 | R26: Q DISEÑO | S26: 18 | T26: L/S
B27: 9 | C27: 1.08 | D27: 1.08 | E27: 1.08 | F27: 0 | G27: 2.16 | H27: 0.9333333333 | M27: 928.956 | N27: 0 | O27: 928.956 | R27: TAMAÑO POZO | S27: =1.4*1.5*1.5 -> 3.15 | T27: m3
B28: 10 | C28: 1.08 | D28: 1.08 | E28: 1.08 | F28: 0 | G28: 2.16 | H28: 0.9333333333 | M28: 928.956 | N28: 0 | O28: 928.956
B29: 11 | C29: 1.08 | D29: 1.08 | E29: 1.08 | F29: 0 | G29: 2.16 | H29: 0.9333333333 | M29: 928.956 | N29: 0 | O29: 928.956
B30: 12 | C30: 1.08 | D30: 1.08 | E30: 1.08 | F30: 0 | G30: 2.16 | H30: 0.9333333333 | M30: 928.956 | N30: 0 | O30: 928.956
B31: 13 | C31: 1.08 | D31: 1.08 | E31: 1.08 | F31: 0 | G31: 2.16 | H31: 0.9333333333 | M31: 928.956 | N31: 0 | O31: 928.956
B32: 14 | C32: 1.08 | D32: 1.08 | E32: 1.08 | F32: 0 | G32: 2.16 | H32: 0.9333333333 | J32: =+IF(F31=0,IF(F32>0,"ENCENDIDO BOMBA 2",""),"") ->  | M32: 928.956 | N32: 0 | O32: 928.956
B33: 15 | C33: 1.08 | D33: 1.08 | E33: 1.08 | F33: 0 | G33: 2.16 | H33: 0.9333333333 | M33: 928.956 | N33: 0 | O33: 928.956 | R33: DATOS BOMBEO ALL EXISTENTE
B34: 16 | C34: 1.08 | D34: 1.08 | E34: 1.08 | F34: 0 | G34: 2.16 | H34: 0.9333333333 | K34: =+IF(F33>0,IF(F34=0,"APAGADO BOMBAS",""),"") ->  | M34: 928.956 | N34: 0 | O34: 928.956 | R34: Q DISEÑO | S34: 92 | T34: L/S
B35: 17 | C35: 1.08 | D35: 1.08 | E35: 1.08 | F35: 0 | G35: 2.16 | H35: 0.9333333333 | I35: =+IF(E34=0,IF(E35>0,"ENCENDIDO BOMBA 1",""),"") ->  | M35: 928.956 | N35: 0 | O35: 928.956 | R35: CDT | S35: 6 | T35: m
B36: 18 | C36: 1.08 | D36: 1.08 | E36: 1.08 | F36: 0 | G36: 2.16 | H36: 0.9333333333 | M36: 928.956 | N36: 0 | O36: 928.956 | R36: FRACCION. | S36: 2 BOMBAS DEL 100%
B37: 19 | C37: 1.08 | D37: 1.08 | E37: 1.08 | F37: 0 | G37: 2.16 | H37: 0.9333333333 | M37: 928.956 | N37: 0 | O37: 928.956
B38: 20 | C38: 1.08 | D38: 1.08 | E38: 1.08 | F38: 0 | G38: 2.16 | H38: 0.9333333333 | M38: 928.956 | N38: 0 | O38: 928.956
B39: 21 | C39: 1.08 | D39: 1.08 | E39: 1.08 | F39: 0 | G39: 2.16 | H39: 0.9333333333 | J39: =+IF(F38=0,IF(F39>0,"ENCENDIDO BOMBA 2",""),"") ->  | M39: 928.956 | N39: 0 | O39: 928.956
B40: 22 | C40: 1.08 | D40: 1.08 | E40: 1.08 | F40: 0 | G40: 2.16 | H40: 0.9333333333 | M40: 928.956 | N40: 0 | O40: 928.956
B41: 23 | C41: 1.08 | D41: 1.08 | E41: 1.08 | F41: 0 | G41: 2.16 | H41: 0.9333333333 | M41: 928.956 | N41: 0 | O41: 928.956
B42: 24 | C42: 1.08 | D42: 1.08 | E42: 1.08 | F42: 0 | G42: 2.16 | H42: 0.9333333333 | M42: 928.956 | N42: 0 | O42: 928.956
B43: 25 | C43: 1.08 | D43: 1.08 | E43: 1.08 | F43: 0 | G43: 2.16 | H43: 0.9333333333 | K43: =+IF(F42>0,IF(F43=0,"APAGADO BOMBAS",""),"") ->  | M43: 928.956 | N43: 0 | O43: 928.956
B44: 26 | C44: 1.08 | D44: 1.08 | E44: 1.08 | F44: 0 | G44: 2.16 | H44: 0.9333333333 | M44: 928.956 | N44: 0 | O44: 928.956
B45: 27 | C45: 1.08 | D45: 1.08 | E45: 1.08 | F45: 0 | G45: 2.16 | H45: 0.9333333333 | J45: =+IF(F44=0,IF(F45>0,"ENCENDIDO BOMBA 2",""),"") ->  | M45: 928.956 | N45: 0 | O45: 928.956
B46: 28 | C46: 1.08 | D46: 1.08 | E46: 1.08 | F46: 0 | G46: 2.16 | H46: 0.9333333333 | M46: 928.956 | N46: 0 | O46: 928.956
B47: 29 | C47: 1.08 | D47: 1.08 | E47: 1.08 | F47: 0 | G47: 2.16 | H47: 0.9333333333 | M47: 928.956 | N47: 0 | O47: 928.956
B48: 30 | C48: 1.08 | D48: 1.08 | E48: 1.08 | F48: 0 | G48: 2.16 | H48: 0.9333333333 | M48: 928.956 | N48: 0 | O48: 928.956
B49: 31 | C49: 1.08 | D49: 1.08 | E49: 1.08 | F49: 0 | G49: 2.16 | H49: 0.9333333333 | M49: 928.956 | N49: 0 | O49: 928.956
B50: 32 | C50: 1.08 | D50: 1.08 | E50: 1.08 | F50: 0 | G50: 2.16 | H50: 0.9333333333 | M50: =IF(E51>0,$S$10*$S$11,0) -> 928.956 | N50: 0 | O50: 928.956
B51: 33 | C51: 1.08 | D51: 1.08 | E51: =IF(E50=0,IF(H50<$G$9,0,$C$11),IF(H50<$G$8,0,E50)) -> 1.08 | F51: =IF(F50=0,IF(H50<$G$9,0,IF(H50<$G$10,0,$C$11)),IF(H50<$G$8,0,F50)) -> 0 | G51: 2.16 | H51: =+G51/$G$7 -> 0.9333333333 | M51: 928.956 | N51: =IF(F52>0,$S$10*$S$11,0) -> 0 | O51: 928.956
B52: 34 | C52: 1.08 | D52: 1.08 | E52: 1.08 | F52: 0 | G52: 2.16 | H52: 0.9333333333 | J52: =+IF(F51=0,IF(F52>0,"ENCENDIDO BOMBA 2",""),"") ->  | M52: 928.956 | N52: 0 | O52: 928.956
B53: 35 | C53: 1.08 | D53: 1.08 | E53: 1.08 | F53: 0 | G53: 2.16 | H53: 0.9333333333 | M53: 928.956 | N53: 0 | O53: 928.956
B54: 36 | C54: 1.08 | D54: 1.08 | E54: 1.08 | F54: 0 | G54: 2.16 | H54: 0.9333333333 | M54: 928.956 | N54: 0 | O54: 928.956
B55: 37 | C55: 1.08 | D55: 1.08 | E55: 1.08 | F55: 0 | G55: 2.16 | H55: 0.9333333333 | M55: 928.956 | N55: 0 | O55: 928.956
B56: 38 | C56: 1.08 | D56: 1.08 | E56: 1.08 | F56: 0 | G56: 2.16 | H56: 0.9333333333 | M56: 928.956 | N56: 0 | O56: 928.956
B57: 39 | C57: 1.08 | D57: 1.08 | E57: 1.08 | F57: 0 | G57: 2.16 | H57: 0.9333333333 | M57: 928.956 | N57: 0 | O57: 928.956
B58: 40 | C58: 1.08 | D58: 1.08 | E58: 1.08 | F58: 0 | G58: 2.16 | H58: 0.9333333333 | J58: =+IF(F57=0,IF(F58>0,"ENCENDIDO BOMBA 2",""),"") ->  | K58: =+IF(F57>0,IF(F58=0,"APAGADO BOMBAS",""),"") ->  | M58: 928.956 | N58: 0 | O58: 928.956
B59: 41 | C59: 1.08 | D59: 1.08 | E59: 1.08 | F59: 0 | G59: 2.16 | H59: 0.9333333333 | K59: =+IF(F58>0,IF(F59=0,"APAGADO BOMBAS",""),"") ->  | M59: 928.956 | N59: 0 | O59: 928.956
B60: 42 | C60: 1.08 | D60: 1.08 | E60: 1.08 | F60: 0 | G60: 2.16 | H60: 0.9333333333 | K60: =+IF(F59>0,IF(F60=0,"APAGADO BOMBAS",""),"") ->  | M60: 928.956 | N60: 0 | O60: 928.956
B61: 43 | C61: 1.08 | D61: 1.08 | E61: 1.08 | F61: 0 | G61: 2.16 | H61: 0.9333333333 | M61: 928.956 | N61: 0 | O61: 928.956
B62: 44 | C62: 1.08 | D62: 1.08 | E62: 1.08 | F62: 0 | G62: 2.16 | H62: 0.9333333333 | M62: 928.956 | N62: 0 | O62: 928.956
B63: 45 | C63: 1.08 | D63: 1.08 | E63: 1.08 | F63: 0 | G63: 2.16 | H63: 0.9333333333 | M63: 928.956 | N63: 0 | O63: 928.956
B64: 46 | C64: 1.08 | D64: 1.08 | E64: 1.08 | F64: 0 | G64: 2.16 | H64: 0.9333333333 | M64: 928.956 | N64: 0 | O64: 928.956
B65: 47 | C65: 1.08 | D65: 1.08 | E65: 1.08 | F65: 0 | G65: 2.16 | H65: 0.9333333333 | J65: =+IF(F64=0,IF(F65>0,"ENCENDIDO BOMBA 2",""),"") ->  | M65: 928.956 | N65: 0 | O65: 928.956
B66: 48 | C66: 1.08 | D66: 1.08 | E66: 1.08 | F66: 0 | G66: 2.16 | H66: 0.9333333333 | M66: 928.956 | N66: 0 | O66: 928.956
B67: 49 | C67: 1.08 | D67: 1.08 | E67: 1.08 | F67: 0 | G67: 2.16 | H67: 0.9333333333 | J67: =+IF(F66=0,IF(F67>0,"ENCENDIDO BOMBA 2",""),"") ->  | M67: 928.956 | N67: 0 | O67: 928.956
B68: 50 | C68: 1.08 | D68: 1.08 | E68: 1.08 | F68: 0 | G68: 2.16 | H68: 0.9333333333 | M68: 928.956 | N68: 0 | O68: 928.956
B69: 51 | C69: 1.08 | D69: 1.08 | E69: 1.08 | F69: 0 | G69: 2.16 | H69: 0.9333333333 | M69: 928.956 | N69: 0 | O69: 928.956
B70: 52 | C70: 1.08 | D70: 1.08 | E70: 1.08 | F70: 0 | G70: 2.16 | H70: 0.9333333333 | M70: 928.956 | N70: 0 | O70: 928.956
B71: 53 | C71: 1.08 | D71: 1.08 | E71: 1.08 | F71: 0 | G71: 2.16 | H71: 0.9333333333 | M71: 928.956 | N71: 0 | O71: 928.956
B72: 54 | C72: 1.08 | D72: 1.08 | E72: 1.08 | F72: 0 | G72: 2.16 | H72: 0.9333333333 | K72: =+IF(F71>0,IF(F72=0,"APAGADO BOMBAS",""),"") ->  | M72: 928.956 | N72: 0 | O72: 928.956
B73: 55 | C73: 1.08 | D73: 1.08 | E73: 1.08 | F73: 0 | G73: 2.16 | H73: 0.9333333333 | K73: =+IF(F72>0,IF(F73=0,"APAGADO BOMBAS",""),"") ->  | M73: 928.956 | N73: 0 | O73: 928.956
B74: 56 | C74: 1.08 | D74: 1.08 | E74: 1.08 | F74: 0 | G74: 2.16 | H74: 0.9333333333 | J74: =+IF(F73=0,IF(F74>0,"ENCENDIDO BOMBA 2",""),"") ->  | M74: 928.956 | N74: 0 | O74: 928.956
B75: 57 | C75: 1.08 | D75: 1.08 | E75: 1.08 | F75: 0 | G75: 2.16 | H75: 0.9333333333 | M75: 928.956 | N75: 0 | O75: 928.956
B76: 58 | C76: 1.08 | D76: 1.08 | E76: 1.08 | F76: 0 | G76: 2.16 | H76: 0.9333333333 | M76: 928.956 | N76: 0 | O76: 928.956
B77: 59 | C77: 1.08 | D77: 1.08 | E77: 1.08 | F77: 0 | G77: 2.16 | H77: 0.9333333333 | M77: 928.956 | N77: 0 | O77: 928.956
B78: 60 | C78: 1.08 | D78: 1.08 | E78: 1.08 | F78: 0 | G78: 2.16 | H78: 0.9333333333 | M78: 0 | N78: 0 | O78: =SUM(M78:N78) -> 0
M79: COSTO TOTAL OPERACIÓN BOMBAS POR HORA | O79: =SUM(O18:O78) -> 53879.448

Sheet NORMA 1 AÑO
B2: CUADRO 13. MODELACIÓN PARA OPTIMIZACIÓN DE LA RED DE BOMBEO AGUAS RESIDUALES-CASO NORMATIVO UN AÑO
B4: DATOS BOMBEO | F4: DATOS POZO EYECTOR | M4: DATOS COSTOS | R4: ELEMENTO | S4: VALOR
F5: TIEMPO LLENADO | G5: 5 | H5: MIN | M5: VOL CONCRETO | N5: =+G11*$S$21 -> 1.043818167 | O5: m3 | R5: PLACA | S5: =152000/0.257 -> 591439.6887
B6: Q DISEÑO | C6: 18 | D6: L/S | F6: VOL EYECTOR | G6: =+C6*$G$5*60/1000 -> 5.4 | H6: m3 | M6: COSTO CONCRETO | N6: =+S8 -> 631723.2296 | O6: $/m3 | R6: VIGAS | S6: 723730
B7: Q DISEÑO | C7: =+C6/1000 -> 0.018 | D7: M3/S | F7: AREA | G7: =+G6/G11 -> 3.857142857 | H7: m2 | M7: COSTO TOTAL POZO | N7: =+N5*N6 -> 659404.1834 | O7: $ | R7: MURO | S7: 580000
B8: FRACCIONAMIENTO | C8: 0.75 | F8: ALTURA (m) | G8: 0.2 | H8: PARADO BOMBAS | M8: TIEMPO AMORTIZACIÓN | N8: =365 -> 365 | O8: dias | R8: PROMEDIO | S8: =+AVERAGE(S5:S7) -> 631723.2296
B9: Q BOMBEO | C9: =$C$8*C6 -> 13.5 | D9: L/S | G9: =+G8+0.4 -> 0.6 | H9: ENCENDIDO BOMBA 1 | M9: TIEMPO AMORTIZACIÓN | N9: =+N8*16 -> 5840 | O9: HORAS
B10: Q BOMBEO | C10: =C8*C7 -> 0.0135 | D10: L/S | G10: =+G9+0.4 -> 1 | H10: ENCENDIDO BOMBA 2 | M10: COSTO POZO | N10: =N5*N6/N9 -> 112.9116752 | O10: $/Hora | R10: COSTO $/KW | S10: =+(208.12+123.65)/2 -> 165.885
B11: Q BOMBEO | C11: =+C10*60 -> 0.81 | D11: M3/MIN | G11: =+G10+0.4 -> 1.4 | H11: NIVEL ALARMA | R11: Kw CONSUMIDOS PROM. | S11: 5.6
M12: COSTO TOTAL | N12: =N10+O79 -> 71642.52368 | O12: $
B15: 1 | C15: 2 | D15: 3 | E15: 4 | F15: 5 | G15: 6 | H15: 7 | L15: 8 | M15: 9 | N15: 10 | O15: 11
B17: TIEMPO T (MIN) | C17: Qentrada M3/MIN | D17: VOLUMEN ENTRADA (m3) | E17: VOL SALIDA 1 (m3) | F17: VOL SALIDA 2 (m3) | G17: VOLUMEN ACUMULADO (m3) | H17: ALTURA (m) | I17: OBS | J17: OBS | K17: OBS | L17: OBS | M17: COSTO KW ($) ENCENDIDO BOMBA 1 | N17: COSTO KW ($) ENCENDIDO BOMBA 2 | O17: COSTO KW ($) ENCENDIDO BOMBAS 1 Y 2
B18: 0 | E18: 0 | F18: 0 | M18: =IF(E19>0,$S$10*$S$11,0) -> 0 | N18: =+$S$10*F19 -> 0 | O18: =SUM(M18:N18) -> 0 | R18: LADO EXT POZO | S18: =SQRT(G7) -> 1.963961012
B19: 1 | C19: =+$C$7*60 -> 1.08 | D19: =+C19*1 -> 1.08 | E19: =IF(E18=0,IF(H18<$G$9,0,$C$11),IF(H18<$G$8,0,E18)) -> 0 | F19: =IF(F18=0,IF(H18<$G$9,0,IF(H18<$G$10,0,$C$11)),IF(H18<$G$8,0,F18)) -> 0 | G19: =+D19-E19-F19 -> 1.08 | H19: =+G19/$G$7 -> 0.28 | I19: =+IF(E18=0,IF(E19>0,"ENCENDIDO BOMBA 1",IF(F18=0,IF(F19>0,"ENCENDIDO BOMBA 2","")))) ->  | J19: =+IF(F18=0,IF(F19>0,"ENCENDIDO BOMBA 2",""),"") ->  | K19: =+IF(F18>0,IF(F19=0,"APAGADO BOMBAS",""),"") ->  | L19: =+CONCATENATE(I19,J19,K19) ->  | M19: 0 | N19: =IF(F20>0,$S$10*$S$11,0) -> 0 | O19: =SUM(M19:N19) -> 0 | R19: LADO INT POZO | S19: =+S18-0.2 -> 1.763961012
B20: 2 | C20: =+$C$7*60 -> 1.08 | D20: =+C20*1 -> 1.08 | E20: 0 | F20: 0 | G20: =+G19+D20-E20-F20 -> 2.16 | H20: 0.56 | I20: =+IF(E19=0,IF(E20>0,"ENCENDIDO BOMBA 1",IF(F19=0,IF(F20>0,"ENCENDIDO BOMBA 2","")))) ->  | J20: =+IF(F19=0,IF(F20>0,"ENCENDIDO BOMBA 2",""),"") ->  | K20: =+IF(F19>0,IF(F20=0,"APAGADO BOMBAS",""),"") ->  | L20: =+CONCATENATE(I20,J20,K20) ->  | M20: 0 | N20: 0 | O20: 0 | R20: AREA INTERIOR | S20: =+S19*S19 -> 3.111558452
B21: 3 | C21: 1.08 | D21: 1.08 | E21: 0 | F21: 0 | G21: 3.24 | H21: 0.84 | M21: 928.956 | N21: 0 | O21: 928.956 | R21: D AREA | S21: =+G7-S20 -> 0.7455844048
B22: 4 | C22: 1.08 | D22: 1.08 | E22: 0.81 | F22: 0 | G22: 3.51 | H22: 0.91 | I22: =+IF(E21=0,IF(E22>0,"ENCENDIDO BOMBA 1",""),"") -> ENCENDIDO BOMBA 1 | L22: ENCENDIDO BOMBA 1 | M22: 928.956 | N22: 0 | O22: 928.956
B23: 5 | C23: 1.08 | D23: 1.08 | E23: 0.81 | F23: 0 | G23: 3.78 | H23: 0.98 | I23: =+IF(E22=0,IF(E23>0,"ENCENDIDO BOMBA 1",""),"") ->  | M23: 928.956 | N23: 0 | O23: 928.956
B24: 6 | C24: 1.08 | D24: 1.08 | E24: 0.81 | F24: 0 | G24: 4.05 | H24: 1.05 | M24: 928.956 | N24: 928.956 | O24: 1857.912
B25: 7 | C25: 1.08 | D25: 1.08 | E25: 0.81 | F25: 0.81 | G25: 3.51 | H25: 0.91 | J25: ENCENDIDO BOMBA 2 | L25: ENCENDIDO BOMBA 2 | M25: 928.956 | N25: 928.956 | O25: 1857.912
B26: 8 | C26: 1.08 | D26: 1.08 | E26: 0.81 | F26: 0.81 | G26: 2.97 | H26: 0.77 | J26: =+IF(F25=0,IF(F26>0,"ENCENDIDO BOMBA 2",""),"") ->  | M26: 928.956 | N26: 928.956 | O26: 1857.912
B27: 9 | C27: 1.08 | D27: 1.08 | E27: 0.81 | F27: 0.81 | G27: 2.43 | H27: 0.63 | M27: 928.956 | N27: 928.956 | O27: 1857.912
B28: 10 | C28: 1.08 | D28: 1.08 | E28: 0.81 | F28: 0.81 | G28: 1.89 | H28: 0.49 | M28: 928.956 | N28: 928.956 | O28: 1857.912
B29: 11 | C29: 1.08 | D29: 1.08 | E29: 0.81 | F29: 0.81 | G29: 1.35 | H29: 0.35 | M29: 928.956 | N29: 928.956 | O29: 1857.912
B30: 12 | C30: 1.08 | D30: 1.08 | E30: 0.81 | F30: 0.81 | G30: 0.81 | H30: 0.21 | M30: 928.956 | N30: 928.956 | O30: 1857.912
B31: 13 | C31: 1.08 | D31: 1.08 | E31: 0.81 | F31: 0.81 | G31: 0.27 | H31: 0.07 | M31: 0 | N31: 0 | O31: 0
B32: 14 | C32: 1.08 | D32: 1.08 | E32: 0 | F32: 0 | G32: 1.35 | H32: 0.35 | J32: =+IF(F31=0,IF(F32>0,"ENCENDIDO BOMBA 2",""),"") ->  | K32: APAGADO BOMBAS | L32: APAGADO BOMBAS | M32: 0 | N32: 0 | O32: 0
B33: 15 | C33: 1.08 | D33: 1.08 | E33: 0 | F33: 0 | G33: 2.43 | H33: 0.63 | M33: 928.956 | N33: 0 | O33: 928.956
B34: 16 | C34: 1.08 | D34: 1.08 | E34: 0.81 | F34: 0 | G34: 2.7 | H34: 0.7 | I34: ENCENDIDO BOMBA 1 | K34: =+IF(F33>0,IF(F34=0,"APAGADO BOMBAS",""),"") ->  | L34: ENCENDIDO BOMBA 1 | M34: 928.956 | N34: 0 | O34: 928.956
B35: 17 | C35: 1.08 | D35: 1.08 | E35: 0.81 | F35: 0 | G35: 2.97 | H35: 0.77 | I35: =+IF(E34=0,IF(E35>0,"ENCENDIDO BOMBA 1",""),"") ->  | M35: 928.956 | N35: 0 | O35: 928.956
B36: 18 | C36: 1.08 | D36: 1.08 | E36: 0.81 | F36: 0 | G36: 3.24 | H36: 0.84 | M36: 928.956 | N36: 0 | O36: 928.956
B37: 19 | C37: 1.08 | D37: 1.08 | E37: 0.81 | F37: 0 | G37: 3.51 | H37: 0.91 | M37: 928.956 | N37: 0 | O37: 928.956
B38: 20 | C38: 1.08 | D38: 1.08 | E38: 0.81 | F38: 0 | G38: 3.78 | H38: 0.98 | M38: 928.956 | N38: 0 | O38: 928.956
B39: 21 | C39: 1.08 | D39: 1.08 | E39: 0.81 | F39: 0 | G39: 4.05 | H39: 1.05 | J39: =+IF(F38=0,IF(F39>0,"ENCENDIDO BOMBA 2",""),"") ->  | M39: 928.956 | N39: 928.956 | O39: 1857.912
B40: 22 | C40: 1.08 | D40: 1.08 | E40: 0.81 | F40: 0.81 | G40: 3.51 | H40: 0.91 | J40: ENCENDIDO BOMBA 2 | L40: ENCENDIDO BOMBA 2 | M40: 928.956 | N40: 928.956 | O40: 1857.912
B41: 23 | C41: 1.08 | D41: 1.08 | E41: 0.81 | F41: 0.81 | G41: 2.97 | H41: 0.77 | M41: 928.956 | N41: 928.956 | O41: 1857.912
B42: 24 | C42: 1.08 | D42: 1.08 | E42: 0.81 | F42: 0.81 | G42: 2.43 | H42: 0.63 | M42: 928.956 | N42: 928.956 | O42: 1857.912
B43: 25 | C43: 1.08 | D43: 1.08 | E43: 0.81 | F43: 0.81 | G43: 1.89 | H43: 0.49 | K43: =+IF(F42>0,IF(F43=0,"APAGADO BOMBAS",""),"") ->  | M43: 928.956 | N43: 928.956 | O43: 1857.912
B44: 26 | C44: 1.08 | D44: 1.08 | E44: 0.81 | F44: 0.81 | G44: 1.35 | H44: 0.35 | M44: 928.956 | N44: 928.956 | O44: 1857.912
B45: 27 | C45: 1.08 | D45: 1.08 | E45: 0.81 | F45: 0.81 | G45: 0.81 | H45: 0.21 | J45: =+IF(F44=0,IF(F45>0,"ENCENDIDO BOMBA 2",""),"") ->  | M45: 928.956 | N45: 928.956 | O45: 1857.912
B46: 28 | C46: 1.08 | D46: 1.08 | E46: 0.81 | F46: 0.81 | G46: 0.27 | H46: 0.07 | M46: 0 | N46: 0 | O46: 0
B47: 29 | C47: 1.08 | D47: 1.08 | E47: 0 | F47: 0 | G47: 1.35 | H47: 0.35 | K47: APAGADO BOMBAS | L47: APAGADO BOMBAS | M47: 0 | N47: 0 | O47: 0
B48: 30 | C48: 1.08 | D48: 1.08 | E48: 0 | F48: 0 | G48: 2.43 | H48: 0.63 | M48: 928.956 | N48: 0 | O48: 928.956
B49: 31 | C49: 1.08 | D49: 1.08 | E49: 0.81 | F49: 0 | G49: 2.7 | H49: 0.7 | I49: ENCENDIDO BOMBA 1 | L49: ENCENDIDO BOMBA 1 | M49: 928.956 | N49: 0 | O49: 928.956
B50: 32 | C50: 1.08 | D50: 1.08 | E50: 0.81 | F50: 0 | G50: 2.97 | H50: 0.77 | M50: =IF(E51>0,$S$10*$S$11,0) -> 928.956 | N50: 0 | O50: 928.956
B51: 33 | C51: 1.08 | D51: 1.08 | E51: =IF(E50=0,IF(H50<$G$9,0,$C$11),IF(H50<$G$8,0,E50)) -> 0.81 | F51: =IF(F50=0,IF(H50<$G$9,0,IF(H50<$G$10,0,$C$11)),IF(H50<$G$8,0,F50)) -> 0 | G51: 3.24 | H51: =+G51/$G$7 -> 0.84 | M51: 928.956 | N51: =IF(F52>0,$S$10*$S$11,0) -> 0 | O51: 928.956
B52: 34 | C52: 1.08 | D52: 1.08 | E52: 0.81 | F52: 0 | G52: 3.51 | H52: 0.91 | J52: =+IF(F51=0,IF(F52>0,"ENCENDIDO BOMBA 2",""),"") ->  | M52: 928.956 | N52: 0 | O52: 928.956
B53: 35 | C53: 1.08 | D53: 1.08 | E53: 0.81 | F53: 0 | G53: 3.78 | H53: 0.98 | M53: 928.956 | N53: 0 | O53: 928.956
B54: 36 | C54: 1.08 | D54: 1.08 | E54: 0.81 | F54: 0 | G54: 4.05 | H54: 1.05 | M54: 928.956 | N54: 928.956 | O54: 1857.912
B55: 37 | C55: 1.08 | D55: 1.08 | E55: 0.81 | F55: 0.81 | G55: 3.51 | H55: 0.91 | J55: ENCENDIDO BOMBA 2 | L55: ENCENDIDO BOMBA 2 | M55: 928.956 | N55: 928.956 | O55: 1857.912
B56: 38 | C56: 1.08 | D56: 1.08 | E56: 0.81 | F56: 0.81 | G56: 2.97 | H56: 0.77 | M56: 928.956 | N56: 928.956 | O56: 1857.912
B57: 39 | C57: 1.08 | D57: 1.08 | E57: 0.81 | F57: 0.81 | G57: 2.43 | H57: 0.63 | M57: 928.956 | N57: 928.956 | O57: 1857.912
B58: 40 | C58: 1.08 | D58: 1.08 | E58: 0.81 | F58: 0.81 | G58: 1.89 | H58: 0.49 | J58: =+IF(F57=0,IF(F58>0,"ENCENDIDO BOMBA 2",""),"") ->  | K58: =+IF(F57>0,IF(F58=0,"APAGADO BOMBAS",""),"") ->  | M58: 928.956 | N58: 928.956 | O58: 1857.912
B59: 41 | C59: 1.08 | D59: 1.08 | E59: 0.81 | F59: 0.81 | G59: 1.35 | H59: 0.35 | K59: =+IF(F58>0,IF(F59=0,"APAGADO BOMBAS",""),"") ->  | M59: 928.956 | N59: 928.956 | O59: 1857.912
B60: 42 | C60: 1.08 | D60: 1.08 | E60: 0.81 | F60: 0.81 | G60: 0.81 | H60: 0.21 | K60: =+IF(F59>0,IF(F60=0,"APAGADO BOMBAS",""),"") ->  | M60: 928.956 | N60: 928.956 | O60: 1857.912
B61: 43 | C61: 1.08 | D61: 1.08 | E61: 0.81 | F61: 0.81 | G61: 0.27 | H61: 0.07 | M61: 0 | N61: 0 | O61: 0
B62: 44 | C62: 1.08 | D62: 1.08 | E62: 0 | F62: 0 | G62: 1.35 | H62: 0.35 | K62: APAGADO BOMBAS | L62: APAGADO BOMBAS | M62: 0 | N62: 0 | O62: 0
B63: 45 | C63: 1.08 | D63: 1.08 | E63: 0 | F63: 0 | G63: 2.43 | H63: 0.63 | M63: 928.956 | N63: 0 | O63: 928.956
B64: 46 | C64: 1.08 | D64: 1.08 | E64: 0.81 | F64: 0 | G64: 2.7 | H64: 0.7 | I64: ENCENDIDO BOMBA 1 | L64: ENCENDIDO BOMBA 1 | M64: 928.956 | N64: 0 | O64: 928.956
B65: 47 | C65: 1.08 | D65: 1.08 | E65: 0.81 | F65: 0 | G65: 2.97 | H65: 0.77 | J65: =+IF(F64=0,IF(F65>0,"ENCENDIDO BOMBA 2",""),"") ->  | M65: 928.956 | N65: 0 | O65: 928.956
B66: 48 | C66: 1.08 | D66: 1.08 | E66: 0.81 | F66: 0 | G66: 3.24 | H66: 0.84 | M66: 928.956 | N66: 0 | O66: 928.956
B67: 49 | C67: 1.08 | D67: 1.08 | E67: 0.81 | F67: 0 | G67: 3.51 | H67: 0.91 | J67: =+IF(F66=0,IF(F67>0,"ENCENDIDO BOMBA 2",""),"") ->  | M67: 928.956 | N67: 0 | O67: 928.956
B68: 50 | C68: 1.08 | D68: 1.08 | E68: 0.81 | F68: 0 | G68: 3.78 | H68: 0.98 | M68: 928.956 | N68: 0 | O68: 928.956
B69: 51 | C69: 1.08 | D69: 1.08 | E69: 0.81 | F69: 0 | G69: 4.05 | H69: 1.05 | M69: 928.956 | N69: 928.956 | O69: 1857.912
B70: 52 | C70: 1.08 | D70: 1.08 | E70: 0.81 | F70: 0.81 | G70: 3.51 | H70: 0.91 | J70: ENCENDIDO BOMBA 2 | L70: ENCENDIDO BOMBA 2 | M70: 928.956 | N70: 928.956 | O70: 1857.912
B71: 53 | C71: 1.08 | D71: 1.08 | E71: 0.81 | F71: 0.81 | G71: 2.97 | H71: 0.77 | M71: 928.956 | N71: 928.956 | O71: 1857.912
B72: 54 | C72: 1.08 | D72: 1.08 | E72: 0.81 | F72: 0.81 | G72: 2.43 | H72: 0.63 | K72: =+IF(F71>0,IF(F72=0,"APAGADO BOMBAS",""),"") ->  | M72: 928.956 | N72: 928.956 | O72: 1857.912
B73: 55 | C73: 1.08 | D73: 1.08 | E73: 0.81 | F73: 0.81 | G73: 1.89 | H73: 0.49 | K73: =+IF(F72>0,IF(F73=0,"APAGADO BOMBAS",""),"") ->  | M73: 928.956 | N73: 928.956 | O73: 1857.912
B74: 56 | C74: 1.08 | D74: 1.08 | E74: 0.81 | F74: 0.81 | G74: 1.35 | H74: 0.35 | J74: =+IF(F73=0,IF(F74>0,"ENCENDIDO BOMBA 2",""),"") ->  | M74: 928.956 | N74: 928.956 | O74: 1857.912
B75: 57 | C75: 1.08 | D75: 1.08 | E75: 0.81 | F75: 0.81 | G75: 0.81 | H75: 0.21 | M75: 928.956 | N75: 928.956 | O75: 1857.912
B76: 58 | C76: 1.08 | D76: 1.08 | E76: 0.81 | F76: 0.81 | G76: 0.27 | H76: 0.07 | M76: 0 | N76: 0 | O76: 0
B77: 59 | C77: 1.08 | D77: 1.08 | E77: 0 | F77: 0 | G77: 1.35 | H77: 0.35 | K77: APAGADO BOMBAS | L77: APAGADO BOMBAS | M77: 0 | N77: 0 | O77: 0
B78: 60 | C78: 1.08 | D78: 1.08 | E78: 0 | F78: 0 | G78: 2.43 | H78: 0.63 | M78: 0 | N78: 0 | O78: =SUM(M78:N78) -> 0
M79: COSTO TOTAL OPERACIÓN BOMBAS POR HORA | O79: =SUM(O18:O78) -> 71529.612

Sheet NORMA 10 AÑOS
B2: CUADRO 14. MODELACIÓN PARA OPTIMIZACIÓN DE LA RED DE BOMBEO AGUAS RESIDUALES CASO NORMATIVO - DIEZ AÑOS.
B4: DATOS BOMBEO | F4: DATOS POZO EYECTOR | M4: DATOS COSTOS | R4: ELEMENTO | S4: VALOR
F5: TIEMPO LLENADO | G5: 5 | H5: MIN | M5: VOL CONCRETO | N5: =+G11*$S$21 -> 1.043818167 | O5: m3 | R5: PLACA | S5: =152000/0.257 -> 591439.6887
B6: Q DISEÑO | C6: 18 | D6: L/S | F6: VOL EYECTOR | G6: =+C6*$G$5*60/1000 -> 5.4 | H6: m3 | M6: COSTO CONCRETO | N6: =+S8 -> 631723.2296 | O6: $/m3 | R6: VIGAS | S6: 723730
B7: Q DISEÑO | C7: =+C6/1000 -> 0.018 | D7: M3/S | F7: AREA | G7: =+G6/G11 -> 3.857142857 | H7: m2 | M7: COSTO TOTALPOZO | N7: =+N5*N6 -> 659404.1834 | O7: $ | R7: MURO | S7: 580000
B8: FRACCIONAMIENTO | C8: 0.75 | F8: ALTURA (m) | G8: 0.2 | H8: PARADO BOMBAS | M8: TIEMPO AMORTIZACIÓN | N8: =365*10 -> 3650 | O8: dias | R8: PROMEDIO | S8: =+AVERAGE(S5:S7) -> 631723.2296
B9: Q BOMBEO | C9: =$C$8*C6 -> 13.5 | D9: L/S | G9: =+G8+0.4 -> 0.6 | H9: ENCENDIDO BOMBA 1 | M9: TIEMPO AMORTIZACIÓN | N9: =+N8*16 -> 58400 | O9: HORAS
B10: Q BOMBEO | C10: =C8*C7 -> 0.0135 | D10: L/S | G10: =+G9+0.4 -> 1 | H10: ENCENDIDO BOMBA 2 | M10: COSTO POZO | N10: =N5*N6/N9 -> 11.29116752 | O10: $/Hora | R10: COSTO $/KW | S10: =+(208.12+123.65)/2 -> 165.885
B11: Q BOMBEO | C11: =+C10*60 -> 0.81 | D11: M3/S | G11: =+G10+0.4 -> 1.4 | H11: NIVEL ALARMA | R11: Kw CONSUMIDOS PROM. | S11: 5.6
M12: COSTO TOTAL | N12: =N10+O79 -> 71540.90317 | O12: $
B15: 1 | C15: 2 | D15: 3 | E15: 4 | F15: 5 | G15: 6 | H15: 7 | L15: 8 | M15: 9 | N15: 10 | O15: 11
B17: TIEMPO T (MIN) | C17: Qentrada M3/MIN | D17: VOLUMEN ENTRADA (m3) | E17: VOL SALIDA 1 (m3) | F17: VOL SALIDA 2 (m3) | G17: VOLUMEN ACUMULADO (m3) | H17: ALTURA (m) | I17: OBS | J17: OBS | K17: OBS | L17: OBS | M17: COSTO KW ($) ENCENDIDO BOMBA 1 | N17: COSTO KW ($) ENCENDIDO BOMBA 2 | O17: COSTO KW ($) ENCENDIDO BOMBAS 1 Y 2
B18: 0 | E18: 0 | F18: 0 | M18: =IF(E19>0,$S$10*$S$11,0) -> 0 | N18: =+$S$10*F19 -> 0 | O18: =SUM(M18:N18) -> 0 | R18: LADO EXT POZO | S18: =SQRT(G7) -> 1.963961012
B19: 1 | C19: =+$C$7*60 -> 1.08 | D19: =+C19*1 -> 1.08 | E19: =IF(E18=0,IF(H18<$G$9,0,$C$11),IF(H18<$G$8,0,E18)) -> 0 | F19: =IF(F18=0,IF(H18<$G$9,0,IF(H18<$G$10,0,$C$11)),IF(H18<$G$8,0,F18)) -> 0 | G19: =+D19-E19-F19 -> 1.08 | H19: =+G19/$G$7 -> 0.28 | I19: =+IF(E18=0,IF(E19>0,"ENCENDIDO BOMBA 1",IF(F18=0,IF(F19>0,"ENCENDIDO BOMBA 2","")))) ->  | J19: =+IF(F18=0,IF(F19>0,"ENCENDIDO BOMBA 2",""),"") ->  | K19: =+IF(F18>0,IF(F19=0,"APAGADO BOMBAS",""),"") ->  | L19: =+CONCATENATE(I19,J19,K19) ->  | M19: 0 | N19: =IF(F20>0,$S$10*$S$11,0) -> 0 | O19: =SUM(M19:N19) -> 0 | R19: LADO INT POZO | S19: =+S18-0.2 -> 1.763961012
B20: 2 | C20: =+$C$7*60 -> 1.08 | D20: =+C20*1 -> 1.08 | E20: 0 | F20: 0 | G20: =+G19+D20-E20-F20 -> 2.16 | H20: 0.56 | I20: =+IF(E19=0,IF(E20>0,"ENCENDIDO BOMBA 1",IF(F19=0,IF(F20>0,"ENCENDIDO BOMBA 2","")))) ->  | J20: =+IF(F19=0,IF(F20>0,"ENCENDIDO BOMBA 2",""),"") ->  | K20: =+IF(F19>0,IF(F20=0,"APAGADO BOMBAS",""),"") ->  | L20: =+CONCATENATE(I20,J20,K20) ->  | M20: 0 | N20: 0 | O20: 0 | R20: AREA INTERIOR | S20: =+S19*S19 -> 3.111558452
B21: 3 | C21: 1.08 | D21: 1.08 | E21: 0 | F21: 0 | G21: 3.24 | H21: 0.84 | M21: 928.956 | N21: 0 | O21: 928.956 | R21: D AREA | S21: =+G7-S20 -> 0.7455844048
B22: 4 | C22: 1.08 | D22: 1.08 | E22: 0.81 | F22: 0 | G22: 3.51 | H22: 0.91 | I22: =+IF(E21=0,IF(E22>0,"ENCENDIDO BOMBA 1",""),"") -> ENCENDIDO BOMBA 1 | L22: ENCENDIDO BOMBA 1 | M22: 928.956 | N22: 0 | O22: 928.956
B23: 5 | C23: 1.08 | D23: 1.08 | E23: 0.81 | F23: 0 | G23: 3.78 | H23: 0.98 | I23: =+IF(E22=0,IF(E23>0,"ENCENDIDO BOMBA 1",""),"") ->  | M23: 928.956 | N23: 0 | O23: 928.956
B24: 6 | C24: 1.08 | D24: 1.08 | E24: 0.81 | F24: 0 | G24: 4.05 | H24: 1.05 | M24: 928.956 | N24: 928.956 | O24: 1857.912
B25: 7 | C25: 1.08 | D25: 1.08 | E25: 0.81 | F25: 0.81 | G25: 3.51 | H25: 0.91 | J25: ENCENDIDO BOMBA 2 | L25: ENCENDIDO BOMBA 2 | M25: 928.956 | N25: 928.956 | O25: 1857.912
B26: 8 | C26: 1.08 | D26: 1.08 | E26: 0.81 | F26: 0.81 | G26: 2.97 | H26: 0.77 | J26: =+IF(F25=0,IF(F26>0,"ENCENDIDO BOMBA 2",""),"") ->  | M26: 928.956 | N26: 928.956 | O26: 1857.912
B27: 9 | C27: 1.08 | D27: 1.08 | E27: 0.81 | F27: 0.81 | G27: 2.43 | H27: 0.63 | M27: 928.956 | N27: 928.956 | O27: 1857.912
B28: 10 | C28: 1.08 | D28: 1.08 | E28: 0.81 | F28: 0.81 | G28: 1.89 | H28: 0.49 | M28: 928.956 | N28: 928.956 | O28: 1857.912
B29: 11 | C29: 1.08 | D29: 1.08 | E29: 0.81 | F29: 0.81 | G29: 1.35 | H29: 0.35 | M29: 928.956 | N29: 928.956 | O29: 1857.912
B30: 12 | C30: 1.08 | D30: 1.08 | E30: 0.81 | F30: 0.81 | G30: 0.81 | H30: 0.21 | M30: 928.956 | N30: 928.956 | O30: 1857.912
B31: 13 | C31: 1.08 | D31: 1.08 | E31: 0.81 | F31: 0.81 | G31: 0.27 | H31: 0.07 | M31: 0 | N31: 0 | O31: 0
B32: 14 | C32: 1.08 | D32: 1.08 | E32: 0 | F32: 0 | G32: 1.35 | H32: 0.35 | J32: =+IF(F31=0,IF(F32>0,"ENCENDIDO BOMBA 2",""),"") ->  | K32: APAGADO BOMBAS | L32: APAGADO BOMBAS | M32: 0 | N32: 0 | O32: 0
B33: 15 | C33: 1.08 | D33: 1.08 | E33: 0 | F33: 0 | G33: 2.43 | H33: 0.63 | M33: 928.956 | N33: 0 | O33: 928.956
B34: 16 | C34: 1.08 | D34: 1.08 | E34: 0.81 | F34: 0 | G34: 2.7 | H34: 0.7 | I34: ENCENDIDO BOMBA 1 | K34: =+IF(F33>0,IF(F34=0,"APAGADO BOMBAS",""),"") ->  | L34: ENCENDIDO BOMBA 1 | M34: 928.956 | N34: 0 | O34: 928.956
B35: 17 | C35: 1.08 | D35: 1.08 | E35: 0.81 | F35: 0 | G35: 2.97 | H35: 0.77 | I35: =+IF(E34=0,IF(E35>0,"ENCENDIDO BOMBA 1",""),"") ->  | M35: 928.956 | N35: 0 | O35: 928.956
B36: 18 | C36: 1.08 | D36: 1.08 | E36: 0.81 | F36: 0 | G36: 3.24 | H36: 0.84 | M36: 928.956 | N36: 0 | O36: 928.956
B37: 19 | C37: 1.08 | D37: 1.08 | E37: 0.81 | F37: 0 | G37: 3.51 | H37: 0.91 | M37: 928.956 | N37: 0 | O37: 928.956
B38: 20 | C38: 1.08 | D38: 1.08 | E38: 0.81 | F38: 0 | G38: 3.78 | H38: 0.98 | M38: 928.956 | N38: 0 | O38: 928.956
B39: 21 | C39: 1.08 | D39: 1.08 | E39: 0.81 | F39: 0 | G39: 4.05 | H39: 1.05 | J39: =+IF(F38=0,IF(F39>0,"ENCENDIDO BOMBA 2",""),"") ->  | M39: 928.956 | N39: 928.956 | O39: 1857.912
B40: 22 | C40: 1.08 | D40: 1.08 | E40: 0.81 | F40: 0.81 | G40: 3.51 | H40: 0.91 | J40: ENCENDIDO BOMBA 2 | L40: ENCENDIDO BOMBA 2 | M40: 928.956 | N40: 928.956 | O40: 1857.912
B41: 23 | C41: 1.08 | D41: 1.08 | E41: 0.81 | F41: 0.81 | G41: 2.97 | H41: 0.77 | M41: 928.956 | N41: 928.956 | O41: 1857.912
B42: 24 | C42: 1.08 | D42: 1.08 | E42: 0.81 | F42: 0.81 | G42: 2.43 | H42: 0.63 | M42: 928.956 | N42: 928.956 | O42: 1857.912
B43: 25 | C43: 1.08 | D43: 1.08 | E43: 0.81 | F43: 0.81 | G43: 1.89 | H43: 0.49 | K43: =+IF(F42>0,IF(F43=0,"APAGADO BOMBAS",""),"") ->  | M43: 928.956 | N43: 928.956 | O43: 1857.912
B44: 26 | C44: 1.08 | D44: 1.08 | E44: 0.81 | F44: 0.81 | G44: 1.35 | H44: 0.35 | M44: 928.956 | N44: 928.956 | O44: 1857.912
B45: 27 | C45: 1.08 | D45: 1.08 | E45: 0.81 | F45: 0.81 | G45: 0.81 | H45: 0.21 | J45: =+IF(F44=0,IF(F45>0,"ENCENDIDO BOMBA 2",""),"") ->  | M45: 928.956 | N45: 928.956 | O45: 1857.912
B46: 28 | C46: 1.08 | D46: 1.08 | E46: 0.81 | F46: 0.81 | G46: 0.27 | H46: 0.07 | M46: 0 | N46: 0 | O46: 0
B47: 29 | C47: 1.08 | D47: 1.08 | E47: 0 | F47: 0 | G47: 1.35 | H47: 0.35 | K47: APAGADO BOMBAS | L47: APAGADO BOMBAS | M47: 0 | N47: 0 | O47: 0
B48: 30 | C48: 1.08 | D48: 1.08 | E48: 0 | F48: 0 | G48: 2.43 | H48: 0.63 | M48: 928.956 | N48: 0 | O48: 928.956
B49: 31 | C49: 1.08 | D49: 1.08 | E49: 0.81 | F49: 0 | G49: 2.7 | H49: 0.7 | I49: ENCENDIDO BOMBA 1 | L49: ENCENDIDO BOMBA 1 | M49: 928.956 | N49: 0 | O49: 928.956
B50: 32 | C50: 1.08 | D50: 1.08 | E50: 0.81 | F50: 0 | G50: 2.97 | H50: 0.77 | M50: =IF(E51>0,$S$10*$S$11,0) -> 928.956 | N50: 0 | O50: 928.956
B51: 33 | C51: 1.08 | D51: 1.08 | E51: =IF(E50=0,IF(H50<$G$9,0,$C$11),IF(H50<$G$8,0,E50)) -> 0.81 | F51: =IF(F50=0,IF(H50<$G$9,0,IF(H50<$G$10,0,$C$11)),IF(H50<$G$8,0,F50)) -> 0 | G51: 3.24 | H51: =+G51/$G$7 -> 0.84 | M51: 928.956 | N51: =IF(F52>0,$S$10*$S$11,0) -> 0 | O51: 928.956
B52: 34 | C52: 1.08 | D52: 1.08 | E52: 0.81 | F52: 0 | G52: 3.51 | H52: 0.91 | J52: =+IF(F51=0,IF(F52>0,"ENCENDIDO BOMBA 2",""),"") ->  | M52: 928.956 | N52: 0 | O52: 928.956
B53: 35 | C53: 1.08 | D53: 1.08 | E53: 0.81 | F53: 0 | G53: 3.78 | H53: 0.98 | M53: 928.956 | N53: 0 | O53: 928.956
B54: 36 | C54: 1.08 | D54: 1.08 | E54: 0.81 | F54: 0 | G54: 4.05 | H54: 1.05 | M54: 928.956 | N54: 928.956 | O54: 1857.912
B55: 37 | C55: 1.08 | D55: 1.08 | E55: 0.81 | F55: 0.81 | G55: 3.51 | H55: 0.91 | J55: ENCENDIDO BOMBA 2 | L55: ENCENDIDO BOMBA 2 | M55: 928.956 | N55: 928.956 | O55: 1857.912
B56: 38 | C56: 1.08 | D56: 1.08 | E56: 0.81 | F56: 0.81 | G56: 2.97 | H56: 0.77 | M56: 928.956 | N56: 928.956 | O56: 1857.912
B57: 39 | C57: 1.08 | D57: 1.08 | E57: 0.81 | F57: 0.81 | G57: 2.43 | H57: 0.63 | M57: 928.956 | N57: 928.956 | O57: 1857.912
B58: 40 | C58: 1.08 | D58: 1.08 | E58: 0.81 | F58: 0.81 | G58: 1.89 | H58: 0.49 | J58: =+IF(F57=0,IF(F58>0,"ENCENDIDO BOMBA 2",""),"") ->  | K58: =+IF(F57>0,IF(F58=0,"APAGADO BOMBAS",""),"") ->  | M58: 928.956 | N58: 928.956 | O58: 1857.912
B59: 41 | C59: 1.08 | D59: 1.08 | E59: 0.81 | F59: 0.81 | G59: 1.35 | H59: 0.35 | K59: =+IF(F58>0,IF(F59=0,"APAGADO BOMBAS",""),"") ->  | M59: 928.956 | N59: 928.956 | O59: 1857.912
B60: 42 | C60: 1.08 | D60: 1.08 | E60: 0.81 | F60: 0.81 | G60: 0.81 | H60: 0.21 | K60: =+IF(F59>0,IF(F60=0,"APAGADO BOMBAS",""),"") ->  | M60: 928.956 | N60: 928.956 | O60: 1857.912
B61: 43 | C61: 1.08 | D61: 1.08 | E61: 0.81 | F61: 0.81 | G61: 0.27 | H61: 0.07 | M61: 0 | N61: 0 | O61: 0
B62: 44 | C62: 1.08 | D62: 1.08 | E62: 0 | F62: 0 | G62: 1.35 | H62: 0.35 | K62: APAGADO BOMBAS | L62: APAGADO BOMBAS | M62: 0 | N62: 0 | O62: 0
B63: 45 | C63: 1.08 | D63: 1.08 | E63: 0 | F63: 0 | G63: 2.43 | H63: 0.63 | M63: 928.956 | N63: 0 | O63: 928.956
B64: 46 | C64: 1.08 | D64: 1.08 | E64: 0.81 | F64: 0 | G64: 2.7 | H64: 0.7 | I64: ENCENDIDO BOMBA 1 | L64: ENCENDIDO BOMBA 1 | M64: 928.956 | N64: 0 | O64: 928.956
B65: 47 | C65: 1.08 | D65: 1.08 | E65: 0.81 | F65: 0 | G65: 2.97 | H65: 0.77 | J65: =+IF(F64=0,IF(F65>0,"ENCENDIDO BOMBA 2",""),"") ->  | M65: 928.956 | N65: 0 | O65: 928.956
B66: 48 | C66: 1.08 | D66: 1.08 | E66: 0.81 | F66: 0 | G66: 3.24 | H66: 0.84 | M66: 928.956 | N66: 0 | O66: 928.956
B67: 49 | C67: 1.08 | D67: 1.08 | E67: 0.81 | F67: 0 | G67: 3.51 | H67: 0.91 | J67: =+IF(F66=0,IF(F67>0,"ENCENDIDO BOMBA 2",""),"") ->  | M67: 928.956 | N67: 0 | O67: 928.956
B68: 50 | C68: 1.08 | D68: 1.08 | E68: 0.81 | F68: 0 | G68: 3.78 | H68: 0.98 | M68: 928.956 | N68: 0 | O68: 928.956
B69: 51 | C69: 1.08 | D69: 1.08 | E69: 0.81 | F69: 0 | G69: 4.05 | H69: 1.05 | M69: 928.956 | N69: 928.956 | O69: 1857.912
B70: 52 | C70: 1.08 | D70: 1.08 | E70: 0.81 | F70: 0.81 | G70: 3.51 | H70: 0.91 | J70: ENCENDIDO BOMBA 2 | L70: ENCENDIDO BOMBA 2 | M70: 928.956 | N70: 928.956 | O70: 1857.912
B71: 53 | C71: 1.08 | D71: 1.08 | E71: 0.81 | F71: 0.81 | G71: 2.97 | H71: 0.77 | M71: 928.956 | N71: 928.956 | O71: 1857.912
B72: 54 | C72: 1.08 | D72: 1.08 | E72: 0.81 | F72: 0.81 | G72: 2.43 | H72: 0.63 | K72: =+IF(F71>0,IF(F72=0,"APAGADO BOMBAS",""),"") ->  | M72: 928.956 | N72: 928.956 | O72: 1857.912
B73: 55 | C73: 1.08 | D73: 1.08 | E73: 0.81 | F73: 0.81 | G73: 1.89 | H73: 0.49 | K73: =+IF(F72>0,IF(F73=0,"APAGADO BOMBAS",""),"") ->  | M73: 928.956 | N73: 928.956 | O73: 1857.912
B74: 56 | C74: 1.08 | D74: 1.08 | E74: 0.81 | F74: 0.81 | G74: 1.35 | H74: 0.35 | J74: =+IF(F73=0,IF(F74>0,"ENCENDIDO BOMBA 2",""),"") ->  | M74: 928.956 | N74: 928.956 | O74: 1857.912
B75: 57 | C75: 1.08 | D75: 1.08 | E75: 0.81 | F75: 0.81 | G75: 0.81 | H75: 0.21 | M75: 928.956 | N75: 928.956 | O75: 1857.912
B76: 58 | C76: 1.08 | D76: 1.08 | E76: 0.81 | F76: 0.81 | G76: 0.27 | H76: 0.07 | M76: 0 | N76: 0 | O76: 0
B77: 59 | C77: 1.08 | D77: 1.08 | E77: 0 | F77: 0 | G77: 1.35 | H77: 0.35 | K77: APAGADO BOMBAS | L77: APAGADO BOMBAS | M77: 0 | N77: 0 | O77: 0
B78: 60 | C78: 1.08 | D78: 1.08 | E78: 0 | F78: 0 | G78: 2.43 | H78: 0.63 | M78: 0 | N78: 0 | O78: =SUM(M78:N78) -> 0
M79: COSTO TOTAL OPERACIÓN BOMBAS POR HORA | O79: =SUM(O18:O78) -> 71529.612

Sheet ESC 1 1 AÑO
B2: CUADRO 15. MODELACIÓN PARA OPTIMIZACIÓN DE LA RED DE BOMBEO AGUAS RESIDUALES - ESCENARIO 1, UN AÑO.
B4: DATOS BOMBEO | F4: DATOS POZO EYECTOR | M4: DATOS COSTOS | R4: ELEMENTO | S4: VALOR
F5: TIEMPO LLENADO | G5: 58.34372785 | H5: MIN | M5: VOL CONCRETO | N5: =+G11*$S$21 -> 3.700928884 | O5: m3 | R5: PLACA | S5: =152000/0.257 -> 591439.6887
B6: Q DISEÑO | C6: 18 | D6: L/S | F6: VOL EYECTOR | G6: =+C6*$G$5*60/1000 -> 63.01122608 | H6: m3 | M6: COSTO CONCRETO | N6: =+S8 -> 631723.2296 | O6: $/m3 | R6: VIGAS | S6: 723730
B7: Q DISEÑO | C7: =+C6/1000 -> 0.018 | D7: M3/S | F7: AREA | G7: =+G6/G11 -> 45.00801863 | H7: m2 | M7: COSTO TOTALPOZO | N7: =+N5*N6 -> 2337962.747 | O7: $ | R7: MURO | S7: 580000
B8: FRACCIONAMIENTO | C8: 0.6534577546 | F8: ALTURA (m) | G8: 0.2 | H8: PARADO BOMBAS | M8: TIEMPO AMORTIZACIÓN | N8: =365 -> 365 | O8: dias | R8: PROMEDIO | S8: =+AVERAGE(S5:S7) -> 631723.2296
B9: Q BOMBEO | C9: =$C$8*C6 -> 11.76223958 | D9: L/S | G9: =+G8+0.4 -> 0.6 | H9: ENCENDIDO BOMBA 1 | M9: TIEMPO AMORTIZACIÓN | N9: =+N8*16 -> 5840 | O9: HORAS
B10: Q BOMBEO | C10: =C8*C7 -> 0.01176223958 | D10: L/S | G10: =+G9+0.4 -> 1 | H10: ENCENDIDO BOMBA 2 | M10: COSTO POZO | N10: =N5*N6/N9 -> 400.3360869 | O10: $/Hora | R10: COSTO $/KW | S10: =+(208.12+123.65)/2 -> 165.885
B11: Q BOMBEO | C11: =+C10*60 -> 0.705734375 | D11: M3/S | G11: =+G10+0.4 -> 1.4 | H11: NIVEL ALARMA | R11: Kw CONSUMIDOS PROM. | S11: 5.6
M12: COSTO TOTAL | N12: =N10+O79 -> 31984.84009 | O12: $
B15: 1 | C15: 2 | D15: 3 | E15: 4 | F15: 5 | G15: 6 | H15: 7 | L15: 8 | M15: 9 | N15: 10 | O15: 11
B17: TIEMPO T (MIN) | C17: Qentrada M3/MIN | D17: VOLUMEN ENTRADA (m3) | E17: VOL SALIDA 1 (m3) | F17: VOL SALIDA 2 (m3) | G17: VOLUMEN ACUMULADO (m3) | H17: ALTURA (m) | I17: OBS | J17: OBS | K17: OBS | L17: OBS | M17: COSTO KW ($) ENCENDIDO BOMBA 1 | N17: COSTO KW ($) ENCENDIDO BOMBA 2 | O17: COSTO KW ($) ENCENDIDO BOMBAS 1 Y 2
B18: 0 | E18: 0 | F18: 0 | M18: =IF(E19>0,$S$10*$S$11,0) -> 0 | N18: =+$S$10*F19 -> 0 | O18: =SUM(M18:N18) -> 0 | R18: LADO EXT POZO | S18: =SQRT(G7) -> 6.708801579
B19: 1 | C19: =+$C$7*60 -> 1.08 | D19: =+C19*1 -> 1.08 | E19: =IF(E18=0,IF(H18<$G$9,0,$C$11),IF(H18<$G$8,0,E18)) -> 0 | F19: =IF(F18=0,IF(H18<$G$9,0,IF(H18<$G$10,0,$C$11)),IF(H18<$G$8,0,F18)) -> 0 | G19: =+D19-E19-F19 -> 1.08 | H19: =+G19/$G$7 -> 0.02399572416 | I19: =+IF(E18=0,IF(E19>0,"ENCENDIDO BOMBA 1",IF(F18=0,IF(F19>0,"ENCENDIDO BOMBA 2","")))) ->  | J19: =+IF(F18=0,IF(F19>0,"ENCENDIDO BOMBA 2",""),"") ->  | K19: =+IF(F18>0,IF(F19=0,"APAGADO BOMBAS",""),"") ->  | L19: =+CONCATENATE(I19,J19,K19) ->  | M19: 0 | N19: =IF(F20>0,$S$10*$S$11,0) -> 0 | O19: =SUM(M19:N19) -> 0 | R19: LADO INT POZO | S19: =+S18-0.2 -> 6.508801579
B20: 2 | C20: =+$C$7*60 -> 1.08 | D20: =+C20*1 -> 1.08 | E20: 0 | F20: 0 | G20: =+G19+D20-E20-F20 -> 2.16 | H20: 0.04799144832 | I20: =+IF(E19=0,IF(E20>0,"ENCENDIDO BOMBA 1",IF(F19=0,IF(F20>0,"ENCENDIDO BOMBA 2","")))) ->  | J20: =+IF(F19=0,IF(F20>0,"ENCENDIDO BOMBA 2",""),"") ->  | K20: =+IF(F19>0,IF(F20=0,"APAGADO BOMBAS",""),"") ->  | L20: =+CONCATENATE(I20,J20,K20) ->  | M20: 0 | N20: 0 | O20: 0 | R20: AREA INTERIOR | S20: =+S19*S19 -> 42.364498
B21: 3 | C21: 1.08 | D21: 1.08 | E21: 0 | F21: 0 | G21: 3.24 | H21: 0.07198717248 | M21: 0 | N21: 0 | O21: 0 | R21: D AREA | S21: =+G7-S20 -> 2.643520632
B22: 4 | C22: 1.08 | D22: 1.08 | E22: 0 | F22: 0 | G22: 4.32 | H22: 0.09598289664 | I22: =+IF(E21=0,IF(E22>0,"ENCENDIDO BOMBA 1",""),"") ->  | M22: 0 | N22: 0 | O22: 0
B23: 5 | C23: 1.08 | D23: 1.08 | E23: 0 | F23: 0 | G23: 5.4 | H23: 0.1199786208 | I23: =+IF(E22=0,IF(E23>0,"ENCENDIDO BOMBA 1",""),"") ->  | M23: 0 | N23: 0 | O23: 0
B24: 6 | C24: 1.08 | D24: 1.08 | E24: 0 | F24: 0 | G24: 6.48 | H24: 0.143974345 | M24: 0 | N24: 0 | O24: 0
B25: 7 | C25: 1.08 | D25: 1.08 | E25: 0 | F25: 0 | G25: 7.56 | H25: 0.1679700691 | M25: 0 | N25: 0 | O25: 0
B26: 8 | C26: 1.08 | D26: 1.08 | E26: 0 | F26: 0 | G26: 8.64 | H26: 0.1919657933 | J26: =+IF(F25=0,IF(F26>0,"ENCENDIDO BOMBA 2",""),"") ->  | M26: 0 | N26: 0 | O26: 0
B27: 9 | C27: 1.08 | D27: 1.08 | E27: 0 | F27: 0 | G27: 9.72 | H27: 0.2159615174 | M27: 0 | N27: 0 | O27: 0
B28: 10 | C28: 1.08 | D28: 1.08 | E28: 0 | F28: 0 | G28: 10.8 | H28: 0.2399572416 | M28: 0 | N28: 0 | O28: 0
B29: 11 | C29: 1.08 | D29: 1.08 | E29: 0 | F29: 0 | G29: 11.88 | H29: 0.2639529657 | M29: 0 | N29: 0 | O29: 0
B30: 12 | C30: 1.08 | D30: 1.08 | E30: 0 | F30: 0 | G30: 12.96 | H30: 0.2879486899 | M30: 0 | N30: 0 | O30: 0
B31: 13 | C31: 1.08 | D31: 1.08 | E31: 0 | F31: 0 | G31: 14.04 | H31: 0.3119444141 | M31: 0 | N31: 0 | O31: 0
B32: 14 | C32: 1.08 | D32: 1.08 | E32: 0 | F32: 0 | G32: 15.12 | H32: 0.3359401382 | J32: =+IF(F31=0,IF(F32>0,"ENCENDIDO BOMBA 2",""),"") ->  | M32: 0 | N32: 0 | O32: 0
B33: 15 | C33: 1.08 | D33: 1.08 | E33: 0 | F33: 0 | G33: 16.2 | H33: 0.3599358624 | M33: 0 | N33: 0 | O33: 0
B34: 16 | C34: 1.08 | D34: 1.08 | E34: 0 | F34: 0 | G34: 17.28 | H34: 0.3839315865 | K34: =+IF(F33>0,IF(F34=0,"APAGADO BOMBAS",""),"") ->  | M34: 0 | N34: 0 | O34: 0
B35: 17 | C35: 1.08 | D35: 1.08 | E35: 0 | F35: 0 | G35: 18.36 | H35: 0.4079273107 | I35: =+IF(E34=0,IF(E35>0,"ENCENDIDO BOMBA 1",""),"") ->  | M35: 0 | N35: 0 | O35: 0
B36: 18 | C36: 1.08 | D36: 1.08 | E36: 0 | F36: 0 | G36: 19.44 | H36: 0.4319230349 | M36: 0 | N36: 0 | O36: 0
B37: 19 | C37: 1.08 | D37: 1.08 | E37: 0 | F37: 0 | G37: 20.52 | H37: 0.455918759 | M37: 0 | N37: 0 | O37: 0
B38: 20 | C38: 1.08 | D38: 1.08 | E38: 0 | F38: 0 | G38: 21.6 | H38: 0.4799144832 | M38: 0 | N38: 0 | O38: 0
B39: 21 | C39: 1.08 | D39: 1.08 | E39: 0 | F39: 0 | G39: 22.68 | H39: 0.5039102073 | J39: =+IF(F38=0,IF(F39>0,"ENCENDIDO BOMBA 2",""),"") ->  | M39: 0 | N39: 0 | O39: 0
B40: 22 | C40: 1.08 | D40: 1.08 | E40: 0 | F40: 0 | G40: 23.76 | H40: 0.5279059315 | M40: 0 | N40: 0 | O40: 0
B41: 23 | C41: 1.08 | D41: 1.08 | E41: 0 | F41: 0 | G41: 24.84 | H41: 0.5519016557 | M41: 0 | N41: 0 | O41: 0
B42: 24 | C42: 1.08 | D42: 1.08 | E42: 0 | F42: 0 | G42: 25.92 | H42: 0.5758973798 | M42: 0 | N42: 0 | O42: 0
B43: 25 | C43: 1.08 | D43: 1.08 | E43: 0 | F43: 0 | G43: 27 | H43: 0.599893104 | K43: =+IF(F42>0,IF(F43=0,"APAGADO BOMBAS",""),"") ->  | M43: 0 | N43: 0 | O43: 0
B44: 26 | C44: 1.08 | D44: 1.08 | E44: 0 | F44: 0 | G44: 28.08 | H44: 0.6238888281 | M44: 928.956 | N44: 0 | O44: 928.956
B45: 27 | C45: 1.08 | D45: 1.08 | E45: 0.705734375 | F45: 0 | G45: 28.45426563 | H45: 0.6322043603 | I45: ENCENDIDO BOMBA 1 | J45: =+IF(F44=0,IF(F45>0,"ENCENDIDO BOMBA 2",""),"") ->  | L45: ENCENDIDO BOMBA 1 | M45: 928.956 | N45: 0 | O45: 928.956
B46: 28 | C46: 1.08 | D46: 1.08 | E46: 0.705734375 | F46: 0 | G46: 28.82853125 | H46: 0.6405198924 | M46: 928.956 | N46: 0 | O46: 928.956
B47: 29 | C47: 1.08 | D47: 1.08 | E47: 0.705734375 | F47: 0 | G47: 29.20279688 | H47: 0.6488354245 | M47: 928.956 | N47: 0 | O47: 928.956
B48: 30 | C48: 1.08 | D48: 1.08 | E48: 0.705734375 | F48: 0 | G48: 29.5770625 | H48: 0.6571509566 | M48: 928.956 | N48: 0 | O48: 928.956
B49: 31 | C49: 1.08 | D49: 1.08 | E49: 0.705734375 | F49: 0 | G49: 29.95132813 | H49: 0.6654664888 | M49: 928.956 | N49: 0 | O49: 928.956
B50: 32 | C50: 1.08 | D50: 1.08 | E50: 0.705734375 | F50: 0 | G50: 30.32559375 | H50: 0.6737820209 | M50: =IF(E51>0,$S$10*$S$11,0) -> 928.956 | N50: 0 | O50: 928.956
B51: 33 | C51: 1.08 | D51: 1.08 | E51: =IF(E50=0,IF(H50<$G$9,0,$C$11),IF(H50<$G$8,0,E50)) -> 0.705734375 | F51: =IF(F50=0,IF(H50<$G$9,0,IF(H50<$G$10,0,$C$11)),IF(H50<$G$8,0,F50)) -> 0 | G51: 30.69985938 | H51: =+G51/$G$7 -> 0.682097553 | M51: 928.956 | N51: =IF(F52>0,$S$10*$S$11,0) -> 0 | O51: 928.956
B52: 34 | C52: 1.08 | D52: 1.08 | E52: 0.705734375 | F52: 0 | G52: 31.074125 | H52: 0.6904130852 | J52: =+IF(F51=0,IF(F52>0,"ENCENDIDO BOMBA 2",""),"") ->  | M52: 928.956 | N52: 0 | O52: 928.956
B53: 35 | C53: 1.08 | D53: 1.08 | E53: 0.705734375 | F53: 0 | G53: 31.44839063 | H53: 0.6987286173 | M53: 928.956 | N53: 0 | O53: 928.956
B54: 36 | C54: 1.08 | D54: 1.08 | E54: 0.705734375 | F54: 0 | G54: 31.82265625 | H54: 0.7070441494 | M54: 928.956 | N54: 0 | O54: 928.956
B55: 37 | C55: 1.08 | D55: 1.08 | E55: 0.705734375 | F55: 0 | G55: 32.19692188 | H55: 0.7153596816 | M55: 928.956 | N55: 0 | O55: 928.956
B56: 38 | C56: 1.08 | D56: 1.08 | E56: 0.705734375 | F56: 0 | G56: 32.5711875 | H56: 0.7236752137 | M56: 928.956 | N56: 0 | O56: 928.956
B57: 39 | C57: 1.08 | D57: 1.08 | E57: 0.705734375 | F57: 0 | G57: 32.94545313 | H57: 0.7319907458 | M57: 928.956 | N57: 0 | O57: 928.956
B58: 40 | C58: 1.08 | D58: 1.08 | E58: 0.705734375 | F58: 0 | G58: 33.31971875 | H58: 0.7403062779 | J58: =+IF(F57=0,IF(F58>0,"ENCENDIDO BOMBA 2",""),"") ->  | K58: =+IF(F57>0,IF(F58=0,"APAGADO BOMBAS",""),"") ->  | M58: 928.956 | N58: 0 | O58: 928.956
B59: 41 | C59: 1.08 | D59: 1.08 | E59: 0.705734375 | F59: 0 | G59: 33.69398438 | H59: 0.7486218101 | K59: =+IF(F58>0,IF(F59=0,"APAGADO BOMBAS",""),"") ->  | M59: 928.956 | N59: 0 | O59: 928.956
B60: 42 | C60: 1.08 | D60: 1.08 | E60: 0.705734375 | F60: 0 | G60: 34.06825 | H60: 0.7569373422 | K60: =+IF(F59>0,IF(F60=0,"APAGADO BOMBAS",""),"") ->  | M60: 928.956 | N60: 0 | O60: 928.956
B61: 43 | C61: 1.08 | D61: 1.08 | E61: 0.705734375 | F61: 0 | G61: 34.44251563 | H61: 0.7652528743 | M61: 928.956 | N61: 0 | O61: 928.956
B62: 44 | C62: 1.08 | D62: 1.08 | E62: 0.705734375 | F62: 0 | G62: 34.81678125 | H62: 0.7735684065 | M62: 928.956 | N62: 0 | O62: 928.956
B63: 45 | C63: 1.08 | D63: 1.08 | E63: 0.705734375 | F63: 0 | G63: 35.19104688 | H63: 0.7818839386 | M63: 928.956 | N63: 0 | O63: 928.956
B64: 46 | C64: 1.08 | D64: 1.08 | E64: 0.705734375 | F64: 0 | G64: 35.5653125 | H64: 0.7901994707 | M64: 928.956 | N64: 0 | O64: 928.956
B65: 47 | C65: 1.08 | D65: 1.08 | E65: 0.705734375 | F65: 0 | G65: 35.93957813 | H65: 0.7985150028 | J65: =+IF(F64=0,IF(F65>0,"ENCENDIDO BOMBA 2",""),"") ->  | M65: 928.956 | N65: 0 | O65: 928.956
B66: 48 | C66: 1.08 | D66: 1.08 | E66: 0.705734375 | F66: 0 | G66: 36.31384375 | H66: 0.806830535 | M66: 928.956 | N66: 0 | O66: 928.956
B67: 49 | C67: 1.08 | D67: 1.08 | E67: 0.705734375 | F67: 0 | G67: 36.68810938 | H67: 0.8151460671 | J67: =+IF(F66=0,IF(F67>0,"ENCENDIDO BOMBA 2",""),"") ->  | M67: 928.956 | N67: 0 | O67: 928.956
B68: 50 | C68: 1.08 | D68: 1.08 | E68: 0.705734375 | F68: 0 | G68: 37.062375 | H68: 0.8234615992 | M68: 928.956 | N68: 0 | O68: 928.956
B69: 51 | C69: 1.08 | D69: 1.08 | E69: 0.705734375 | F69: 0 | G69: 37.43664063 | H69: 0.8317771314 | M69: 928.956 | N69: 0 | O69: 928.956
B70: 52 | C70: 1.08 | D70: 1.08 | E70: 0.705734375 | F70: 0 | G70: 37.81090625 | H70: 0.8400926635 | M70: 928.956 | N70: 0 | O70: 928.956
B71: 53 | C71: 1.08 | D71: 1.08 | E71: 0.705734375 | F71: 0 | G71: 38.18517188 | H71: 0.8484081956 | M71: 928.956 | N71: 0 | O71: 928.956
B72: 54 | C72: 1.08 | D72: 1.08 | E72: 0.705734375 | F72: 0 | G72: 38.5594375 | H72: 0.8567237278 | K72: =+IF(F71>0,IF(F72=0,"APAGADO BOMBAS",""),"") ->  | M72: 928.956 | N72: 0 | O72: 928.956
B73: 55 | C73: 1.08 | D73: 1.08 | E73: 0.705734375 | F73: 0 | G73: 38.93370313 | H73: 0.8650392599 | K73: =+IF(F72>0,IF(F73=0,"APAGADO BOMBAS",""),"") ->  | M73: 928.956 | N73: 0 | O73: 928.956
B74: 56 | C74: 1.08 | D74: 1.08 | E74: 0.705734375 | F74: 0 | G74: 39.30796875 | H74: 0.873354792 | J74: =+IF(F73=0,IF(F74>0,"ENCENDIDO BOMBA 2",""),"") ->  | M74: 928.956 | N74: 0 | O74: 928.956
B75: 57 | C75: 1.08 | D75: 1.08 | E75: 0.705734375 | F75: 0 | G75: 39.68223438 | H75: 0.8816703241 | M75: 928.956 | N75: 0 | O75: 928.956
B76: 58 | C76: 1.08 | D76: 1.08 | E76: 0.705734375 | F76: 0 | G76: 40.0565 | H76: 0.8899858563 | M76: 928.956 | N76: 0 | O76: 928.956
B77: 59 | C77: 1.08 | D77: 1.08 | E77: 0.705734375 | F77: 0 | G77: 40.43076563 | H77: 0.8983013884 | M77: 928.956 | N77: 0 | O77: 928.956
B78: 60 | C78: 1.08 | D78: 1.08 | E78: 0.705734375 | F78: 0 | G78: 40.80503125 | H78: 0.9066169205 | M78: 0 | N78: 0 | O78: =SUM(M78:N78) -> 0
M79: COSTO TOTAL OPERACIÓN BOMBAS POR HORA | O79: =SUM(O18:O78) -> 31584.504
H80: B2 | L80: =+COUNTIF(L18:L78,"ENCENDIDO BOMBA 2") -> 0

Sheet ESC 1 10AÑOS
B2: CUADRO 16. MODELACIÓN PARA OPTIMIZACIÓN DE LA RED DE BOMBEO AGUAS RESIDUALES-ESCENARIO 1, DIEZ AÑOS.
B4: DATOS BOMBEO | F4: DATOS POZO EYECTOR | M4: DATOS COSTOS | R4: ELEMENTO | S4: VALOR
F5: TIEMPO LLENADO | G5: 58.82459751 | H5: MIN | M5: VOL CONCRETO | N5: =+G11*$S$21 -> 3.716379439 | O5: m3 | R5: PLACA | S5: =152000/0.257 -> 591439.6887
B6: Q DISEÑO | C6: 18 | D6: L/S | F6: VOL EYECTOR | G6: =+C6*$G$5*60/1000 -> 63.53056531 | H6: m3 | M6: COSTO CONCRETO | N6: =+S8 -> 631723.2296 | O6: $/m3 | R6: VIGAS | S6: 723730
B7: Q DISEÑO | C7: =+C6/1000 -> 0.018 | D7: M3/S | F7: AREA | G7: =+G6/G11 -> 45.37897522 | H7: m2 | M7: COSTO TOTALPOZO | N7: =+N5*N6 -> 2347723.221 | O7: $ | R7: MURO | S7: 580000
B8: FRACCIONAMIENTO | C8: 0.9754924831 | F8: ALTURA (m) | G8: 0.2 | H8: PARADO BOMBAS | M8: TIEMPO AMORTIZACIÓN | N8: =365*10 -> 3650 | O8: dias | R8: PROMEDIO | S8: =+AVERAGE(S5:S7) -> 631723.2296
B9: Q BOMBEO | C9: =$C$8*C6 -> 17.5588647 | D9: L/S | G9: =+G8+0.4 -> 0.6 | H9: ENCENDIDO BOMBA 1 | M9: TIEMPO AMORTIZACIÓN | N9: =+N8*16 -> 58400 | O9: HORAS
B10: Q BOMBEO | C10: =C8*C7 -> 0.0175588647 | D10: L/S | G10: =+G9+0.4 -> 1 | H10: ENCENDIDO BOMBA 2 | M10: COSTO POZO | N10: =N5*N6/N9 -> 40.20074009 | O10: $/Hora | R10: COSTO $/KW | S10: =+(208.12+123.65)/2 -> 165.885
B11: Q BOMBEO | C11: =+C10*60 -> 1.053531882 | D11: M3/S | G11: =+G10+0.4 -> 1.4 | H11: NIVEL ALARMA | R11: Kw CONSUMIDOS PROM. | S11: 5.6
M12: COSTO TOTAL | N12: =N10+O79 -> 31624.70474 | O12: $
B15: 1 | C15: 2 | D15: 3 | E15: 4 | F15: 5 | G15: 6 | H15: 7 | L15: 8 | M15: 9 | N15: 10 | O15: 11
B17: TIEMPO T (MIN) | C17: Qentrada M3/MIN | D17: VOLUMEN ENTRADA (m3) | E17: VOL SALIDA 1 (m3) | F17: VOL SALIDA 2 (m3) | G17: VOLUMEN ACUMULADO (m3) | H17: ALTURA (m) | I17: OBS | J17: OBS | K17: OBS | L17: OBS | M17: COSTO KW ($) ENCENDIDO BOMBA 1 | N17: COSTO KW ($) ENCENDIDO BOMBA 2 | O17: COSTO KW ($) ENCENDIDO BOMBAS 1 Y 2
B18: 0 | E18: 0 | F18: 0 | M18: =IF(E19>0,$S$10*$S$11,0) -> 0 | N18: =+$S$10*F19 -> 0 | O18: =SUM(M18:N18) -> 0 | R18: LADO EXT POZO | S18: =SQRT(G7) -> 6.736391855
B19: 1 | C19: =+$C$7*60 -> 1.08 | D19: =+C19*1 -> 1.08 | E19: =IF(E18=0,IF(H18<$G$9,0,$C$11),IF(H18<$G$8,0,E18)) -> 0 | F19: =IF(F18=0,IF(H18<$G$9,0,IF(H18<$G$10,0,$C$11)),IF(H18<$G$8,0,F18)) -> 0 | G19: =+D19-E19-F19 -> 1.08 | H19: =+G19/$G$7 -> 0.02379956786 | I19: =+IF(E18=0,IF(E19>0,"ENCENDIDO BOMBA 1",IF(F18=0,IF(F19>0,"ENCENDIDO BOMBA 2","")))) ->  | J19: =+IF(F18=0,IF(F19>0,"ENCENDIDO BOMBA 2",""),"") ->  | K19: =+IF(F18>0,IF(F19=0,"APAGADO BOMBAS",""),"") ->  | L19: =+CONCATENATE(I19,J19,K19) ->  | M19: 0 | N19: =IF(F20>0,$S$10*$S$11,0) -> 0 | O19: =SUM(M19:N19) -> 0 | R19: LADO INT POZO | S19: =+S18-0.2 -> 6.536391855
B20: 2 | C20: =+$C$7*60 -> 1.08 | D20: =+C20*1 -> 1.08 | E20: 0 | F20: 0 | G20: =+G19+D20-E20-F20 -> 2.16 | H20: 0.04759913571 | I20: =+IF(E19=0,IF(E20>0,"ENCENDIDO BOMBA 1",IF(F19=0,IF(F20>0,"ENCENDIDO BOMBA 2","")))) ->  | J20: =+IF(F19=0,IF(F20>0,"ENCENDIDO BOMBA 2",""),"") ->  | K20: =+IF(F19>0,IF(F20=0,"APAGADO BOMBAS",""),"") ->  | L20: =+CONCATENATE(I20,J20,K20) ->  | M20: 0 | N20: 0 | O20: 0 | R20: AREA INTERIOR | S20: =+S19*S19 -> 42.72441848
B21: 3 | C21: 1.08 | D21: 1.08 | E21: 0 | F21: 0 | G21: 3.24 | H21: 0.07139870357 | M21: 0 | N21: 0 | O21: 0 | R21: D AREA | S21: =+G7-S20 -> 2.654556742
B22: 4 | C22: 1.08 | D22: 1.08 | E22: 0 | F22: 0 | G22: 4.32 | H22: 0.09519827142 | I22: =+IF(E21=0,IF(E22>0,"ENCENDIDO BOMBA 1",""),"") ->  | M22: 0 | N22: 0 | O22: 0
B23: 5 | C23: 1.08 | D23: 1.08 | E23: 0 | F23: 0 | G23: 5.4 | H23: 0.1189978393 | I23: =+IF(E22=0,IF(E23>0,"ENCENDIDO BOMBA 1",""),"") ->  | M23: 0 | N23: 0 | O23: 0
B24: 6 | C24: 1.08 | D24: 1.08 | E24: 0 | F24: 0 | G24: 6.48 | H24: 0.1427974071 | M24: 0 | N24: 0 | O24: 0
B25: 7 | C25: 1.08 | D25: 1.08 | E25: 0 | F25: 0 | G25: 7.56 | H25: 0.166596975 | M25: 0 | N25: 0 | O25: 0
B26: 8 | C26: 1.08 | D26: 1.08 | E26: 0 | F26: 0 | G26: 8.64 | H26: 0.1903965428 | J26: =+IF(F25=0,IF(F26>0,"ENCENDIDO BOMBA 2",""),"") ->  | M26: 0 | N26: 0 | O26: 0
B27: 9 | C27: 1.08 | D27: 1.08 | E27: 0 | F27: 0 | G27: 9.72 | H27: 0.2141961107 | M27: 0 | N27: 0 | O27: 0
B28: 10 | C28: 1.08 | D28: 1.08 | E28: 0 | F28: 0 | G28: 10.8 | H28: 0.2379956786 | M28: 0 | N28: 0 | O28: 0
B29: 11 | C29: 1.08 | D29: 1.08 | E29: 0 | F29: 0 | G29: 11.88 | H29: 0.2617952464 | M29: 0 | N29: 0 | O29: 0
B30: 12 | C30: 1.08 | D30: 1.08 | E30: 0 | F30: 0 | G30: 12.96 | H30: 0.2855948143 | M30: 0 | N30: 0 | O30: 0
B31: 13 | C31: 1.08 | D31: 1.08 | E31: 0 | F31: 0 | G31: 14.04 | H31: 0.3093943821 | M31: 0 | N31: 0 | O31: 0
B32: 14 | C32: 1.08 | D32: 1.08 | E32: 0 | F32: 0 | G32: 15.12 | H32: 0.33319395 | J32: =+IF(F31=0,IF(F32>0,"ENCENDIDO BOMBA 2",""),"") ->  | M32: 0 | N32: 0 | O32: 0
B33: 15 | C33: 1.08 | D33: 1.08 | E33: 0 | F33: 0 | G33: 16.2 | H33: 0.3569935178 | M33: 0 | N33: 0 | O33: 0
B34: 16 | C34: 1.08 | D34: 1.08 | E34: 0 | F34: 0 | G34: 17.28 | H34: 0.3807930857 | K34: =+IF(F33>0,IF(F34=0,"APAGADO BOMBAS",""),"") ->  | M34: 0 | N34: 0 | O34: 0
B35: 17 | C35: 1.08 | D35: 1.08 | E35: 0 | F35: 0 | G35: 18.36 | H35: 0.4045926535 | I35: =+IF(E34=0,IF(E35>0,"ENCENDIDO BOMBA 1",""),"") ->  | M35: 0 | N35: 0 | O35: 0
B36: 18 | C36: 1.08 | D36: 1.08 | E36: 0 | F36: 0 | G36: 19.44 | H36: 0.4283922214 | M36: 0 | N36: 0 | O36: 0
B37: 19 | C37: 1.08 | D37: 1.08 | E37: 0 | F37: 0 | G37: 20.52 | H37: 0.4521917892 | M37: 0 | N37: 0 | O37: 0
B38: 20 | C38: 1.08 | D38: 1.08 | E38: 0 | F38: 0 | G38: 21.6 | H38: 0.4759913571 | M38: 0 | N38: 0 | O38: 0
B39: 21 | C39: 1.08 | D39: 1.08 | E39: 0 | F39: 0 | G39: 22.68 | H39: 0.499790925 | J39: =+IF(F38=0,IF(F39>0,"ENCENDIDO BOMBA 2",""),"") ->  | M39: 0 | N39: 0 | O39: 0
B40: 22 | C40: 1.08 | D40: 1.08 | E40: 0 | F40: 0 | G40: 23.76 | H40: 0.5235904928 | M40: 0 | N40: 0 | O40: 0
B41: 23 | C41: 1.08 | D41: 1.08 | E41: 0 | F41: 0 | G41: 24.84 | H41: 0.5473900607 | M41: 0 | N41: 0 | O41: 0
B42: 24 | C42: 1.08 | D42: 1.08 | E42: 0 | F42: 0 | G42: 25.92 | H42: 0.5711896285 | M42: 0 | N42: 0 | O42: 0
B43: 25 | C43: 1.08 | D43: 1.08 | E43: 0 | F43: 0 | G43: 27 | H43: 0.5949891964 | K43: =+IF(F42>0,IF(F43=0,"APAGADO BOMBAS",""),"") ->  | M43: 0 | N43: 0 | O43: 0
B44: 26 | C44: 1.08 | D44: 1.08 | E44: 0 | F44: 0 | G44: 28.08 | H44: 0.6187887642 | M44: 928.956 | N44: 0 | O44: 928.956
B45: 27 | C45: 1.08 | D45: 1.08 | E45: 1.053531882 | F45: 0 | G45: 28.10646812 | H45: 0.6193720325 | I45: ENCENDIDO BOMBA 1 | J45: =+IF(F44=0,IF(F45>0,"ENCENDIDO BOMBA 2",""),"") ->  | L45: ENCENDIDO BOMBA 1 | M45: 928.956 | N45: 0 | O45: 928.956
B46: 28 | C46: 1.08 | D46: 1.08 | E46: 1.053531882 | F46: 0 | G46: 28.13293624 | H46: 0.6199553009 | M46: 928.956 | N46: 0 | O46: 928.956
B47: 29 | C47: 1.08 | D47: 1.08 | E47: 1.053531882 | F47: 0 | G47: 28.15940435 | H47: 0.6205385692 | M47: 928.956 | N47: 0 | O47: 928.956
B48: 30 | C48: 1.08 | D48: 1.08 | E48: 1.053531882 | F48: 0 | G48: 28.18587247 | H48: 0.6211218375 | M48: 928.956 | N48: 0 | O48: 928.956
B49: 31 | C49: 1.08 | D49: 1.08 | E49: 1.053531882 | F49: 0 | G49: 28.21234059 | H49: 0.6217051058 | M49: 928.956 | N49: 0 | O49: 928.956
B50: 32 | C50: 1.08 | D50: 1.08 | E50: 1.053531882 | F50: 0 | G50: 28.23880871 | H50: 0.6222883741 | M50: =IF(E51>0,$S$10*$S$11,0) -> 928.956 | N50: 0 | O50: 928.956
B51: 33 | C51: 1.08 | D51: 1.08 | E51: =IF(E50=0,IF(H50<$G$9,0,$C$11),IF(H50<$G$8,0,E50)) -> 1.053531882 | F51: =IF(F50=0,IF(H50<$G$9,0,IF(H50<$G$10,0,$C$11)),IF(H50<$G$8,0,F50)) -> 0 | G51: 28.26527683 | H51: =+G51/$G$7 -> 0.6228716424 | M51: 928.956 | N51: =IF(F52>0,$S$10*$S$11,0) -> 0 | O51: 928.956
B52: 34 | C52: 1.08 | D52: 1.08 | E52: 1.053531882 | F52: 0 | G52: 28.29174495 | H52: 0.6234549107 | J52: =+IF(F51=0,IF(F52>0,"ENCENDIDO BOMBA 2",""),"") ->  | M52: 928.956 | N52: 0 | O52: 928.956
B53: 35 | C53: 1.08 | D53: 1.08 | E53: 1.053531882 | F53: 0 | G53: 28.31821306 | H53: 0.624038179 | M53: 928.956 | N53: 0 | O53: 928.956
B54: 36 | C54: 1.08 | D54: 1.08 | E54: 1.053531882 | F54: 0 | G54: 28.34468118 | H54: 0.6246214473 | M54: 928.956 | N54: 0 | O54: 928.956
B55: 37 | C55: 1.08 | D55: 1.08 | E55: 1.053531882 | F55: 0 | G55: 28.3711493 | H55: 0.6252047157 | M55: 928.956 | N55: 0 | O55: 928.956
B56: 38 | C56: 1.08 | D56: 1.08 | E56: 1.053531882 | F56: 0 | G56: 28.39761742 | H56: 0.625787984 | M56: 928.956 | N56: 0 | O56: 928.956
B57: 39 | C57: 1.08 | D57: 1.08 | E57: 1.053531882 | F57: 0 | G57: 28.42408554 | H57: 0.6263712523 | M57: 928.956 | N57: 0 | O57: 928.956
B58: 40 | C58: 1.08 | D58: 1.08 | E58: 1.053531882 | F58: 0 | G58: 28.45055366 | H58: 0.6269545206 | J58: =+IF(F57=0,IF(F58>0,"ENCENDIDO BOMBA 2",""),"") ->  | K58: =+IF(F57>0,IF(F58=0,"APAGADO BOMBAS",""),"") ->  | M58: 928.956 | N58: 0 | O58: 928.956
B59: 41 | C59: 1.08 | D59: 1.08 | E59: 1.053531882 | F59: 0 | G59: 28.47702177 | H59: 0.6275377889 | K59: =+IF(F58>0,IF(F59=0,"APAGADO BOMBAS",""),"") ->  | M59: 928.956 | N59: 0 | O59: 928.956
B60: 42 | C60: 1.08 | D60: 1.08 | E60: 1.053531882 | F60: 0 | G60: 28.50348989 | H60: 0.6281210572 | K60: =+IF(F59>0,IF(F60=0,"APAGADO BOMBAS",""),"") ->  | M60: 928.956 | N60: 0 | O60: 928.956
B61: 43 | C61: 1.08 | D61: 1.08 | E61: 1.053531882 | F61: 0 | G61: 28.52995801 | H61: 0.6287043255 | M61: 928.956 | N61: 0 | O61: 928.956
B62: 44 | C62: 1.08 | D62: 1.08 | E62: 1.053531882 | F62: 0 | G62: 28.55642613 | H62: 0.6292875938 | M62: 928.956 | N62: 0 | O62: 928.956
B63: 45 | C63: 1.08 | D63: 1.08 | E63: 1.053531882 | F63: 0 | G63: 28.58289425 | H63: 0.6298708621 | M63: 928.956 | N63: 0 | O63: 928.956
B64: 46 | C64: 1.08 | D64: 1.08 | E64: 1.053531882 | F64: 0 | G64: 28.60936236 | H64: 0.6304541305 | M64: 928.956 | N64: 0 | O64: 928.956
B65: 47 | C65: 1.08 | D65: 1.08 | E65: 1.053531882 | F65: 0 | G65: 28.63583048 | H65: 0.6310373988 | J65: =+IF(F64=0,IF(F65>0,"ENCENDIDO BOMBA 2",""),"") ->  | M65: 928.956 | N65: 0 | O65: 928.956
B66: 48 | C66: 1.08 | D66: 1.08 | E66: 1.053531882 | F66: 0 | G66: 28.6622986 | H66: 0.6316206671 | M66: 928.956 | N66: 0 | O66: 928.956
B67: 49 | C67: 1.08 | D67: 1.08 | E67: 1.053531882 | F67: 0 | G67: 28.68876672 | H67: 0.6322039354 | J67: =+IF(F66=0,IF(F67>0,"ENCENDIDO BOMBA 2",""),"") ->  | M67: 928.956 | N67: 0 | O67: 928.956
B68: 50 | C68: 1.08 | D68: 1.08 | E68: 1.053531882 | F68: 0 | G68: 28.71523484 | H68: 0.6327872037 | M68: 928.956 | N68: 0 | O68: 928.956
B69: 51 | C69: 1.08 | D69: 1.08 | E69: 1.053531882 | F69: 0 | G69: 28.74170296 | H69: 0.633370472 | M69: 928.956 | N69: 0 | O69: 928.956
B70: 52 | C70: 1.08 | D70: 1.08 | E70: 1.053531882 | F70: 0 | G70: 28.76817107 | H70: 0.6339537403 | M70: 928.956 | N70: 0 | O70: 928.956
B71: 53 | C71: 1.08 | D71: 1.08 | E71: 1.053531882 | F71: 0 | G71: 28.79463919 | H71: 0.6345370086 | M71: 928.956 | N71: 0 | O71: 928.956
B72: 54 | C72: 1.08 | D72: 1.08 | E72: 1.053531882 | F72: 0 | G72: 28.82110731 | H72: 0.6351202769 | K72: =+IF(F71>0,IF(F72=0,"APAGADO BOMBAS",""),"") ->  | M72: 928.956 | N72: 0 | O72: 928.956
B73: 55 | C73: 1.08 | D73: 1.08 | E73: 1.053531882 | F73: 0 | G73: 28.84757543 | H73: 0.6357035453 | K73: =+IF(F72>0,IF(F73=0,"APAGADO BOMBAS",""),"") ->  | M73: 928.956 | N73: 0 | O73: 928.956
B74: 56 | C74: 1.08 | D74: 1.08 | E74: 1.053531882 | F74: 0 | G74: 28.87404355 | H74: 0.6362868136 | J74: =+IF(F73=0,IF(F74>0,"ENCENDIDO BOMBA 2",""),"") ->  | M74: 928.956 | N74: 0 | O74: 928.956
B75: 57 | C75: 1.08 | D75: 1.08 | E75: 1.053531882 | F75: 0 | G75: 28.90051167 | H75: 0.6368700819 | M75: 928.956 | N75: 0 | O75: 928.956
B76: 58 | C76: 1.08 | D76: 1.08 | E76: 1.053531882 | F76: 0 | G76: 28.92697978 | H76: 0.6374533502 | M76: 928.956 | N76: 0 | O76: 928.956
B77: 59 | C77: 1.08 | D77: 1.08 | E77: 1.053531882 | F77: 0 | G77: 28.9534479 | H77: 0.6380366185 | M77: 928.956 | N77: 0 | O77: 928.956
B78: 60 | C78: 1.08 | D78: 1.08 | E78: 1.053531882 | F78: 0 | G78: 28.97991602 | H78: 0.6386198868 | M78: 0 | N78: 0 | O78: =SUM(M78:N78) -> 0
M79: COSTO TOTAL OPERACIÓN BOMBAS POR HORA | O79: =SUM(O18:O78) -> 31584.504
H80: B2 | L80: =+COUNTIF(L18:L78,"ENCENDIDO BOMBA 2") -> 0

Sheet ESC 2 EN B2 1 AÑO
B2: CUADRO 17. MODELACIÓN PARA OPTIMIZACIÓN DE LA RED DE BOMBEO AGUAS RESIDUALES - ESCENARIO 2, UN AÑO.
B4: DATOS BOMBEO | F4: DATOS POZO EYECTOR | M4: DATOS COSTOS | R4: ELEMENTO | S4: VALOR
F5: TIEMPO LLENADO | G5: 58.35353794 | H5: MIN | M5: VOL CONCRETO | N5: =+G11*$S$21 -> 3.701244722 | O5: m3 | R5: PLACA | S5: =152000/0.257 -> 591439.6887
B6: Q DISEÑO | C6: 18 | D6: L/S | F6: VOL EYECTOR | G6: =+C6*$G$5*60/1000 -> 63.02182098 | H6: m3 | M6: COSTO CONCRETO | N6: =+S8 -> 631723.2296 | O6: $/m3 | R6: VIGAS | S6: 723730
B7: Q DISEÑO | C7: =+C6/1000 -> 0.018 | D7: M3/S | F7: AREA | G7: =+G6/G11 -> 45.01558641 | H7: m2 | M7: COSTO TOTALPOZO | N7: =+N5*N6 -> 2338162.269 | O7: $ | R7: MURO | S7: 580000
B8: FRACCIONAMIENTO | C8: 0.5101111626 | F8: ALTURA (m) | G8: 0.2 | H8: PARADO BOMBAS | M8: TIEMPO AMORTIZACIÓN | N8: =365*1 -> 365 | O8: dias | R8: PROMEDIO | S8: =+AVERAGE(S5:S7) -> 631723.2296
B9: Q BOMBEO | C9: =$C$8*C6 -> 9.182000927 | D9: L/S | G9: =+G8+0.4 -> 0.6 | H9: ENCENDIDO BOMBA 1 | M9: TIEMPO AMORTIZACIÓN | N9: =+N8*16 -> 5840 | O9: HORAS
B10: Q BOMBEO | C10: =C8*C7 -> 0.009182000927 | D10: L/S | G10: =+G9+0.4 -> 1 | H10: ENCENDIDO BOMBA 2 | M10: COSTO POZO | N10: =N5*N6/N9 -> 400.3702516 | O10: $/Hora
B11: Q BOMBEO | C11: =+C10*60 -> 0.5509200556 | D11: M3/S | G11: =+G10+0.4 -> 1.4 | H11: NIVEL ALARMA | R11: COSTO $/KW | S11: =+(208.12+123.65)/2 -> 165.885
M12: COSTO TOTAL | N12: =N10+O79 -> 32913.83025 | O12: $ | R12: Kw CONSUMIDOS PROM. | S12: 5.6
B15: 1 | C15: 2 | D15: 3 | E15: 4 | F15: 5 | G15: 6 | H15: 7 | L15: 8 | M15: 9 | N15: 10 | O15: 11
B17: TIEMPO T (MIN) | C17: Qentrada M3/MIN | D17: VOLUMEN ENTRADA (m3) | E17: VOL SALIDA 1 (m3) | F17: VOL SALIDA 2 (m3) | G17: VOLUMEN ACUMULADO (m3) | H17: ALTURA (m) | I17: OBS | J17: OBS | K17: OBS | L17: OBS | M17: COSTO KW ($) ENCENDIDO BOMBA 1 | N17: COSTO KW ($) ENCENDIDO BOMBA 2 | O17: COSTO KW ($) ENCENDIDO BOMBAS 1 Y 2
B18: 0 | E18: 0 | F18: 0 | M18: =IF(E19>0,$S$11*$S$12,0) -> 0 | N18: =+$S$11*F19 -> 0 | O18: =SUM(M18:N18) -> 0 | R18: LADO EXT POZO | S18: =SQRT(G7) -> 6.709365575
B19: 1 | C19: =+$C$7*60 -> 1.08 | D19: =+C19*1 -> 1.08 | E19: =IF(E18=0,IF(H18<$G$9,0,$C$11),IF(H18<$G$8,0,E18)) -> 0 | F19: =IF(F18=0,IF(H18<$G$9,0,IF(H18<$G$10,0,$C$11)),IF(H18<$G$8,0,F18)) -> 0 | G19: =+D19-E19-F19 -> 1.08 | H19: =+G19/$G$7 -> 0.02399169012 | I19: =+IF(E18=0,IF(E19>0,"ENCENDIDO BOMBA 1",IF(F18=0,IF(F19>0,"ENCENDIDO BOMBA 2","")))) ->  | J19: =+IF(F18=0,IF(F19>0,"ENCENDIDO BOMBA 2",""),"") ->  | K19: =+IF(F18>0,IF(F19=0,"APAGADO BOMBAS",""),"") ->  | L19: =+CONCATENATE(I19,J19,K19) ->  | M19: 0 | N19: =IF(F20>0,$S$11*$S$12,0) -> 0 | O19: =SUM(M19:N19) -> 0 | R19: LADO INT POZO | S19: =+S18-0.2 -> 6.509365575
B20: 2 | C20: =+$C$7*60 -> 1.08 | D20: =+C20*1 -> 1.08 | E20: 0 | F20: 0 | G20: =+G19+D20-E20-F20 -> 2.16 | H20: 0.04798338025 | I20: =+IF(E19=0,IF(E20>0,"ENCENDIDO BOMBA 1",IF(F19=0,IF(F20>0,"ENCENDIDO BOMBA 2","")))) ->  | J20: =+IF(F19=0,IF(F20>0,"ENCENDIDO BOMBA 2",""),"") ->  | K20: =+IF(F19>0,IF(F20=0,"APAGADO BOMBAS",""),"") ->  | L20: =+CONCATENATE(I20,J20,K20) ->  | M20: 0 | N20: 0 | O20: 0 | R20: AREA INTERIOR | S20: =+S19*S19 -> 42.37184018
B21: 3 | C21: 1.08 | D21: 1.08 | E21: 0 | F21: 0 | G21: 3.24 | H21: 0.07197507037 | M21: 0 | N21: 0 | O21: 0 | R21: D AREA | S21: =+G7-S20 -> 2.64374623
B22: 4 | C22: 1.08 | D22: 1.08 | E22: 0 | F22: 0 | G22: 4.32 | H22: 0.0959667605 | I22: =+IF(E21=0,IF(E22>0,"ENCENDIDO BOMBA 1",""),"") ->  | M22: 0 | N22: 0 | O22: 0
B23: 5 | C23: 1.08 | D23: 1.08 | E23: 0 | F23: 0 | G23: 5.4 | H23: 0.1199584506 | I23: =+IF(E22=0,IF(E23>0,"ENCENDIDO BOMBA 1",""),"") ->  | M23: 0 | N23: 0 | O23: 0
B24: 6 | C24: 1.08 | D24: 1.08 | E24: 0 | F24: 0 | G24: 6.48 | H24: 0.1439501407 | M24: 0 | N24: 0 | O24: 0
B25: 7 | C25: 1.08 | D25: 1.08 | E25: 0 | F25: 0 | G25: 7.56 | H25: 0.1679418309 | M25: 0 | N25: 0 | O25: 0
B26: 8 | C26: 1.08 | D26: 1.08 | E26: 0 | F26: 0 | G26: 8.64 | H26: 0.191933521 | J26: =+IF(F25=0,IF(F26>0,"ENCENDIDO BOMBA 2",""),"") ->  | M26: 0 | N26: 0 | O26: 0
B27: 9 | C27: 1.08 | D27: 1.08 | E27: 0 | F27: 0 | G27: 9.72 | H27: 0.2159252111 | M27: 0 | N27: 0 | O27: 0
B28: 10 | C28: 1.08 | D28: 1.08 | E28: 0 | F28: 0 | G28: 10.8 | H28: 0.2399169012 | M28: 0 | N28: 0 | O28: 0
B29: 11 | C29: 1.08 | D29: 1.08 | E29: 0 | F29: 0 | G29: 11.88 | H29: 0.2639085914 | M29: 0 | N29: 0 | O29: 0
B30: 12 | C30: 1.08 | D30: 1.08 | E30: 0 | F30: 0 | G30: 12.96 | H30: 0.2879002815 | M30: 0 | N30: 0 | O30: 0
B31: 13 | C31: 1.08 | D31: 1.08 | E31: 0 | F31: 0 | G31: 14.04 | H31: 0.3118919716 | M31: 0 | N31: 0 | O31: 0
B32: 14 | C32: 1.08 | D32: 1.08 | E32: 0 | F32: 0 | G32: 15.12 | H32: 0.3358836617 | J32: =+IF(F31=0,IF(F32>0,"ENCENDIDO BOMBA 2",""),"") ->  | M32: 0 | N32: 0 | O32: 0
B33: 15 | C33: 1.08 | D33: 1.08 | E33: 0 | F33: 0 | G33: 16.2 | H33: 0.3598753519 | M33: 0 | N33: 0 | O33: 0
B34: 16 | C34: 1.08 | D34: 1.08 | E34: 0 | F34: 0 | G34: 17.28 | H34: 0.383867042 | K34: =+IF(F33>0,IF(F34=0,"APAGADO BOMBAS",""),"") ->  | M34: 0 | N34: 0 | O34: 0
B35: 17 | C35: 1.08 | D35: 1.08 | E35: 0 | F35: 0 | G35: 18.36 | H35: 0.4078587321 | I35: =+IF(E34=0,IF(E35>0,"ENCENDIDO BOMBA 1",""),"") ->  | M35: 0 | N35: 0 | O35: 0
B36: 18 | C36: 1.08 | D36: 1.08 | E36: 0 | F36: 0 | G36: 19.44 | H36: 0.4318504222 | M36: 0 | N36: 0 | O36: 0
B37: 19 | C37: 1.08 | D37: 1.08 | E37: 0 | F37: 0 | G37: 20.52 | H37: 0.4558421124 | M37: 0 | N37: 0 | O37: 0
B38: 20 | C38: 1.08 | D38: 1.08 | E38: 0 | F38: 0 | G38: 21.6 | H38: 0.4798338025 | M38: 0 | N38: 0 | O38: 0
B39: 21 | C39: 1.08 | D39: 1.08 | E39: 0 | F39: 0 | G39: 22.68 | H39: 0.5038254926 | J39: =+IF(F38=0,IF(F39>0,"ENCENDIDO BOMBA 2",""),"") ->  | M39: 0 | N39: 0 | O39: 0
B40: 22 | C40: 1.08 | D40: 1.08 | E40: 0 | F40: 0 | G40: 23.76 | H40: 0.5278171827 | M40: 0 | N40: 0 | O40: 0
B41: 23 | C41: 1.08 | D41: 1.08 | E41: 0 | F41: 0 | G41: 24.84 | H41: 0.5518088729 | M41: 0 | N41: 0 | O41: 0
B42: 24 | C42: 1.08 | D42: 1.08 | E42: 0 | F42: 0 | G42: 25.92 | H42: 0.575800563 | M42: 0 | N42: 0 | O42: 0
B43: 25 | C43: 1.08 | D43: 1.08 | E43: 0 | F43: 0 | G43: 27 | H43: 0.5997922531 | K43: =+IF(F42>0,IF(F43=0,"APAGADO BOMBAS",""),"") ->  | M43: 0 | N43: 0 | O43: 0
B44: 26 | C44: 1.08 | D44: 1.08 | E44: 0 | F44: 0 | G44: 28.08 | H44: 0.6237839432 | M44: 928.956 | N44: 0 | O44: 928.956
B45: 27 | C45: 1.08 | D45: 1.08 | E45: 0.5509200556 | F45: 0 | G45: 28.60907994 | H45: 0.6355372044 | I45: ENCENDIDO BOMBA 1 | J45: =+IF(F44=0,IF(F45>0,"ENCENDIDO BOMBA 2",""),"") ->  | L45: ENCENDIDO BOMBA 1 | M45: 928.956 | N45: 0 | O45: 928.956
B46: 28 | C46: 1.08 | D46: 1.08 | E46: 0.5509200556 | F46: 0 | G46: 29.13815989 | H46: 0.6472904656 | M46: 928.956 | N46: 0 | O46: 928.956
B47: 29 | C47: 1.08 | D47: 1.08 | E47: 0.5509200556 | F47: 0 | G47: 29.66723983 | H47: 0.6590437268 | M47: 928.956 | N47: 0 | O47: 928.956
B48: 30 | C48: 1.08 | D48: 1.08 | E48: 0.5509200556 | F48: 0 | G48: 30.19631978 | H48: 0.670796988 | M48: 928.956 | N48: 0 | O48: 928.956
B49: 31 | C49: 1.08 | D49: 1.08 | E49: 0.5509200556 | F49: 0 | G49: 30.72539972 | H49: 0.6825502491 | M49: 928.956 | N49: 0 | O49: 928.956
B50: 32 | C50: 1.08 | D50: 1.08 | E50: 0.5509200556 | F50: 0 | G50: 31.25447967 | H50: 0.6943035103 | M50: =IF(E51>0,$S$11*$S$12,0) -> 928.956 | N50: 0 | O50: 928.956
B51: 33 | C51: 1.08 | D51: 1.08 | E51: =IF(E50=0,IF(H50<$G$9,0,$C$11),IF(H50<$G$8,0,E50)) -> 0.5509200556 | F51: =IF(F50=0,IF(H50<$G$9,0,IF(H50<$G$10,0,$C$11)),IF(H50<$G$8,0,F50)) -> 0 | G51: 31.78355961 | H51: =+G51/$G$7 -> 0.7060567715 | M51: 928.956 | N51: =IF(F52>0,$S$11*$S$12,0) -> 0 | O51: 928.956
B52: 34 | C52: 1.08 | D52: 1.08 | E52: 0.5509200556 | F52: 0 | G52: 32.31263956 | H52: 0.7178100327 | J52: =+IF(F51=0,IF(F52>0,"ENCENDIDO BOMBA 2",""),"") ->  | M52: 928.956 | N52: 0 | O52: 928.956
B53: 35 | C53: 1.08 | D53: 1.08 | E53: 0.5509200556 | F53: 0 | G53: 32.8417195 | H53: 0.7295632939 | M53: 928.956 | N53: 0 | O53: 928.956
B54: 36 | C54: 1.08 | D54: 1.08 | E54: 0.5509200556 | F54: 0 | G54: 33.37079944 | H54: 0.7413165551 | M54: 928.956 | N54: 0 | O54: 928.956
B55: 37 | C55: 1.08 | D55: 1.08 | E55: 0.5509200556 | F55: 0 | G55: 33.89987939 | H55: 0.7530698162 | M55: 928.956 | N55: 0 | O55: 928.956
B56: 38 | C56: 1.08 | D56: 1.08 | E56: 0.5509200556 | F56: 0 | G56: 34.42895933 | H56: 0.7648230774 | M56: 928.956 | N56: 0 | O56: 928.956
B57: 39 | C57: 1.08 | D57: 1.08 | E57: 0.5509200556 | F57: 0 | G57: 34.95803928 | H57: 0.7765763386 | M57: 928.956 | N57: 0 | O57: 928.956
B58: 40 | C58: 1.08 | D58: 1.08 | E58: 0.5509200556 | F58: 0 | G58: 35.48711922 | H58: 0.7883295998 | J58: =+IF(F57=0,IF(F58>0,"ENCENDIDO BOMBA 2",""),"") ->  | K58: =+IF(F57>0,IF(F58=0,"APAGADO BOMBAS",""),"") ->  | M58: 928.956 | N58: 0 | O58: 928.956
B59: 41 | C59: 1.08 | D59: 1.08 | E59: 0.5509200556 | F59: 0 | G59: 36.01619917 | H59: 0.800082861 | K59: =+IF(F58>0,IF(F59=0,"APAGADO BOMBAS",""),"") ->  | M59: 928.956 | N59: 0 | O59: 928.956
B60: 42 | C60: 1.08 | D60: 1.08 | E60: 0.5509200556 | F60: 0 | G60: 36.54527911 | H60: 0.8118361221 | K60: =+IF(F59>0,IF(F60=0,"APAGADO BOMBAS",""),"") ->  | M60: 928.956 | N60: 0 | O60: 928.956
B61: 43 | C61: 1.08 | D61: 1.08 | E61: 0.5509200556 | F61: 0 | G61: 37.07435905 | H61: 0.8235893833 | M61: 928.956 | N61: 0 | O61: 928.956
B62: 44 | C62: 1.08 | D62: 1.08 | E62: 0.5509200556 | F62: 0 | G62: 37.603439 | H62: 0.8353426445 | M62: 928.956 | N62: 0 | O62: 928.956
B63: 45 | C63: 1.08 | D63: 1.08 | E63: 0.5509200556 | F63: 0 | G63: 38.13251894 | H63: 0.8470959057 | M63: 928.956 | N63: 0 | O63: 928.956
B64: 46 | C64: 1.08 | D64: 1.08 | E64: 0.5509200556 | F64: 0 | G64: 38.66159889 | H64: 0.8588491669 | M64: 928.956 | N64: 0 | O64: 928.956
B65: 47 | C65: 1.08 | D65: 1.08 | E65: 0.5509200556 | F65: 0 | G65: 39.19067883 | H65: 0.8706024281 | J65: =+IF(F64=0,IF(F65>0,"ENCENDIDO BOMBA 2",""),"") ->  | M65: 928.956 | N65: 0 | O65: 928.956
B66: 48 | C66: 1.08 | D66: 1.08 | E66: 0.5509200556 | F66: 0 | G66: 39.71975878 | H66: 0.8823556892 | M66: 928.956 | N66: 0 | O66: 928.956
B67: 49 | C67: 1.08 | D67: 1.08 | E67: 0.5509200556 | F67: 0 | G67: 40.24883872 | H67: 0.8941089504 | J67: =+IF(F66=0,IF(F67>0,"ENCENDIDO BOMBA 2",""),"") ->  | M67: 928.956 | N67: 0 | O67: 928.956
B68: 50 | C68: 1.08 | D68: 1.08 | E68: 0.5509200556 | F68: 0 | G68: 40.77791867 | H68: 0.9058622116 | M68: 928.956 | N68: 0 | O68: 928.956
B69: 51 | C69: 1.08 | D69: 1.08 | E69: 0.5509200556 | F69: 0 | G69: 41.30699861 | H69: 0.9176154728 | M69: 928.956 | N69: 0 | O69: 928.956
B70: 52 | C70: 1.08 | D70: 1.08 | E70: 0.5509200556 | F70: 0 | G70: 41.83607855 | H70: 0.929368734 | M70: 928.956 | N70: 0 | O70: 928.956
B71: 53 | C71: 1.08 | D71: 1.08 | E71: 0.5509200556 | F71: 0 | G71: 42.3651585 | H71: 0.9411219951 | M71: 928.956 | N71: 0 | O71: 928.956
B72: 54 | C72: 1.08 | D72: 1.08 | E72: 0.5509200556 | F72: 0 | G72: 42.89423844 | H72: 0.9528752563 | K72: =+IF(F71>0,IF(F72=0,"APAGADO BOMBAS",""),"") ->  | M72: 928.956 | N72: 0 | O72: 928.956
B73: 55 | C73: 1.08 | D73: 1.08 | E73: 0.5509200556 | F73: 0 | G73: 43.42331839 | H73: 0.9646285175 | K73: =+IF(F72>0,IF(F73=0,"APAGADO BOMBAS",""),"") ->  | M73: 928.956 | N73: 0 | O73: 928.956
B74: 56 | C74: 1.08 | D74: 1.08 | E74: 0.5509200556 | F74: 0 | G74: 43.95239833 | H74: 0.9763817787 | J74: =+IF(F73=0,IF(F74>0,"ENCENDIDO BOMBA 2",""),"") ->  | M74: 928.956 | N74: 0 | O74: 928.956
B75: 57 | C75: 1.08 | D75: 1.08 | E75: 0.5509200556 | F75: 0 | G75: 44.48147828 | H75: 0.9881350399 | M75: 928.956 | N75: 0 | O75: 928.956
B76: 58 | C76: 1.08 | D76: 1.08 | E76: 0.5509200556 | F76: 0 | G76: 45.01055822 | H76: 0.9998883011 | M76: 928.956 | N76: 0 | O76: 928.956
B77: 59 | C77: 1.08 | D77: 1.08 | E77: 0.5509200556 | F77: 0 | G77: 45.53963816 | H77: 1.011641562 | M77: 928.956 | N77: 928.956 | O77: 1857.912
B78: 60 | C78: 1.08 | D78: 1.08 | E78: 0.5509200556 | F78: 0.5509200556 | G78: 45.51779805 | H78: 1.011156394 | J78: ENCENDIDO BOMBA 2 | L78: ENCENDIDO BOMBA 2 | M78: 0 | N78: 0 | O78: =SUM(M78:N78) -> 0
M79: COSTO TOTAL OPERACIÓN BOMBAS POR HORA | O79: =SUM(O18:O78) -> 32513.46
H80: B2 | L80: =+COUNTIF(L18:L78,"ENCENDIDO BOMBA 2") -> 1

Sheet ESC 2 EN B2 10 AÑOS
B2: CUADRO 18. MODELACIÓN PARA OPTIMIZACIÓN DE LA RED DE BOMBEO AGUAS RESIDUALES - ESCENARIO 2, DIEZ AÑOS.
B4: DATOS BOMBEO | F4: DATOS POZO EYECTOR | M4: DATOS COSTOS | R4: ELEMENTO | S4: VALOR
F5: TIEMPO LLENADO | G5: 56.00062744 | H5: MIN | M5: VOL CONCRETO | N5: =+G11*$S$21 -> 3.624716206 | O5: m3 | R5: PLACA | S5: =152000/0.257 -> 591439.6887
B6: Q DISEÑO | C6: 18 | D6: L/S | F6: VOL EYECTOR | G6: =+C6*$G$5*60/1000 -> 60.48067764 | H6: m3 | M6: COSTO CONCRETO | N6: =+S8 -> 631723.2296 | O6: $/m3 | R6: VIGAS | S6: 723730
B7: Q DISEÑO | C7: =+C6/1000 -> 0.018 | D7: M3/S | F7: AREA | G7: =+G6/G11 -> 43.20048403 | H7: m2 | M7: COSTO TOTALPOZO | N7: =+N5*N6 -> 2289817.428 | O7: $ | R7: MURO | S7: 580000
B8: FRACCIONAMIENTO | C8: 0.5512615672 | F8: ALTURA (m) | G8: 0.2 | H8: PARADO BOMBAS | M8: TIEMPO AMORTIZACIÓN | N8: =365*10 -> 3650 | O8: dias | R8: PROMEDIO | S8: =+AVERAGE(S5:S7) -> 631723.2296
B9: Q BOMBEO | C9: =$C$8*C6 -> 9.92270821 | D9: L/S | G9: =+G8+0.4 -> 0.6 | H9: ENCENDIDO BOMBA 1 | M9: TIEMPO AMORTIZACIÓN | N9: =+N8*16 -> 58400 | O9: HORAS
B10: Q BOMBEO | C10: =C8*C7 -> 0.00992270821 | D10: L/S | G10: =+G9+0.4 -> 1 | H10: ENCENDIDO BOMBA 2 | M10: COSTO POZO | N10: =N5*N6/N9 -> 39.20920254 | O10: $/Hora | R10: COSTO $/KW | S10: =+(208.12+123.65)/2 -> 165.885
B11: Q BOMBEO | C11: =+C10*60 -> 0.5953624926 | D11: M3/S | G11: =+G10+0.4 -> 1.4 | H11: NIVEL ALARMA | R11: Kw CONSUMIDOS PROM. | S11: 5.6
M12: COSTO TOTAL | N12: =N10+O79 -> 33481.6252 | O12: $
B15: 1 | C15: 2 | D15: 3 | E15: 4 | F15: 5 | G15: 6 | H15: 7 | L15: 8 | M15: 9 | N15: 10 | O15: 11
B17: TIEMPO T (MIN) | C17: Qentrada M3/MIN | D17: VOLUMEN ENTRADA (m3) | E17: VOL SALIDA 1 (m3) | F17: VOL SALIDA 2 (m3) | G17: VOLUMEN ACUMULADO (m3) | H17: ALTURA (m) | I17: OBS | J17: OBS | K17: OBS | L17: OBS | M17: COSTO KW ($) ENCENDIDO BOMBA 1 | N17: COSTO KW ($) ENCENDIDO BOMBA 2 | O17: COSTO KW ($) ENCENDIDO BOMBAS 1 Y 2
B18: 0 | E18: 0 | F18: 0 | M18: =IF(E19>0,$S$10*$S$11,0) -> 0 | N18: =+$S$10*F19 -> 0 | O18: =SUM(M18:N18) -> 0 | R18: LADO EXT POZO | S18: =SQRT(G7) -> 6.572707511
B19: 1 | C19: =+$C$7*60 -> 1.08 | D19: =+C19*1 -> 1.08 | E19: =IF(E18=0,IF(H18<$G$9,0,$C$11),IF(H18<$G$8,0,E18)) -> 0 | F19: =IF(F18=0,IF(H18<$G$9,0,IF(H18<$G$10,0,$C$11)),IF(H18<$G$8,0,F18)) -> 0 | G19: =+D19-E19-F19 -> 1.08 | H19: =+G19/$G$7 -> 0.0249997199 | I19: =+IF(E18=0,IF(E19>0,"ENCENDIDO BOMBA 1",IF(F18=0,IF(F19>0,"ENCENDIDO BOMBA 2","")))) ->  | J19: =+IF(F18=0,IF(F19>0,"ENCENDIDO BOMBA 2",""),"") ->  | K19: =+IF(F18>0,IF(F19=0,"APAGADO BOMBAS",""),"") ->  | L19: =+CONCATENATE(I19,J19,K19) ->  | M19: 0 | N19: =IF(F20>0,$S$10*$S$11,0) -> 0 | O19: =SUM(M19:N19) -> 0 | R19: LADO INT POZO | S19: =+S18-0.2 -> 6.372707511
B20: 2 | C20: =+$C$7*60 -> 1.08 | D20: =+C20*1 -> 1.08 | E20: 0 | F20: 0 | G20: =+G19+D20-E20-F20 -> 2.16 | H20: 0.04999943979 | I20: =+IF(E19=0,IF(E20>0,"ENCENDIDO BOMBA 1",IF(F19=0,IF(F20>0,"ENCENDIDO BOMBA 2","")))) ->  | J20: =+IF(F19=0,IF(F20>0,"ENCENDIDO BOMBA 2",""),"") ->  | K20: =+IF(F19>0,IF(F20=0,"APAGADO BOMBAS",""),"") ->  | L20: =+CONCATENATE(I20,J20,K20) ->  | M20: 0 | N20: 0 | O20: 0 | R20: AREA INTERIOR | S20: =+S19*S19 -> 40.61140102
B21: 3 | C21: 1.08 | D21: 1.08 | E21: 0 | F21: 0 | G21: 3.24 | H21: 0.07499915969 | M21: 0 | N21: 0 | O21: 0 | R21: D AREA | S21: =+G7-S20 -> 2.589083004
B22: 4 | C22: 1.08 | D22: 1.08 | E22: 0 | F22: 0 | G22: 4.32 | H22: 0.09999887958 | I22: =+IF(E21=0,IF(E22>0,"ENCENDIDO BOMBA 1",""),"") ->  | M22: 0 | N22: 0 | O22: 0
B23: 5 | C23: 1.08 | D23: 1.08 | E23: 0 | F23: 0 | G23: 5.4 | H23: 0.1249985995 | I23: =+IF(E22=0,IF(E23>0,"ENCENDIDO BOMBA 1",""),"") ->  | M23: 0 | N23: 0 | O23: 0
B24: 6 | C24: 1.08 | D24: 1.08 | E24: 0 | F24: 0 | G24: 6.48 | H24: 0.1499983194 | M24: 0 | N24: 0 | O24: 0
B25: 7 | C25: 1.08 | D25: 1.08 | E25: 0 | F25: 0 | G25: 7.56 | H25: 0.1749980393 | M25: 0 | N25: 0 | O25: 0
B26: 8 | C26: 1.08 | D26: 1.08 | E26: 0 | F26: 0 | G26: 8.64 | H26: 0.1999977592 | J26: =+IF(F25=0,IF(F26>0,"ENCENDIDO BOMBA 2",""),"") ->  | M26: 0 | N26: 0 | O26: 0
B27: 9 | C27: 1.08 | D27: 1.08 | E27: 0 | F27: 0 | G27: 9.72 | H27: 0.2249974791 | M27: 0 | N27: 0 | O27: 0
B28: 10 | C28: 1.08 | D28: 1.08 | E28: 0 | F28: 0 | G28: 10.8 | H28: 0.249997199 | M28: 0 | N28: 0 | O28: 0
B29: 11 | C29: 1.08 | D29: 1.08 | E29: 0 | F29: 0 | G29: 11.88 | H29: 0.2749969188 | M29: 0 | N29: 0 | O29: 0
B30: 12 | C30: 1.08 | D30: 1.08 | E30: 0 | F30: 0 | G30: 12.96 | H30: 0.2999966387 | M30: 0 | N30: 0 | O30: 0
B31: 13 | C31: 1.08 | D31: 1.08 | E31: 0 | F31: 0 | G31: 14.04 | H31: 0.3249963586 | M31: 0 | N31: 0 | O31: 0
B32: 14 | C32: 1.08 | D32: 1.08 | E32: 0 | F32: 0 | G32: 15.12 | H32: 0.3499960785 | J32: =+IF(F31=0,IF(F32>0,"ENCENDIDO BOMBA 2",""),"") ->  | M32: 0 | N32: 0 | O32: 0
B33: 15 | C33: 1.08 | D33: 1.08 | E33: 0 | F33: 0 | G33: 16.2 | H33: 0.3749957984 | M33: 0 | N33: 0 | O33: 0
B34: 16 | C34: 1.08 | D34: 1.08 | E34: 0 | F34: 0 | G34: 17.28 | H34: 0.3999955183 | K34: =+IF(F33>0,IF(F34=0,"APAGADO BOMBAS",""),"") ->  | M34: 0 | N34: 0 | O34: 0
B35: 17 | C35: 1.08 | D35: 1.08 | E35: 0 | F35: 0 | G35: 18.36 | H35: 0.4249952382 | I35: =+IF(E34=0,IF(E35>0,"ENCENDIDO BOMBA 1",""),"") ->  | M35: 0 | N35: 0 | O35: 0
B36: 18 | C36: 1.08 | D36: 1.08 | E36: 0 | F36: 0 | G36: 19.44 | H36: 0.4499949581 | M36: 0 | N36: 0 | O36: 0
B37: 19 | C37: 1.08 | D37: 1.08 | E37: 0 | F37: 0 | G37: 20.52 | H37: 0.474994678 | M37: 0 | N37: 0 | O37: 0
B38: 20 | C38: 1.08 | D38: 1.08 | E38: 0 | F38: 0 | G38: 21.6 | H38: 0.4999943979 | M38: 0 | N38: 0 | O38: 0
B39: 21 | C39: 1.08 | D39: 1.08 | E39: 0 | F39: 0 | G39: 22.68 | H39: 0.5249941178 | J39: =+IF(F38=0,IF(F39>0,"ENCENDIDO BOMBA 2",""),"") ->  | M39: 0 | N39: 0 | O39: 0
B40: 22 | C40: 1.08 | D40: 1.08 | E40: 0 | F40: 0 | G40: 23.76 | H40: 0.5499938377 | M40: 0 | N40: 0 | O40: 0
B41: 23 | C41: 1.08 | D41: 1.08 | E41: 0 | F41: 0 | G41: 24.84 | H41: 0.5749935576 | M41: 0 | N41: 0 | O41: 0
B42: 24 | C42: 1.08 | D42: 1.08 | E42: 0 | F42: 0 | G42: 25.92 | H42: 0.5999932775 | M42: 0 | N42: 0 | O42: 0
B43: 25 | C43: 1.08 | D43: 1.08 | E43: 0 | F43: 0 | G43: 27 | H43: 0.6249929974 | K43: =+IF(F42>0,IF(F43=0,"APAGADO BOMBAS",""),"") ->  | M43: 928.956 | N43: 0 | O43: 928.956
B44: 26 | C44: 1.08 | D44: 1.08 | E44: 0.5953624926 | F44: 0 | G44: 27.48463751 | H44: 0.6362113325 | I44: ENCENDIDO BOMBA 1 | L44: ENCENDIDO BOMBA 1 | M44: 928.956 | N44: 0 | O44: 928.956
B45: 27 | C45: 1.08 | D45: 1.08 | E45: 0.5953624926 | F45: 0 | G45: 27.96927501 | H45: 0.6474296676 | J45: =+IF(F44=0,IF(F45>0,"ENCENDIDO BOMBA 2",""),"") ->  | M45: 928.956 | N45: 0 | O45: 928.956
B46: 28 | C46: 1.08 | D46: 1.08 | E46: 0.5953624926 | F46: 0 | G46: 28.45391252 | H46: 0.6586480028 | M46: 928.956 | N46: 0 | O46: 928.956
B47: 29 | C47: 1.08 | D47: 1.08 | E47: 0.5953624926 | F47: 0 | G47: 28.93855003 | H47: 0.6698663379 | M47: 928.956 | N47: 0 | O47: 928.956
B48: 30 | C48: 1.08 | D48: 1.08 | E48: 0.5953624926 | F48: 0 | G48: 29.42318754 | H48: 0.681084673 | M48: 928.956 | N48: 0 | O48: 928.956
B49: 31 | C49: 1.08 | D49: 1.08 | E49: 0.5953624926 | F49: 0 | G49: 29.90782504 | H49: 0.6923030081 | M49: 928.956 | N49: 0 | O49: 928.956
B50: 32 | C50: 1.08 | D50: 1.08 | E50: 0.5953624926 | F50: 0 | G50: 30.39246255 | H50: 0.7035213433 | M50: =IF(E51>0,$S$10*$S$11,0) -> 928.956 | N50: 0 | O50: 928.956
B51: 33 | C51: 1.08 | D51: 1.08 | E51: =IF(E50=0,IF(H50<$G$9,0,$C$11),IF(H50<$G$8,0,E50)) -> 0.5953624926 | F51: =IF(F50=0,IF(H50<$G$9,0,IF(H50<$G$10,0,$C$11)),IF(H50<$G$8,0,F50)) -> 0 | G51: 30.87710006 | H51: =+G51/$G$7 -> 0.7147396784 | M51: 928.956 | N51: =IF(F52>0,$S$10*$S$11,0) -> 0 | O51: 928.956
B52: 34 | C52: 1.08 | D52: 1.08 | E52: 0.5953624926 | F52: 0 | G52: 31.36173757 | H52: 0.7259580135 | J52: =+IF(F51=0,IF(F52>0,"ENCENDIDO BOMBA 2",""),"") ->  | M52: 928.956 | N52: 0 | O52: 928.956
B53: 35 | C53: 1.08 | D53: 1.08 | E53: 0.5953624926 | F53: 0 | G53: 31.84637507 | H53: 0.7371763486 | M53: 928.956 | N53: 0 | O53: 928.956
B54: 36 | C54: 1.08 | D54: 1.08 | E54: 0.5953624926 | F54: 0 | G54: 32.33101258 | H54: 0.7483946838 | M54: 928.956 | N54: 0 | O54: 928.956
B55: 37 | C55: 1.08 | D55: 1.08 | E55: 0.5953624926 | F55: 0 | G55: 32.81565009 | H55: 0.7596130189 | M55: 928.956 | N55: 0 | O55: 928.956
B56: 38 | C56: 1.08 | D56: 1.08 | E56: 0.5953624926 | F56: 0 | G56: 33.3002876 | H56: 0.770831354 | M56: 928.956 | N56: 0 | O56: 928.956
B57: 39 | C57: 1.08 | D57: 1.08 | E57: 0.5953624926 | F57: 0 | G57: 33.7849251 | H57: 0.7820496891 | M57: 928.956 | N57: 0 | O57: 928.956
B58: 40 | C58: 1.08 | D58: 1.08 | E58: 0.5953624926 | F58: 0 | G58: 34.26956261 | H58: 0.7932680243 | J58: =+IF(F57=0,IF(F58>0,"ENCENDIDO BOMBA 2",""),"") ->  | K58: =+IF(F57>0,IF(F58=0,"APAGADO BOMBAS",""),"") ->  | M58: 928.956 | N58: 0 | O58: 928.956
B59: 41 | C59: 1.08 | D59: 1.08 | E59: 0.5953624926 | F59: 0 | G59: 34.75420012 | H59: 0.8044863594 | K59: =+IF(F58>0,IF(F59=0,"APAGADO BOMBAS",""),"") ->  | M59: 928.956 | N59: 0 | O59: 928.956
B60: 42 | C60: 1.08 | D60: 1.08 | E60: 0.5953624926 | F60: 0 | G60: 35.23883763 | H60: 0.8157046945 | K60: =+IF(F59>0,IF(F60=0,"APAGADO BOMBAS",""),"") ->  | M60: 928.956 | N60: 0 | O60: 928.956
B61: 43 | C61: 1.08 | D61: 1.08 | E61: 0.5953624926 | F61: 0 | G61: 35.72347513 | H61: 0.8269230297 | M61: 928.956 | N61: 0 | O61: 928.956
B62: 44 | C62: 1.08 | D62: 1.08 | E62: 0.5953624926 | F62: 0 | G62: 36.20811264 | H62: 0.8381413648 | M62: 928.956 | N62: 0 | O62: 928.956
B63: 45 | C63: 1.08 | D63: 1.08 | E63: 0.5953624926 | F63: 0 | G63: 36.69275015 | H63: 0.8493596999 | M63: 928.956 | N63: 0 | O63: 928.956
B64: 46 | C64: 1.08 | D64: 1.08 | E64: 0.5953624926 | F64: 0 | G64: 37.17738766 | H64: 0.860578035 | M64: 928.956 | N64: 0 | O64: 928.956
B65: 47 | C65: 1.08 | D65: 1.08 | E65: 0.5953624926 | F65: 0 | G65: 37.66202516 | H65: 0.8717963702 | J65: =+IF(F64=0,IF(F65>0,"ENCENDIDO BOMBA 2",""),"") ->  | M65: 928.956 | N65: 0 | O65: 928.956
B66: 48 | C66: 1.08 | D66: 1.08 | E66: 0.5953624926 | F66: 0 | G66: 38.14666267 | H66: 0.8830147053 | M66: 928.956 | N66: 0 | O66: 928.956
B67: 49 | C67: 1.08 | D67: 1.08 | E67: 0.5953624926 | F67: 0 | G67: 38.63130018 | H67: 0.8942330404 | J67: =+IF(F66=0,IF(F67>0,"ENCENDIDO BOMBA 2",""),"") ->  | M67: 928.956 | N67: 0 | O67: 928.956
B68: 50 | C68: 1.08 | D68: 1.08 | E68: 0.5953624926 | F68: 0 | G68: 39.11593769 | H68: 0.9054513755 | M68: 928.956 | N68: 0 | O68: 928.956
B69: 51 | C69: 1.08 | D69: 1.08 | E69: 0.5953624926 | F69: 0 | G69: 39.60057519 | H69: 0.9166697107 | M69: 928.956 | N69: 0 | O69: 928.956
B70: 52 | C70: 1.08 | D70: 1.08 | E70: 0.5953624926 | F70: 0 | G70: 40.0852127 | H70: 0.9278880458 | M70: 928.956 | N70: 0 | O70: 928.956
B71: 53 | C71: 1.08 | D71: 1.08 | E71: 0.5953624926 | F71: 0 | G71: 40.56985021 | H71: 0.9391063809 | M71: 928.956 | N71: 0 | O71: 928.956
B72: 54 | C72: 1.08 | D72: 1.08 | E72: 0.5953624926 | F72: 0 | G72: 41.05448771 | H72: 0.950324716 | K72: =+IF(F71>0,IF(F72=0,"APAGADO BOMBAS",""),"") ->  | M72: 928.956 | N72: 0 | O72: 928.956
B73: 55 | C73: 1.08 | D73: 1.08 | E73: 0.5953624926 | F73: 0 | G73: 41.53912522 | H73: 0.9615430512 | K73: =+IF(F72>0,IF(F73=0,"APAGADO BOMBAS",""),"") ->  | M73: 928.956 | N73: 0 | O73: 928.956
B74: 56 | C74: 1.08 | D74: 1.08 | E74: 0.5953624926 | F74: 0 | G74: 42.02376273 | H74: 0.9727613863 | J74: =+IF(F73=0,IF(F74>0,"ENCENDIDO BOMBA 2",""),"") ->  | M74: 928.956 | N74: 0 | O74: 928.956
B75: 57 | C75: 1.08 | D75: 1.08 | E75: 0.5953624926 | F75: 0 | G75: 42.50840024 | H75: 0.9839797214 | M75: 928.956 | N75: 0 | O75: 928.956
B76: 58 | C76: 1.08 | D76: 1.08 | E76: 0.5953624926 | F76: 0 | G76: 42.99303774 | H76: 0.9951980565 | M76: 928.956 | N76: 0 | O76: 928.956
B77: 59 | C77: 1.08 | D77: 1.08 | E77: 0.5953624926 | F77: 0 | G77: 43.47767525 | H77: 1.006416392 | M77: 928.956 | N77: 928.956 | O77: 1857.912
B78: 60 | C78: 1.08 | D78: 1.08 | E78: 0.5953624926 | F78: 0.5953624926 | G78: 43.36695027 | H78: 1.003853342 | J78: ENCENDIDO BOMBA 2 | L78: ENCENDIDO BOMBA 2 | M78: 0 | N78: 0 | O78: =SUM(M78:N78) -> 0
M79: COSTO TOTAL OPERACIÓN BOMBAS POR HORA | O79: =SUM(O18:O78) -> 33442.416
H80: B2 | L80: =+COUNTIF(L18:L78,"ENCENDIDO BOMBA 2") -> 1

Sheet ESC 3 MAS EN B2 1 AÑO
B2: CUADRO 19. MODELACIÓN PARA OPTIMIZACIÓN DE LA RED DE BOMBEO AGUAS RESIDUALES - ESCENARIO 3, UN AÑO.
B4: DATOS BOMBEO | F4: DATOS POZO EYECTOR | M4: DATOS COSTOS | R4: ELEMENTO | S4: VALOR
F5: TIEMPO LLENADO | G5: 9.490487749 | H5: MIN | M5: VOL CONCRETO | N5: =+G11*$S$21 -> 1.459235558 | O5: m3 | R5: PLACA | S5: =152000/0.257 -> 591439.6887
B6: Q DISEÑO | C6: 18 | D6: L/S | F6: VOL EYECTOR | G6: =+C6*$G$5*60/1000 -> 10.24972677 | H6: m3 | M6: COSTO CONCRETO | N6: =+S8 -> 631723.2296 | O6: $/m3 | R6: VIGAS | S6: 723730
B7: Q DISEÑO | C7: =+C6/1000 -> 0.018 | D7: M3/S | F7: AREA | G7: =+G6/G11 -> 7.321233406 | H7: m2 | M7: COSTO TOTALPOZO | N7: =+N5*N6 -> 921832.9994 | O7: $ | R7: MURO | S7: 580000
B8: FRACCIONAMIENTO | C8: 0.9158696308 | F8: ALTURA (m) | G8: 0.2 | H8: PARADO BOMBAS | M8: TIEMPO AMORTIZACIÓN | N8: =365*1 -> 365 | O8: dias | R8: PROMEDIO | S8: =+AVERAGE(S5:S7) -> 631723.2296
B9: Q BOMBEO | C9: =$C$8*C6 -> 16.48565335 | D9: L/S | G9: =+G8+0.4 -> 0.6 | H9: ENCENDIDO BOMBA 1 | M9: TIEMPO AMORTIZACIÓN | N9: =+N8*16 -> 5840 | O9: HORAS
B10: Q BOMBEO | C10: =C8*C7 -> 0.01648565335 | D10: L/S | G10: =+G9+0.4 -> 1 | H10: ENCENDIDO BOMBA 2 | M10: COSTO POZO | N10: =N5*N6/N9 -> 157.8481163 | O10: $/Hora | R10: COSTO $/KW | S10: =+(208.12+123.65)/2 -> 165.885
B11: Q BOMBEO | C11: =+C10*60 -> 0.9891392012 | D11: M3/S | G11: =+G10+0.4 -> 1.4 | H11: NIVEL ALARMA | R11: Kw CONSUMIDOS PROM. | S11: 5.6
M12: COSTO TOTAL | N12: =N10+O79 -> 54966.25212 | O12: $
B15: 1 | C15: 2 | D15: 3 | E15: 4 | F15: 5 | G15: 6 | H15: 7 | L15: 8 | M15: 9 | N15: 10 | O15: 11
B17: TIEMPO T (MIN) | C17: Qentrada M3/MIN | D17: VOLUMEN ENTRADA (m3) | E17: VOL SALIDA 1 (m3) | F17: VOL SALIDA 2 (m3) | G17: VOLUMEN ACUMULADO (m3) | H17: ALTURA (m) | I17: OBS | J17: OBS | K17: OBS | L17: OBS | M17: COSTO KW ($) ENCENDIDO BOMBA 1 | N17: COSTO KW ($) ENCENDIDO BOMBA 2 | O17: COSTO KW ($) ENCENDIDO BOMBAS 1 Y 2
B18: 0 | E18: 0 | F18: 0 | M18: =IF(E19>0,$S$10*$S$11,0) -> 0 | N18: =+$S$10*F19 -> 0 | O18: =SUM(M18:N18) -> 0 | R18: LADO EXT POZO | S18: =SQRT(G7) -> 2.705777782
B19: 1 | C19: =+$C$7*60 -> 1.08 | D19: =+C19*1 -> 1.08 | E19: =IF(E18=0,IF(H18<$G$9,0,$C$11),IF(H18<$G$8,0,E18)) -> 0 | F19: =IF(F18=0,IF(H18<$G$9,0,IF(H18<$G$10,0,$C$11)),IF(H18<$G$8,0,F18)) -> 0 | G19: =+D19-E19-F19 -> 1.08 | H19: =+G19/$G$7 -> 0.1475161274 | I19: =+IF(E18=0,IF(E19>0,"ENCENDIDO BOMBA 1",IF(F18=0,IF(F19>0,"ENCENDIDO BOMBA 2","")))) ->  | J19: =+IF(F18=0,IF(F19>0,"ENCENDIDO BOMBA 2",""),"") ->  | K19: =+IF(F18>0,IF(F19=0,"APAGADO BOMBAS",""),"") ->  | L19: =+CONCATENATE(I19,J19,K19) ->  | M19: 0 | N19: =IF(F20>0,$S$10*$S$11,0) -> 0 | O19: =SUM(M19:N19) -> 0 | R19: LADO INT POZO | S19: =+S18-0.2 -> 2.505777782
B20: 2 | C20: =+$C$7*60 -> 1.08 | D20: =+C20*1 -> 1.08 | E20: 0 | F20: 0 | G20: =+G19+D20-E20-F20 -> 2.16 | H20: 0.2950322548 | I20: =+IF(E19=0,IF(E20>0,"ENCENDIDO BOMBA 1",IF(F19=0,IF(F20>0,"ENCENDIDO BOMBA 2","")))) ->  | J20: =+IF(F19=0,IF(F20>0,"ENCENDIDO BOMBA 2",""),"") ->  | K20: =+IF(F19>0,IF(F20=0,"APAGADO BOMBAS",""),"") ->  | L20: =+CONCATENATE(I20,J20,K20) ->  | M20: 0 | N20: 0 | O20: 0 | R20: AREA INTERIOR | S20: =+S19*S19 -> 6.278922294
B21: 3 | C21: 1.08 | D21: 1.08 | E21: 0 | F21: 0 | G21: 3.24 | H21: 0.4425483822 | M21: 0 | N21: 0 | O21: 0 | R21: D AREA | S21: =+G7-S20 -> 1.042311113
B22: 4 | C22: 1.08 | D22: 1.08 | E22: 0 | F22: 0 | G22: 4.32 | H22: 0.5900645097 | I22: =+IF(E21=0,IF(E22>0,"ENCENDIDO BOMBA 1",""),"") ->  | M22: 0 | N22: 0 | O22: 0
B23: 5 | C23: 1.08 | D23: 1.08 | E23: 0 | F23: 0 | G23: 5.4 | H23: 0.7375806371 | I23: =+IF(E22=0,IF(E23>0,"ENCENDIDO BOMBA 1",""),"") ->  | M23: 928.956 | N23: 0 | O23: 928.956
B24: 6 | C24: 1.08 | D24: 1.08 | E24: 0.9891392012 | F24: 0 | G24: 5.490860799 | H24: 0.7499912233 | I24: ENCENDIDO BOMBA 1 | L24: ENCENDIDO BOMBA 1 | M24: 928.956 | N24: 0 | O24: 928.956
B25: 7 | C25: 1.08 | D25: 1.08 | E25: 0.9891392012 | F25: 0 | G25: 5.581721598 | H25: 0.7624018096 | M25: 928.956 | N25: 0 | O25: 928.956
B26: 8 | C26: 1.08 | D26: 1.08 | E26: 0.9891392012 | F26: 0 | G26: 5.672582396 | H26: 0.7748123959 | J26: =+IF(F25=0,IF(F26>0,"ENCENDIDO BOMBA 2",""),"") ->  | M26: 928.956 | N26: 0 | O26: 928.956
B27: 9 | C27: 1.08 | D27: 1.08 | E27: 0.9891392012 | F27: 0 | G27: 5.763443195 | H27: 0.7872229821 | M27: 928.956 | N27: 0 | O27: 928.956
B28: 10 | C28: 1.08 | D28: 1.08 | E28: 0.9891392012 | F28: 0 | G28: 5.854303994 | H28: 0.7996335684 | M28: 928.956 | N28: 0 | O28: 928.956
B29: 11 | C29: 1.08 | D29: 1.08 | E29: 0.9891392012 | F29: 0 | G29: 5.945164793 | H29: 0.8120441547 | M29: 928.956 | N29: 0 | O29: 928.956
B30: 12 | C30: 1.08 | D30: 1.08 | E30: 0.9891392012 | F30: 0 | G30: 6.036025591 | H30: 0.8244547409 | M30: 928.956 | N30: 0 | O30: 928.956
B31: 13 | C31: 1.08 | D31: 1.08 | E31: 0.9891392012 | F31: 0 | G31: 6.12688639 | H31: 0.8368653272 | M31: 928.956 | N31: 0 | O31: 928.956
B32: 14 | C32: 1.08 | D32: 1.08 | E32: 0.9891392012 | F32: 0 | G32: 6.217747189 | H32: 0.8492759135 | J32: =+IF(F31=0,IF(F32>0,"ENCENDIDO BOMBA 2",""),"") ->  | M32: 928.956 | N32: 0 | O32: 928.956
B33: 15 | C33: 1.08 | D33: 1.08 | E33: 0.9891392012 | F33: 0 | G33: 6.308607988 | H33: 0.8616864997 | M33: 928.956 | N33: 0 | O33: 928.956
B34: 16 | C34: 1.08 | D34: 1.08 | E34: 0.9891392012 | F34: 0 | G34: 6.399468786 | H34: 0.874097086 | K34: =+IF(F33>0,IF(F34=0,"APAGADO BOMBAS",""),"") ->  | M34: 928.956 | N34: 0 | O34: 928.956
B35: 17 | C35: 1.08 | D35: 1.08 | E35: 0.9891392012 | F35: 0 | G35: 6.490329585 | H35: 0.8865076722 | I35: =+IF(E34=0,IF(E35>0,"ENCENDIDO BOMBA 1",""),"") ->  | M35: 928.956 | N35: 0 | O35: 928.956
B36: 18 | C36: 1.08 | D36: 1.08 | E36: 0.9891392012 | F36: 0 | G36: 6.581190384 | H36: 0.8989182585 | M36: 928.956 | N36: 0 | O36: 928.956
B37: 19 | C37: 1.08 | D37: 1.08 | E37: 0.9891392012 | F37: 0 | G37: 6.672051183 | H37: 0.9113288448 | M37: 928.956 | N37: 0 | O37: 928.956
B38: 20 | C38: 1.08 | D38: 1.08 | E38: 0.9891392012 | F38: 0 | G38: 6.762911981 | H38: 0.923739431 | M38: 928.956 | N38: 0 | O38: 928.956
B39: 21 | C39: 1.08 | D39: 1.08 | E39: 0.9891392012 | F39: 0 | G39: 6.85377278 | H39: 0.9361500173 | J39: =+IF(F38=0,IF(F39>0,"ENCENDIDO BOMBA 2",""),"") ->  | M39: 928.956 | N39: 0 | O39: 928.956
B40: 22 | C40: 1.08 | D40: 1.08 | E40: 0.9891392012 | F40: 0 | G40: 6.944633579 | H40: 0.9485606036 | M40: 928.956 | N40: 0 | O40: 928.956
B41: 23 | C41: 1.08 | D41: 1.08 | E41: 0.9891392012 | F41: 0 | G41: 7.035494378 | H41: 0.9609711898 | M41: 928.956 | N41: 0 | O41: 928.956
B42: 24 | C42: 1.08 | D42: 1.08 | E42: 0.9891392012 | F42: 0 | G42: 7.126355176 | H42: 0.9733817761 | M42: 928.956 | N42: 0 | O42: 928.956
B43: 25 | C43: 1.08 | D43: 1.08 | E43: 0.9891392012 | F43: 0 | G43: 7.217215975 | H43: 0.9857923624 | K43: =+IF(F42>0,IF(F43=0,"APAGADO BOMBAS",""),"") ->  | M43: 928.956 | N43: 0 | O43: 928.956
B44: 26 | C44: 1.08 | D44: 1.08 | E44: 0.9891392012 | F44: 0 | G44: 7.308076774 | H44: 0.9982029486 | M44: 928.956 | N44: 0 | O44: 928.956
B45: 27 | C45: 1.08 | D45: 1.08 | E45: 0.9891392012 | F45: 0 | G45: 7.398937573 | H45: 1.010613535 | J45: =+IF(F44=0,IF(F45>0,"ENCENDIDO BOMBA 2",""),"") ->  | M45: 928.956 | N45: 928.956 | O45: 1857.912
B46: 28 | C46: 1.08 | D46: 1.08 | E46: 0.9891392012 | F46: 0.9891392012 | G46: 6.50065917 | H46: 0.88791858 | J46: ENCENDIDO BOMBA 2 | L46: ENCENDIDO BOMBA 2 | M46: 928.956 | N46: 928.956 | O46: 1857.912
B47: 29 | C47: 1.08 | D47: 1.08 | E47: 0.9891392012 | F47: 0.9891392012 | G47: 5.602380768 | H47: 0.7652236251 | M47: 928.956 | N47: 928.956 | O47: 1857.912
B48: 30 | C48: 1.08 | D48: 1.08 | E48: 0.9891392012 | F48: 0.9891392012 | G48: 4.704102365 | H48: 0.6425286702 | M48: 928.956 | N48: 928.956 | O48: 1857.912
B49: 31 | C49: 1.08 | D49: 1.08 | E49: 0.9891392012 | F49: 0.9891392012 | G49: 3.805823963 | H49: 0.5198337154 | M49: 928.956 | N49: 928.956 | O49: 1857.912
B50: 32 | C50: 1.08 | D50: 1.08 | E50: 0.9891392012 | F50: 0.9891392012 | G50: 2.90754556 | H50: 0.3971387605 | M50: =IF(E51>0,$S$10*$S$11,0) -> 928.956 | N50: 928.956 | O50: 1857.912
B51: 33 | C51: 1.08 | D51: 1.08 | E51: =IF(E50=0,IF(H50<$G$9,0,$C$11),IF(H50<$G$8,0,E50)) -> 0.9891392012 | F51: =IF(F50=0,IF(H50<$G$9,0,IF(H50<$G$10,0,$C$11)),IF(H50<$G$8,0,F50)) -> 0.9891392012 | G51: 2.009267158 | H51: =+G51/$G$7 -> 0.2744438056 | M51: 928.956 | N51: =IF(F52>0,$S$10*$S$11,0) -> 928.956 | O51: 1857.912
B52: 34 | C52: 1.08 | D52: 1.08 | E52: 0.9891392012 | F52: 0.9891392012 | G52: 1.110988755 | H52: 0.1517488507 | J52: =+IF(F51=0,IF(F52>0,"ENCENDIDO BOMBA 2",""),"") ->  | M52: 0 | N52: 0 | O52: 0
B53: 35 | C53: 1.08 | D53: 1.08 | E53: 0 | F53: 0 | G53: 2.190988755 | H53: 0.2992649781 | K53: APAGADO BOMBAS | L53: APAGADO BOMBAS | M53: 0 | N53: 0 | O53: 0
B54: 36 | C54: 1.08 | D54: 1.08 | E54: 0 | F54: 0 | G54: 3.270988755 | H54: 0.4467811055 | M54: 0 | N54: 0 | O54: 0
B55: 37 | C55: 1.08 | D55: 1.08 | E55: 0 | F55: 0 | G55: 4.350988755 | H55: 0.5942972329 | M55: 0 | N55: 0 | O55: 0
B56: 38 | C56: 1.08 | D56: 1.08 | E56: 0 | F56: 0 | G56: 5.430988755 | H56: 0.7418133604 | M56: 928.956 | N56: 0 | O56: 928.956
B57: 39 | C57: 1.08 | D57: 1.08 | E57: 0.9891392012 | F57: 0 | G57: 5.521849554 | H57: 0.7542239466 | I57: ENCENDIDO BOMBA 1 | L57: ENCENDIDO BOMBA 1 | M57: 928.956 | N57: 0 | O57: 928.956
B58: 40 | C58: 1.08 | D58: 1.08 | E58: 0.9891392012 | F58: 0 | G58: 5.612710353 | H58: 0.7666345329 | J58: =+IF(F57=0,IF(F58>0,"ENCENDIDO BOMBA 2",""),"") ->  | K58: =+IF(F57>0,IF(F58=0,"APAGADO BOMBAS",""),"") ->  | M58: 928.956 | N58: 0 | O58: 928.956
B59: 41 | C59: 1.08 | D59: 1.08 | E59: 0.9891392012 | F59: 0 | G59: 5.703571151 | H59: 0.7790451191 | K59: =+IF(F58>0,IF(F59=0,"APAGADO BOMBAS",""),"") ->  | M59: 928.956 | N59: 0 | O59: 928.956
B60: 42 | C60: 1.08 | D60: 1.08 | E60: 0.9891392012 | F60: 0 | G60: 5.79443195 | H60: 0.7914557054 | K60: =+IF(F59>0,IF(F60=0,"APAGADO BOMBAS",""),"") ->  | M60: 928.956 | N60: 0 | O60: 928.956
B61: 43 | C61: 1.08 | D61: 1.08 | E61: 0.9891392012 | F61: 0 | G61: 5.885292749 | H61: 0.8038662917 | M61: 928.956 | N61: 0 | O61: 928.956
B62: 44 | C62: 1.08 | D62: 1.08 | E62: 0.9891392012 | F62: 0 | G62: 5.976153548 | H62: 0.8162768779 | M62: 928.956 | N62: 0 | O62: 928.956
B63: 45 | C63: 1.08 | D63: 1.08 | E63: 0.9891392012 | F63: 0 | G63: 6.067014346 | H63: 0.8286874642 | M63: 928.956 | N63: 0 | O63: 928.956
B64: 46 | C64: 1.08 | D64: 1.08 | E64: 0.9891392012 | F64: 0 | G64: 6.157875145 | H64: 0.8410980505 | M64: 928.956 | N64: 0 | O64: 928.956
B65: 47 | C65: 1.08 | D65: 1.08 | E65: 0.9891392012 | F65: 0 | G65: 6.248735944 | H65: 0.8535086367 | J65: =+IF(F64=0,IF(F65>0,"ENCENDIDO BOMBA 2",""),"") ->  | M65: 928.956 | N65: 0 | O65: 928.956
B66: 48 | C66: 1.08 | D66: 1.08 | E66: 0.9891392012 | F66: 0 | G66: 6.339596743 | H66: 0.865919223 | M66: 928.956 | N66: 0 | O66: 928.956
B67: 49 | C67: 1.08 | D67: 1.08 | E67: 0.9891392012 | F67: 0 | G67: 6.430457541 | H67: 0.8783298093 | J67: =+IF(F66=0,IF(F67>0,"ENCENDIDO BOMBA 2",""),"") ->  | M67: 928.956 | N67: 0 | O67: 928.956
B68: 50 | C68: 1.08 | D68: 1.08 | E68: 0.9891392012 | F68: 0 | G68: 6.52131834 | H68: 0.8907403955 | M68: 928.956 | N68: 0 | O68: 928.956
B69: 51 | C69: 1.08 | D69: 1.08 | E69: 0.9891392012 | F69: 0 | G69: 6.612179139 | H69: 0.9031509818 | M69: 928.956 | N69: 0 | O69: 928.956
B70: 52 | C70: 1.08 | D70: 1.08 | E70: 0.9891392012 | F70: 0 | G70: 6.703039938 | H70: 0.9155615681 | M70: 928.956 | N70: 0 | O70: 928.956
B71: 53 | C71: 1.08 | D71: 1.08 | E71: 0.9891392012 | F71: 0 | G71: 6.793900736 | H71: 0.9279721543 | M71: 928.956 | N71: 0 | O71: 928.956
B72: 54 | C72: 1.08 | D72: 1.08 | E72: 0.9891392012 | F72: 0 | G72: 6.884761535 | H72: 0.9403827406 | K72: =+IF(F71>0,IF(F72=0,"APAGADO BOMBAS",""),"") ->  | M72: 928.956 | N72: 0 | O72: 928.956
B73: 55 | C73: 1.08 | D73: 1.08 | E73: 0.9891392012 | F73: 0 | G73: 6.975622334 | H73: 0.9527933268 | K73: =+IF(F72>0,IF(F73=0,"APAGADO BOMBAS",""),"") ->  | M73: 928.956 | N73: 0 | O73: 928.956
B74: 56 | C74: 1.08 | D74: 1.08 | E74: 0.9891392012 | F74: 0 | G74: 7.066483133 | H74: 0.9652039131 | J74: =+IF(F73=0,IF(F74>0,"ENCENDIDO BOMBA 2",""),"") ->  | M74: 928.956 | N74: 0 | O74: 928.956
B75: 57 | C75: 1.08 | D75: 1.08 | E75: 0.9891392012 | F75: 0 | G75: 7.157343931 | H75: 0.9776144994 | M75: 928.956 | N75: 0 | O75: 928.956
B76: 58 | C76: 1.08 | D76: 1.08 | E76: 0.9891392012 | F76: 0 | G76: 7.24820473 | H76: 0.9900250856 | M76: 928.956 | N76: 0 | O76: 928.956
B77: 59 | C77: 1.08 | D77: 1.08 | E77: 0.9891392012 | F77: 0 | G77: 7.339065529 | H77: 1.002435672 | M77: 928.956 | N77: 928.956 | O77: 1857.912
B78: 60 | C78: 1.08 | D78: 1.08 | E78: 0.9891392012 | F78: 0.9891392012 | G78: 6.440787126 | H78: 0.879740717 | J78: ENCENDIDO BOMBA 2 | L78: ENCENDIDO BOMBA 2 | M78: 0 | N78: 0 | O78: =SUM(M78:N78) -> 0
M79: COSTO TOTAL OPERACIÓN BOMBAS POR HORA | O79: =SUM(O18:O78) -> 54808.404
H80: B2 | L80: =+COUNTIF(L18:L78,"ENCENDIDO BOMBA 2") -> 2

Sheet ESC 3 MAS EN B2 10 AÑOS
B2: CUADRO 20. MODELACIÓN PARA OPTIMIZACIÓN DE LA RED DE BOMBEO AGUAS RESIDUALES - ESCENARIO 3, DIEZ AÑOS.
B4: DATOS BOMBEO | F4: DATOS POZO EYECTOR | M4: DATOS COSTOS | R4: ELEMENTO | S4: VALOR
F5: TIEMPO LLENADO | G5: 11.17198691 | H5: MIN | M5: VOL CONCRETO | N5: =+G11*$S$21 -> 1.587997285 | O5: m3 | R5: PLACA | S5: =152000/0.257 -> 591439.6887
B6: Q DISEÑO | C6: 18 | D6: L/S | F6: VOL EYECTOR | G6: =+C6*$G$5*60/1000 -> 12.06574587 | H6: m3 | M6: COSTO CONCRETO | N6: =+S8 -> 631723.2296 | O6: $/m3 | R6: VIGAS | S6: 723730
B7: Q DISEÑO | C7: =+C6/1000 -> 0.018 | D7: M3/S | F7: AREA | G7: =+G6/G11 -> 8.618389904 | H7: m2 | M7: COSTO TOTALPOZO | N7: =+N5*N6 -> 1003174.774 | O7: $ | R7: MURO | S7: 580000
B8: FRACCIONAMIENTO | C8: 0.8646798849 | F8: ALTURA (m) | G8: 0.2 | H8: PARADO BOMBAS | M8: TIEMPO AMORTIZACIÓN | N8: =365*10 -> 3650 | O8: dias | R8: PROMEDIO | S8: =+AVERAGE(S5:S7) -> 631723.2296
B9: Q BOMBEO | C9: =$C$8*C6 -> 15.56423793 | D9: L/S | G9: =+G8+0.4 -> 0.6 | H9: ENCENDIDO BOMBA 1 | M9: TIEMPO AMORTIZACIÓN | N9: =+N8*16 -> 58400 | O9: HORAS
B10: Q BOMBEO | C10: =C8*C7 -> 0.01556423793 | D10: L/S | G10: =+G9+0.4 -> 1 | H10: ENCENDIDO BOMBA 2 | M10: COSTO POZO | N10: =N5*N6/N9 -> 17.17765023 | O10: $/Hora | R10: COSTO $/KW | S10: =+(208.12+123.65)/2 -> 165.885
B11: Q BOMBEO | C11: =+C10*60 -> 0.9338542757 | D11: M3/S | G11: =+G10+0.4 -> 1.4 | H11: NIVEL ALARMA | R11: Kw CONSUMIDOS PROM. | S11: 5.6
M12: COSTO TOTAL | N12: =N10+O79 -> 56683.49365 | O12: $
B15: 1 | C15: 2 | D15: 3 | E15: 4 | F15: 5 | G15: 6 | H15: 7 | L15: 8 | M15: 9 | N15: 10 | O15: 11
B17: TIEMPO T (MIN) | C17: Qentrada M3/MIN | D17: VOLUMEN ENTRADA (m3) | E17: VOL SALIDA 1 (m3) | F17: VOL SALIDA 2 (m3) | G17: VOLUMEN ACUMULADO (m3) | H17: ALTURA (m) | I17: OBS | J17: OBS | K17: OBS | L17: OBS | M17: COSTO KW ($) ENCENDIDO BOMBA 1 | N17: COSTO KW ($) ENCENDIDO BOMBA 2 | O17: COSTO KW ($) ENCENDIDO BOMBAS 1 Y 2
B18: 0 | E18: 0 | F18: 0 | M18: =IF(E19>0,$S$10*$S$11,0) -> 0 | N18: =+$S$10*F19 -> 0 | O18: =SUM(M18:N18) -> 0 | R18: LADO EXT POZO | S18: =SQRT(G7) -> 2.935709438
B19: 1 | C19: =+$C$7*60 -> 1.08 | D19: =+C19*1 -> 1.08 | E19: =IF(E18=0,IF(H18<$G$9,0,$C$11),IF(H18<$G$8,0,E18)) -> 0 | F19: =IF(F18=0,IF(H18<$G$9,0,IF(H18<$G$10,0,$C$11)),IF(H18<$G$8,0,F18)) -> 0 | G19: =+D19-E19-F19 -> 1.08 | H19: =+G19/$G$7 -> 0.12531343 | I19: =+IF(E18=0,IF(E19>0,"ENCENDIDO BOMBA 1",IF(F18=0,IF(F19>0,"ENCENDIDO BOMBA 2","")))) ->  | J19: =+IF(F18=0,IF(F19>0,"ENCENDIDO BOMBA 2",""),"") ->  | K19: =+IF(F18>0,IF(F19=0,"APAGADO BOMBAS",""),"") ->  | L19: =+CONCATENATE(I19,J19,K19) ->  | M19: 0 | N19: =IF(F20>0,$S$10*$S$11,0) -> 0 | O19: =SUM(M19:N19) -> 0 | R19: LADO INT POZO | S19: =+S18-0.2 -> 2.735709438
B20: 2 | C20: =+$C$7*60 -> 1.08 | D20: =+C20*1 -> 1.08 | E20: 0 | F20: 0 | G20: =+G19+D20-E20-F20 -> 2.16 | H20: 0.25062686 | I20: =+IF(E19=0,IF(E20>0,"ENCENDIDO BOMBA 1",IF(F19=0,IF(F20>0,"ENCENDIDO BOMBA 2","")))) ->  | J20: =+IF(F19=0,IF(F20>0,"ENCENDIDO BOMBA 2",""),"") ->  | K20: =+IF(F19>0,IF(F20=0,"APAGADO BOMBAS",""),"") ->  | L20: =+CONCATENATE(I20,J20,K20) ->  | M20: 0 | N20: 0 | O20: 0 | R20: AREA INTERIOR | S20: =+S19*S19 -> 7.484106129
B21: 3 | C21: 1.08 | D21: 1.08 | E21: 0 | F21: 0 | G21: 3.24 | H21: 0.37594029 | M21: 0 | N21: 0 | O21: 0 | R21: D AREA | S21: =+G7-S20 -> 1.134283775
B22: 4 | C22: 1.08 | D22: 1.08 | E22: 0 | F22: 0 | G22: 4.32 | H22: 0.50125372 | I22: =+IF(E21=0,IF(E22>0,"ENCENDIDO BOMBA 1",""),"") ->  | M22: 0 | N22: 0 | O22: 0
B23: 5 | C23: 1.08 | D23: 1.08 | E23: 0 | F23: 0 | G23: 5.4 | H23: 0.62656715 | I23: =+IF(E22=0,IF(E23>0,"ENCENDIDO BOMBA 1",""),"") ->  | M23: 928.956 | N23: 0 | O23: 928.956
B24: 6 | C24: 1.08 | D24: 1.08 | E24: 0.9338542757 | F24: 0 | G24: 5.546145724 | H24: 0.6435245778 | I24: ENCENDIDO BOMBA 1 | L24: ENCENDIDO BOMBA 1 | M24: 928.956 | N24: 0 | O24: 928.956
B25: 7 | C25: 1.08 | D25: 1.08 | E25: 0.9338542757 | F25: 0 | G25: 5.692291449 | H25: 0.6604820056 | M25: 928.956 | N25: 0 | O25: 928.956
B26: 8 | C26: 1.08 | D26: 1.08 | E26: 0.9338542757 | F26: 0 | G26: 5.838437173 | H26: 0.6774394333 | J26: =+IF(F25=0,IF(F26>0,"ENCENDIDO BOMBA 2",""),"") ->  | M26: 928.956 | N26: 0 | O26: 928.956
B27: 9 | C27: 1.08 | D27: 1.08 | E27: 0.9338542757 | F27: 0 | G27: 5.984582897 | H27: 0.6943968611 | M27: 928.956 | N27: 0 | O27: 928.956
B28: 10 | C28: 1.08 | D28: 1.08 | E28: 0.9338542757 | F28: 0 | G28: 6.130728622 | H28: 0.7113542889 | M28: 928.956 | N28: 0 | O28: 928.956
B29: 11 | C29: 1.08 | D29: 1.08 | E29: 0.9338542757 | F29: 0 | G29: 6.276874346 | H29: 0.7283117166 | M29: 928.956 | N29: 0 | O29: 928.956
B30: 12 | C30: 1.08 | D30: 1.08 | E30: 0.9338542757 | F30: 0 | G30: 6.42302007 | H30: 0.7452691444 | M30: 928.956 | N30: 0 | O30: 928.956
B31: 13 | C31: 1.08 | D31: 1.08 | E31: 0.9338542757 | F31: 0 | G31: 6.569165794 | H31: 0.7622265722 | M31: 928.956 | N31: 0 | O31: 928.956
B32: 14 | C32: 1.08 | D32: 1.08 | E32: 0.9338542757 | F32: 0 | G32: 6.715311519 | H32: 0.779184 | J32: =+IF(F31=0,IF(F32>0,"ENCENDIDO BOMBA 2",""),"") ->  | M32: 928.956 | N32: 0 | O32: 928.956
B33: 15 | C33: 1.08 | D33: 1.08 | E33: 0.9338542757 | F33: 0 | G33: 6.861457243 | H33: 0.7961414277 | M33: 928.956 | N33: 0 | O33: 928.956
B34: 16 | C34: 1.08 | D34: 1.08 | E34: 0.9338542757 | F34: 0 | G34: 7.007602967 | H34: 0.8130988555 | K34: =+IF(F33>0,IF(F34=0,"APAGADO BOMBAS",""),"") ->  | M34: 928.956 | N34: 0 | O34: 928.956
B35: 17 | C35: 1.08 | D35: 1.08 | E35: 0.9338542757 | F35: 0 | G35: 7.153748692 | H35: 0.8300562833 | I35: =+IF(E34=0,IF(E35>0,"ENCENDIDO BOMBA 1",""),"") ->  | M35: 928.956 | N35: 0 | O35: 928.956
B36: 18 | C36: 1.08 | D36: 1.08 | E36: 0.9338542757 | F36: 0 | G36: 7.299894416 | H36: 0.847013711 | M36: 928.956 | N36: 0 | O36: 928.956
B37: 19 | C37: 1.08 | D37: 1.08 | E37: 0.9338542757 | F37: 0 | G37: 7.44604014 | H37: 0.8639711388 | M37: 928.956 | N37: 0 | O37: 928.956
B38: 20 | C38: 1.08 | D38: 1.08 | E38: 0.9338542757 | F38: 0 | G38: 7.592185865 | H38: 0.8809285666 | M38: 928.956 | N38: 0 | O38: 928.956
B39: 21 | C39: 1.08 | D39: 1.08 | E39: 0.9338542757 | F39: 0 | G39: 7.738331589 | H39: 0.8978859944 | J39: =+IF(F38=0,IF(F39>0,"ENCENDIDO BOMBA 2",""),"") ->  | M39: 928.956 | N39: 0 | O39: 928.956
B40: 22 | C40: 1.08 | D40: 1.08 | E40: 0.9338542757 | F40: 0 | G40: 7.884477313 | H40: 0.9148434221 | M40: 928.956 | N40: 0 | O40: 928.956
B41: 23 | C41: 1.08 | D41: 1.08 | E41: 0.9338542757 | F41: 0 | G41: 8.030623038 | H41: 0.9318008499 | M41: 928.956 | N41: 0 | O41: 928.956
B42: 24 | C42: 1.08 | D42: 1.08 | E42: 0.9338542757 | F42: 0 | G42: 8.176768762 | H42: 0.9487582777 | M42: 928.956 | N42: 0 | O42: 928.956
B43: 25 | C43: 1.08 | D43: 1.08 | E43: 0.9338542757 | F43: 0 | G43: 8.322914486 | H43: 0.9657157054 | K43: =+IF(F42>0,IF(F43=0,"APAGADO BOMBAS",""),"") ->  | M43: 928.956 | N43: 0 | O43: 928.956
B44: 26 | C44: 1.08 | D44: 1.08 | E44: 0.9338542757 | F44: 0 | G44: 8.469060211 | H44: 0.9826731332 | M44: 928.956 | N44: 0 | O44: 928.956
B45: 27 | C45: 1.08 | D45: 1.08 | E45: 0.9338542757 | F45: 0 | G45: 8.615205935 | H45: 0.999630561 | J45: =+IF(F44=0,IF(F45>0,"ENCENDIDO BOMBA 2",""),"") ->  | M45: 928.956 | N45: 0 | O45: 928.956
B46: 28 | C46: 1.08 | D46: 1.08 | E46: 0.9338542757 | F46: 0 | G46: 8.761351659 | H46: 1.016587989 | M46: 928.956 | N46: 928.956 | O46: 1857.912
B47: 29 | C47: 1.08 | D47: 1.08 | E47: 0.9338542757 | F47: 0.9338542757 | G47: 7.973643108 | H47: 0.9251894143 | J47: ENCENDIDO BOMBA 2 | L47: ENCENDIDO BOMBA 2 | M47: 928.956 | N47: 928.956 | O47: 1857.912
B48: 30 | C48: 1.08 | D48: 1.08 | E48: 0.9338542757 | F48: 0.9338542757 | G48: 7.185934556 | H48: 0.8337908398 | M48: 928.956 | N48: 928.956 | O48: 1857.912
B49: 31 | C49: 1.08 | D49: 1.08 | E49: 0.9338542757 | F49: 0.9338542757 | G49: 6.398226005 | H49: 0.7423922654 | M49: 928.956 | N49: 928.956 | O49: 1857.912
B50: 32 | C50: 1.08 | D50: 1.08 | E50: 0.9338542757 | F50: 0.9338542757 | G50: 5.610517454 | H50: 0.6509936909 | M50: =IF(E51>0,$S$10*$S$11,0) -> 928.956 | N50: 928.956 | O50: 1857.912
B51: 33 | C51: 1.08 | D51: 1.08 | E51: =IF(E50=0,IF(H50<$G$9,0,$C$11),IF(H50<$G$8,0,E50)) -> 0.9338542757 | F51: =IF(F50=0,IF(H50<$G$9,0,IF(H50<$G$10,0,$C$11)),IF(H50<$G$8,0,F50)) -> 0.9338542757 | G51: 4.822808902 | H51: =+G51/$G$7 -> 0.5595951165 | M51: 928.956 | N51: =IF(F52>0,$S$10*$S$11,0) -> 928.956 | O51: 1857.912
B52: 34 | C52: 1.08 | D52: 1.08 | E52: 0.9338542757 | F52: 0.9338542757 | G52: 4.035100351 | H52: 0.468196542 | J52: =+IF(F51=0,IF(F52>0,"ENCENDIDO BOMBA 2",""),"") ->  | M52: 928.956 | N52: 928.956 | O52: 1857.912
B53: 35 | C53: 1.08 | D53: 1.08 | E53: 0.9338542757 | F53: 0.9338542757 | G53: 3.247391799 | H53: 0.3767979676 | M53: 928.956 | N53: 928.956 | O53: 1857.912
B54: 36 | C54: 1.08 | D54: 1.08 | E54: 0.9338542757 | F54: 0.9338542757 | G54: 2.459683248 | H54: 0.2853993931 | M54: 928.956 | N54: 928.956 | O54: 1857.912
B55: 37 | C55: 1.08 | D55: 1.08 | E55: 0.9338542757 | F55: 0.9338542757 | G55: 1.671974697 | H55: 0.1940008186 | M55: 0 | N55: 0 | O55: 0
B56: 38 | C56: 1.08 | D56: 1.08 | E56: 0 | F56: 0 | G56: 2.751974697 | H56: 0.3193142486 | K56: APAGADO BOMBAS | L56: APAGADO BOMBAS | M56: 0 | N56: 0 | O56: 0
B57: 39 | C57: 1.08 | D57: 1.08 | E57: 0 | F57: 0 | G57: 3.831974697 | H57: 0.4446276786 | M57: 0 | N57: 0 | O57: 0
B58: 40 | C58: 1.08 | D58: 1.08 | E58: 0 | F58: 0 | G58: 4.911974697 | H58: 0.5699411086 | J58: =+IF(F57=0,IF(F58>0,"ENCENDIDO BOMBA 2",""),"") ->  | K58: =+IF(F57>0,IF(F58=0,"APAGADO BOMBAS",""),"") ->  | M58: 0 | N58: 0 | O58: 0
B59: 41 | C59: 1.08 | D59: 1.08 | E59: 0 | F59: 0 | G59: 5.991974697 | H59: 0.6952545386 | K59: =+IF(F58>0,IF(F59=0,"APAGADO BOMBAS",""),"") ->  | M59: 928.956 | N59: 0 | O59: 928.956
B60: 42 | C60: 1.08 | D60: 1.08 | E60: 0.9338542757 | F60: 0 | G60: 6.138120421 | H60: 0.7122119664 | I60: ENCENDIDO BOMBA 1 | K60: =+IF(F59>0,IF(F60=0,"APAGADO BOMBAS",""),"") ->  | L60: ENCENDIDO BOMBA 1 | M60: 928.956 | N60: 0 | O60: 928.956
B61: 43 | C61: 1.08 | D61: 1.08 | E61: 0.9338542757 | F61: 0 | G61: 6.284266145 | H61: 0.7291693942 | M61: 928.956 | N61: 0 | O61: 928.956
B62: 44 | C62: 1.08 | D62: 1.08 | E62: 0.9338542757 | F62: 0 | G62: 6.43041187 | H62: 0.746126822 | M62: 928.956 | N62: 0 | O62: 928.956
B63: 45 | C63: 1.08 | D63: 1.08 | E63: 0.9338542757 | F63: 0 | G63: 6.576557594 | H63: 0.7630842497 | M63: 928.956 | N63: 0 | O63: 928.956
B64: 46 | C64: 1.08 | D64: 1.08 | E64: 0.9338542757 | F64: 0 | G64: 6.722703318 | H64: 0.7800416775 | M64: 928.956 | N64: 0 | O64: 928.956
B65: 47 | C65: 1.08 | D65: 1.08 | E65: 0.9338542757 | F65: 0 | G65: 6.868849043 | H65: 0.7969991053 | J65: =+IF(F64=0,IF(F65>0,"ENCENDIDO BOMBA 2",""),"") ->  | M65: 928.956 | N65: 0 | O65: 928.956
B66: 48 | C66: 1.08 | D66: 1.08 | E66: 0.9338542757 | F66: 0 | G66: 7.014994767 | H66: 0.813956533 | M66: 928.956 | N66: 0 | O66: 928.956
B67: 49 | C67: 1.08 | D67: 1.08 | E67: 0.9338542757 | F67: 0 | G67: 7.161140491 | H67: 0.8309139608 | J67: =+IF(F66=0,IF(F67>0,"ENCENDIDO BOMBA 2",""),"") ->  | M67: 928.956 | N67: 0 | O67: 928.956
B68: 50 | C68: 1.08 | D68: 1.08 | E68: 0.9338542757 | F68: 0 | G68: 7.307286216 | H68: 0.8478713886 | M68: 928.956 | N68: 0 | O68: 928.956
B69: 51 | C69: 1.08 | D69: 1.08 | E69: 0.9338542757 | F69: 0 | G69: 7.45343194 | H69: 0.8648288164 | M69: 928.956 | N69: 0 | O69: 928.956
B70: 52 | C70: 1.08 | D70: 1.08 | E70: 0.9338542757 | F70: 0 | G70: 7.599577664 | H70: 0.8817862441 | M70: 928.956 | N70: 0 | O70: 928.956
B71: 53 | C71: 1.08 | D71: 1.08 | E71: 0.9338542757 | F71: 0 | G71: 7.745723388 | H71: 0.8987436719 | M71: 928.956 | N71: 0 | O71: 928.956
B72: 54 | C72: 1.08 | D72: 1.08 | E72: 0.9338542757 | F72: 0 | G72: 7.891869113 | H72: 0.9157010997 | K72: =+IF(F71>0,IF(F72=0,"APAGADO BOMBAS",""),"") ->  | M72: 928.956 | N72: 0 | O72: 928.956
B73: 55 | C73: 1.08 | D73: 1.08 | E73: 0.9338542757 | F73: 0 | G73: 8.038014837 | H73: 0.9326585274 | K73: =+IF(F72>0,IF(F73=0,"APAGADO BOMBAS",""),"") ->  | M73: 928.956 | N73: 0 | O73: 928.956
B74: 56 | C74: 1.08 | D74: 1.08 | E74: 0.9338542757 | F74: 0 | G74: 8.184160561 | H74: 0.9496159552 | J74: =+IF(F73=0,IF(F74>0,"ENCENDIDO BOMBA 2",""),"") ->  | M74: 928.956 | N74: 0 | O74: 928.956
B75: 57 | C75: 1.08 | D75: 1.08 | E75: 0.9338542757 | F75: 0 | G75: 8.330306286 | H75: 0.966573383 | M75: 928.956 | N75: 0 | O75: 928.956
B76: 58 | C76: 1.08 | D76: 1.08 | E76: 0.9338542757 | F76: 0 | G76: 8.47645201 | H76: 0.9835308108 | M76: 928.956 | N76: 0 | O76: 928.956
B77: 59 | C77: 1.08 | D77: 1.08 | E77: 0.9338542757 | F77: 0 | G77: 8.622597734 | H77: 1.000488239 | M77: 928.956 | N77: 928.956 | O77: 1857.912
B78: 60 | C78: 1.08 | D78: 1.08 | E78: 0.9338542757 | F78: 0.9338542757 | G78: 7.834889183 | H78: 0.9090896641 | J78: ENCENDIDO BOMBA 2 | L78: ENCENDIDO BOMBA 2 | M78: 0 | N78: 0 | O78: =SUM(M78:N78) -> 0
M79: COSTO TOTAL OPERACIÓN BOMBAS POR HORA | O79: =SUM(O18:O78) -> 56666.316
H80: B2 | L80: =+COUNTIF(L18:L78,"ENCENDIDO BOMBA 2") -> 2

Sheet 2ORIGINAL
B2: MODELACIÓN PARA OPTIMIZACIÓN DE LA RED DE BOMBEO AGUAS RESIDUALES
B4: DATOS BOMBEO | F4: DATOS POZO EYECTOR | M4: DATOS COSTOS | R4: ELEMENTO | S4: VALOR
F5: TIEMPO LLENADO | G5: 30 | H5: MIN | M5: VOL CONCRETO | N5: =+G11*$S$21 -> 2.637993318 | O5: m3 | R5: PLACA | S5: =152000/0.257 -> 591439.6887
B6: Q DISEÑO | C6: 18 | D6: L/S | F6: VOL EYECTOR | G6: =+C6*$G$5*60/1000 -> 32.4 | H6: m3 | M6: COSTO CONCRETO | N6: =+S8 -> 631723.2296 | O6: $/m3 | R6: VIGAS | S6: 723730
B7: Q DISEÑO | C7: =+C6/1000 -> 0.018 | D7: M3/S | F7: AREA | G7: =+G6/G11 -> 23.14285714 | H7: m2 | M7: COSTO TOTALPOZO | N7: =+N5*N6 -> 1666481.659 | O7: $ | R7: MURO | S7: 580000
B8: FRACCIONAMIENTO | C8: 78 | F8: ALTURA (m) | G8: 0.2 | H8: PARADO BOMBAS | M8: TIEMPO AMORTIZACIÓN | N8: =365 -> 365 | O8: dias | R8: PROMEDIO | S8: =+AVERAGE(S5:S7) -> 631723.2296
B9: Q BOMBEO | C9: =$C$8*C6 -> 1404 | D9: L/S | G9: =+G8+0.4 -> 0.6 | H9: ENCENDIDO BOMBA 1 | M9: TIEMPO AMORTIZACIÓN | N9: =+N8*16 -> 5840 | O9: HORAS
B10: Q BOMBEO | C10: =C8*C7 -> 1.404 | D10: L/S | G10: =+G9+0.4 -> 1 | H10: ENCENDIDO BOMBA 2 | M10: COSTO POZO | N10: =N5*N6/N9 -> 285.3564484 | O10: $/Hora | R10: COSTO $/KW | S10: =+(208.12+123.65)/2 -> 165.885
B11: Q BOMBEO | C11: =+C10*60 -> 84.24 | D11: M3/S | G11: =+G10+0.4 -> 1.4 | H11: NIVEL ALARMA | R11: Kw CONSUMIDOS PROM. | S11: 5.6
M12: COSTO TOTAL | N12: =N10+O79 -> 1214.312448 | O12: $
B15: 1 | C15: 2 | D15: 3 | E15: 4 | F15: 5 | G15: 6 | H15: 7 | L15: 8 | M15: 9 | N15: 10 | O15: 11
B17: TIEMPO T (MIN) | C17: Qentrada M3/MIN | D17: VOLUMEN ENTRADA (m3) | E17: VOL SALIDA 1 (m3) | F17: VOL SALIDA 2 (m3) | G17: VOLUMEN ACUMULADO (m3) | H17: ALTURA (m) | I17: OBS | J17: OBS | K17: OBS | L17: OBS | M17: COSTO KW ($) ENCENDIDO BOMBA 1 | N17: COSTO KW ($) ENCENDIDO BOMBA 2 | O17: COSTO KW ($) ENCENDIDO BOMBAS 1 Y 2
B18: 0 | E18: 0 | F18: 0 | M18: =IF(E19>0,$S$10*$S$11,0) -> 0 | N18: =+$S$10*F19 -> 0 | O18: =SUM(M18:N18) -> 0 | R18: LADO EXT POZO | S18: =SQRT(G7) -> 4.810702354
B19: 1 | C19: =+$C$7*60 -> 1.08 | D19: =+C19*1 -> 1.08 | E19: =IF(E18=0,IF(H18<$G$9,0,$C$11),IF(H18<$G$8,0,E18)) -> 0 | F19: =IF(F18=0,IF(H18<$G$9,0,IF(H18<$G$10,0,$C$11)),IF(H18<$G$8,0,F18)) -> 0 | G19: =+D19-E19-F19 -> 1.08 | H19: =+G19/$G$7 -> 0.04666666667 | I19: =+IF(E18=0,IF(E19>0,"ENCENDIDO BOMBA 1",IF(F18=0,IF(F19>0,"ENCENDIDO BOMBA 2","")))) ->  | J19: =+IF(F18=0,IF(F19>0,"ENCENDIDO BOMBA 2",""),"") ->  | K19: =+IF(F18>0,IF(F19=0,"APAGADO BOMBAS",""),"") ->  | L19: =+CONCATENATE(I19,J19,K19) ->  | M19: 0 | N19: 0 | O19: =SUM(M19:N19) -> 0 | R19: LADO INT POZO | S19: =+S18-0.2 -> 4.610702354
B20: 2 | C20: =+$C$7*60 -> 1.08 | D20: =+C20*1 -> 1.08 | E20: 0 | F20: 0 | G20: =+G19+D20-E20-F20 -> 2.16 | H20: 0.09333333333 | I20: =+IF(E19=0,IF(E20>0,"ENCENDIDO BOMBA 1",IF(F19=0,IF(F20>0,"ENCENDIDO BOMBA 2","")))) ->  | J20: =+IF(F19=0,IF(F20>0,"ENCENDIDO BOMBA 2",""),"") ->  | K20: =+IF(F19>0,IF(F20=0,"APAGADO BOMBAS",""),"") ->  | L20: =+CONCATENATE(I20,J20,K20) ->  | M20: 0 | N20: 0 | O20: 0 | R20: AREA INTERIOR | S20: =+S19*S19 -> 21.2585762
B21: 3 | C21: 1.08 | D21: 1.08 | E21: 0 | F21: 0 | G21: 3.24 | H21: 0.14 | M21: 0 | N21: 0 | O21: 0 | R21: D AREA | S21: =+G7-S20 -> 1.884280942
B22: 4 | C22: 1.08 | D22: 1.08 | E22: 0 | F22: 0 | G22: 4.32 | H22: 0.1866666667 | I22: =+IF(E21=0,IF(E22>0,"ENCENDIDO BOMBA 1",""),"") ->  | M22: 0 | N22: 0 | O22: 0
B23: 5 | C23: 1.08 | D23: 1.08 | E23: 0 | F23: 0 | G23: 5.4 | H23: 0.2333333333 | I23: =+IF(E22=0,IF(E23>0,"ENCENDIDO BOMBA 1",""),"") ->  | M23: 0 | N23: 0 | O23: 0
B24: 6 | C24: 1.08 | D24: 1.08 | E24: 0 | F24: 0 | G24: 6.48 | H24: 0.28 | M24: 0 | N24: 0 | O24: 0
B25: 7 | C25: 1.08 | D25: 1.08 | E25: 0 | F25: 0 | G25: 7.56 | H25: 0.3266666667 | M25: 0 | N25: 0 | O25: 0 | R25: DATOS BOMBEO EXISTENTE
B26: 8 | C26: 1.08 | D26: 1.08 | E26: 0 | F26: 0 | G26: 8.64 | H26: 0.3733333333 | J26: =+IF(F25=0,IF(F26>0,"ENCENDIDO BOMBA 2",""),"") ->  | M26: 0 | N26: 0 | O26: 0 | R26: Q DISEÑO | S26: 18 | T26: L/S
B27: 9 | C27: 1.08 | D27: 1.08 | E27: 0 | F27: 0 | G27: 9.72 | H27: 0.42 | M27: 0 | N27: 0 | O27: 0 | R27: TAMAÑO POZO | S27: =1.4*1.5*1.5 -> 3.15 | T27: m3
B28: 10 | C28: 1.08 | D28: 1.08 | E28: 0 | F28: 0 | G28: 10.8 | H28: 0.4666666667 | M28: 0 | N28: 0 | O28: 0
B29: 11 | C29: 1.08 | D29: 1.08 | E29: 0 | F29: 0 | G29: 11.88 | H29: 0.5133333333 | M29: 0 | N29: 0 | O29: 0
B30: 12 | C30: 1.08 | D30: 1.08 | E30: 0 | F30: 0 | G30: 12.96 | H30: 0.56 | M30: 0 | N30: 0 | O30: 0
B31: 13 | C31: 1.08 | D31: 1.08 | E31: 0 | F31: 0 | G31: 14.04 | H31: 0.6066666667 | M31: 928.956 | N31: 0 | O31: 928.956
B32: 14 | C32: 1.08 | D32: 1.08 | E32: 84.24 | F32: 0 | G32: -69.12 | H32: -2.986666667 | I32: ENCENDIDO BOMBA 1 | J32: =+IF(F31=0,IF(F32>0,"ENCENDIDO BOMBA 2",""),"") ->  | L32: ENCENDIDO BOMBA 1 | M32: 0 | N32: 0 | O32: 0
B33: 15 | C33: 1.08 | D33: 1.08 | E33: 0 | F33: 0 | G33: -68.04 | H33: -2.94 | M33: 0 | N33: 0 | O33: 0 | R33: DATOS BOMBEO ALL EXISTENTE
B34: 16 | C34: 1.08 | D34: 1.08 | E34: 0 | F34: 0 | G34: -66.96 | H34: -2.893333333 | K34: =+IF(F33>0,IF(F34=0,"APAGADO BOMBAS",""),"") ->  | M34: 0 | N34: 0 | O34: 0 | R34: Q DISEÑO | S34: 92 | T34: L/S
B35: 17 | C35: 1.08 | D35: 1.08 | E35: 0 | F35: 0 | G35: -65.88 | H35: -2.846666667 | I35: =+IF(E34=0,IF(E35>0,"ENCENDIDO BOMBA 1",""),"") ->  | M35: 0 | N35: 0 | O35: 0 | R35: CDT | S35: 6 | T35: m
B36: 18 | C36: 1.08 | D36: 1.08 | E36: 0 | F36: 0 | G36: -64.8 | H36: -2.8 | M36: 0 | N36: 0 | O36: 0 | R36: FRACCION. | S36: 2 BOMBAS DEL 100%
B37: 19 | C37: 1.08 | D37: 1.08 | E37: 0 | F37: 0 | G37: -63.72 | H37: -2.753333333 | M37: 0 | N37: 0 | O37: 0
B38: 20 | C38: 1.08 | D38: 1.08 | E38: 0 | F38: 0 | G38: -62.64 | H38: -2.706666667 | M38: 0 | N38: 0 | O38: 0
B39: 21 | C39: 1.08 | D39: 1.08 | E39: 0 | F39: 0 | G39: -61.56 | H39: -2.66 | J39: =+IF(F38=0,IF(F39>0,"ENCENDIDO BOMBA 2",""),"") ->  | M39: 0 | N39: 0 | O39: 0
B40: 22 | C40: 1.08 | D40: 1.08 | E40: 0 | F40: 0 | G40: -60.48 | H40: -2.613333333 | M40: 0 | N40: 0 | O40: 0
B41: 23 | C41: 1.08 | D41: 1.08 | E41: 0 | F41: 0 | G41: -59.4 | H41: -2.566666667 | M41: 0 | N41: 0 | O41: 0
B42: 24 | C42: 1.08 | D42: 1.08 | E42: 0 | F42: 0 | G42: -58.32 | H42: -2.52 | M42: 0 | N42: 0 | O42: 0
B43: 25 | C43: 1.08 | D43: 1.08 | E43: 0 | F43: 0 | G43: -57.24 | H43: -2.473333333 | K43: =+IF(F42>0,IF(F43=0,"APAGADO BOMBAS",""),"") ->  | M43: 0 | N43: 0 | O43: 0
B44: 26 | C44: 1.08 | D44: 1.08 | E44: 0 | F44: 0 | G44: -56.16 | H44: -2.426666667 | M44: 0 | N44: 0 | O44: 0
B45: 27 | C45: 1.08 | D45: 1.08 | E45: 0 | F45: 0 | G45: -55.08 | H45: -2.38 | J45: =+IF(F44=0,IF(F45>0,"ENCENDIDO BOMBA 2",""),"") ->  | M45: 0 | N45: 0 | O45: 0
B46: 28 | C46: 1.08 | D46: 1.08 | E46: 0 | F46: 0 | G46: -54 | H46: -2.333333333 | M46: 0 | N46: 0 | O46: 0
B47: 29 | C47: 1.08 | D47: 1.08 | E47: 0 | F47: 0 | G47: -52.92 | H47: -2.286666667 | M47: 0 | N47: 0 | O47: 0
B48: 30 | C48: 1.08 | D48: 1.08 | E48: 0 | F48: 0 | G48: -51.84 | H48: -2.24 | M48: 0 | N48: 0 | O48: 0
B49: 31 | C49: 1.08 | D49: 1.08 | E49: 0 | F49: 0 | G49: -50.76 | H49: -2.193333333 | M49: 0 | N49: 0 | O49: 0
B50: 32 | C50: 1.08 | D50: 1.08 | E50: 0 | F50: 0 | G50: -49.68 | H50: -2.146666667 | M50: =IF(E51>0,$S$10*$S$11,0) -> 0 | N50: 0 | O50: 0
B51: 33 | C51: 1.08 | D51: 1.08 | E51: 0 | F51: 0 | G51: -48.6 | H51: -2.1 | M51: 0 | N51: 0 | O51: 0
B52: 34 | C52: 1.08 | D52: 1.08 | E52: 0 | F52: 0 | G52: -47.52 | H52: -2.053333333 | J52: =+IF(F51=0,IF(F52>0,"ENCENDIDO BOMBA 2",""),"") ->  | M52: 0 | N52: 0 | O52: 0
B53: 35 | C53: 1.08 | D53: 1.08 | E53: 0 | F53: 0 | G53: -46.44 | H53: -2.006666667 | M53: 0 | N53: 0 | O53: 0
B54: 36 | C54: 1.08 | D54: 1.08 | E54: 0 | F54: 0 | G54: -45.36 | H54: -1.96 | M54: 0 | N54: 0 | O54: 0
B55: 37 | C55: 1.08 | D55: 1.08 | E55: 0 | F55: 0 | G55: -44.28 | H55: -1.913333333 | M55: 0 | N55: 0 | O55: 0
B56: 38 | C56: 1.08 | D56: 1.08 | E56: 0 | F56: 0 | G56: -43.2 | H56: -1.866666667 | M56: 0 | N56: 0 | O56: 0
B57: 39 | C57: 1.08 | D57: 1.08 | E57: 0 | F57: 0 | G57: -42.12 | H57: -1.82 | M57: 0 | N57: 0 | O57: 0
B58: 40 | C58: 1.08 | D58: 1.08 | E58: 0 | F58: 0 | G58: -41.04 | H58: -1.773333333 | J58: =+IF(F57=0,IF(F58>0,"ENCENDIDO BOMBA 2",""),"") ->  | K58: =+IF(F57>0,IF(F58=0,"APAGADO BOMBAS",""),"") ->  | M58: 0 | N58: 0 | O58: 0
B59: 41 | C59: 1.08 | D59: 1.08 | E59: 0 | F59: 0 | G59: -39.96 | H59: -1.726666667 | K59: =+IF(F58>0,IF(F59=0,"APAGADO BOMBAS",""),"") ->  | M59: 0 | N59: 0 | O59: 0
B60: 42 | C60: 1.08 | D60: 1.08 | E60: 0 | F60: 0 | G60: -38.88 | H60: -1.68 | K60: =+IF(F59>0,IF(F60=0,"APAGADO BOMBAS",""),"") ->  | M60: 0 | N60: 0 | O60: 0
B61: 43 | C61: 1.08 | D61: 1.08 | E61: 0 | F61: 0 | G61: -37.8 | H61: -1.633333333 | M61: 0 | N61: 0 | O61: 0
B62: 44 | C62: 1.08 | D62: 1.08 | E62: 0 | F62: 0 | G62: -36.72 | H62: -1.586666667 | M62: 0 | N62: 0 | O62: 0
B63: 45 | C63: 1.08 | D63: 1.08 | E63: 0 | F63: 0 | G63: -35.64 | H63: -1.54 | M63: 0 | N63: 0 | O63: 0
B64: 46 | C64: 1.08 | D64: 1.08 | E64: 0 | F64: 0 | G64: -34.56 | H64: -1.493333333 | M64: 0 | N64: 0 | O64: 0
B65: 47 | C65: 1.08 | D65: 1.08 | E65: 0 | F65: 0 | G65: -33.48 | H65: -1.446666667 | J65: =+IF(F64=0,IF(F65>0,"ENCENDIDO BOMBA 2",""),"") ->  | M65: 0 | N65: 0 | O65: 0
B66: 48 | C66: 1.08 | D66: 1.08 | E66: 0 | F66: 0 | G66: -32.4 | H66: -1.4 | M66: 0 | N66: 0 | O66: 0
B67: 49 | C67: 1.08 | D67: 1.08 | E67: 0 | F67: 0 | G67: -31.32 | H67: -1.353333333 | J67: =+IF(F66=0,IF(F67>0,"ENCENDIDO BOMBA 2",""),"") ->  | M67: 0 | N67: 0 | O67: 0
B68: 50 | C68: 1.08 | D68: 1.08 | E68: 0 | F68: 0 | G68: -30.24 | H68: -1.306666667 | M68: 0 | N68: 0 | O68: 0
B69: 51 | C69: 1.08 | D69: 1.08 | E69: 0 | F69: 0 | G69: -29.16 | H69: -1.26 | M69: 0 | N69: 0 | O69: 0
B70: 52 | C70: 1.08 | D70: 1.08 | E70: 0 | F70: 0 | G70: -28.08 | H70: -1.213333333 | M70: 0 | N70: 0 | O70: 0
B71: 53 | C71: 1.08 | D71: 1.08 | E71: 0 | F71: 0 | G71: -27 | H71: -1.166666667 | M71: 0 | N71: 0 | O71: 0
B72: 54 | C72: 1.08 | D72: 1.08 | E72: 0 | F72: 0 | G72: -25.92 | H72: -1.12 | K72: =+IF(F71>0,IF(F72=0,"APAGADO BOMBAS",""),"") ->  | M72: 0 | N72: 0 | O72: 0
B73: 55 | C73: 1.08 | D73: 1.08 | E73: 0 | F73: 0 | G73: -24.84 | H73: -1.073333333 | K73: =+IF(F72>0,IF(F73=0,"APAGADO BOMBAS",""),"") ->  | M73: 0 | N73: 0 | O73: 0
B74: 56 | C74: 1.08 | D74: 1.08 | E74: 0 | F74: 0 | G74: -23.76 | H74: -1.026666667 | J74: =+IF(F73=0,IF(F74>0,"ENCENDIDO BOMBA 2",""),"") ->  | M74: 0 | N74: 0 | O74: 0
B75: 57 | C75: 1.08 | D75: 1.08 | E75: 0 | F75: 0 | G75: -22.68 | H75: -0.98 | M75: 0 | N75: 0 | O75: 0
B76: 58 | C76: 1.08 | D76: 1.08 | E76: 0 | F76: 0 | G76: -21.6 | H76: -0.9333333333 | M76: 0 | N76: 0 | O76: 0
B77: 59 | C77: 1.08 | D77: 1.08 | E77: 0 | F77: 0 | G77: -20.52 | H77: -0.8866666667 | M77: 0 | N77: 0 | O77: 0
B78: 60 | C78: 1.08 | D78: 1.08 | E78: 0 | F78: 0 | G78: -19.44 | H78: -0.84 | M78: 0 | N78: 0 | O78: =SUM(M78:N78) -> 0
M79: COSTO TOTAL OPERACIÓN BOMBAS POR HORA | O79: =SUM(O18:O78) -> 928.956

Sheet ANALISIS
C1: PARA FRACCIONAMIENTO 75% Y UN AÑO DE AMORTIZACIÓN
C2: COMPORTAMIENTO TIEMPO ALMACENAMIENTO - COSTO
C4: T(MIN) | D4: COSTO MÍNIMO
C5: 5 | D5: 72405.80347
C6: 10 | D6: 67708.25893
C7: 15 | D7: 63939.6704
C8: 20 | D8: 68531.68586
C9: 25 | D9: 69407.87733
C10: 30 | D10: 60994.50879
C11: 35 | D11: 51652.18426
C12: 40 | D12: 46025.68373
C13: 45 | D13: 45043.96319
C14: 50 | D14: 44062.24266
C15: 55 | D15: 43080.52212
C16: 60 | D16: 42098.80159
C22: PARA 3O MIN DE POZO Y UN AÑO DE AMORTIZACIÓN
C23: COMPORTAMIENTO FRACCIONAMIENTO - COSTO
C25: FRACCIONAMIENTO | D25: COSTO MÍNIMO
C26: 0.5 | D26: 76786.76079
C27: 0.55 | D27: 74928.84879
C28: 0.6 | D28: 72141.98079
C29: 0.65 | D29: 69355.11279
C30: 0.7 | D30: 65639.28879
C31: 0.75 | D31: 60994.50879
C32: 0.8 | D32: 52633.90479
C33: 0.85 | D33: 48918.08079
C34: 0.9 | D34: 48918.08079
C35: 0.95 | D35: 48918.08079
C36: 1 | D36: 48918.08079
K40: COMPORTAMIENTO FRACCIONAMIENTO - COSTO
B45: PERIODO DE TIEMPO | C45: ESCENARIO | D45: ACTUAL (CONSTRUIDO) | E45: 1 -LIMITES NORMA | F45: 2 - SIN RESTRICCIONES AL ENCENDIDO DE LA BOMBA 2 | G45: 3 - RESTRINGENDO A 1 EL ENCENDIDO DE LA BOMBA 2 | H45: 4 - RESTRINGENDO A 2 EL ENCENDIDO DE LA BOMBA 2 | K45: +
B46: 1 AÑO | C46: COSTO MÍNIMO | D46: =+ACTUAL!N12 -> 53965.5436 | E46: =+'NORMA 1 AÑO'!N12 -> 71642.52368 | F46: =+'ESC 1 1 AÑO'!N12 -> 31984.84009 | G46: =+'ESC 2 EN B2 1 AÑO'!N12 -> 32913.83025 | H46: =+'ESC 3 MAS EN B2 1 AÑO'!N12 -> 54966.25212 | K46: =1-(F46/$D$46) -> 0.407309962 | L46: =1-(G46/$F$46) -> -0.0290447025 | M46: =1-(H46/$D$46) -> -0.01854347144
C47: FRACCIONAMIENTO | D47: =+ACTUAL!C8 -> 1 | E47: =+'NORMA 1 AÑO'!C8 -> 0.75 | F47: =+'ESC 1 1 AÑO'!C8 -> 0.6534577546 | G47: =+'ESC 2 EN B2 1 AÑO'!C8 -> 0.5101111626 | H47: =+'ESC 3 MAS EN B2 1 AÑO'!C8 -> 0.9158696308
C48: TIEMPO LLENADO TANQUE (MIN) | D48: =+ACTUAL!G5 -> 3 | E48: =+'NORMA 1 AÑO'!G5 -> 5 | F48: =+'ESC 1 1 AÑO'!G5 -> 58.34372785 | G48: =+'ESC 2 EN B2 1 AÑO'!G5 -> 58.35353794 | H48: =+'ESC 3 MAS EN B2 1 AÑO'!G5 -> 9.490487749
C49: VER CUADRO No. | D49: 12 | E49: =+D49+1 -> 13 | F49: =+E49+1 -> 14 | G49: 15 | H49: =+G49+1 -> 16
B50: 10 AÑOS | C50: COSTO MÍNIMO | D50: - | E50: =+'NORMA 10 AÑOS'!N12 -> 71540.90317 | F50: =+'ESC 1 10AÑOS'!N12 -> 31624.70474 | G50: =+'ESC 2 EN B2 10 AÑOS'!N12 -> 33481.6252 | H50: =+'ESC 3 MAS EN B2 10 AÑOS'!N12 -> 56683.49365
C51: FRACCIONAMIENTO | D51: - | E51: =+'NORMA 10 AÑOS'!C8 -> 0.75 | F51: =+'ESC 1 10AÑOS'!C8 -> 0.9754924831 | G51: =+'ESC 2 EN B2 10 AÑOS'!C8 -> 0.5512615672 | H51: =+'ESC 3 MAS EN B2 10 AÑOS'!C8 -> 0.8646798849
C52: TIEMPO LLENADO TANQUE | D52: - | E52: =+'NORMA 10 AÑOS'!G5 -> 5 | F52: =+'ESC 1 10AÑOS'!G5 -> 58.82459751 | G52: =+'ESC 2 EN B2 10 AÑOS'!G5 -> 56.00062744 | H52: =+'ESC 3 MAS EN B2 10 AÑOS'!G5 -> 11.17198691
C53: VER CUADRO No. | E53: =+H49+1 -> 17 | F53: =+E53+1 -> 18 | G53: 19 | H53: =+G53+1 -> 20
E57: =1-(E50/$E$46) -> 0.001418438415 | F57: =1-(F50/$F$46) -> 0.01125956377 | G57: =1-(G50/$G$46) -> -0.01725095337 | H57: =1-(H50/$H$46) -> -0.03124174321
F58: =+F52-F48 -> 0.4808696555 | G58: -2.352910502 | H58: =+H52-H48 -> 1.681499164
H59: =(H48/$H$52) -> 0.8494896944
